{"text_format":"1","workbook":"xlsx","n_sheets":56,"sheets":["Base de Travail Mensuelle","Parametres","Planning Mensuel","ABILE GAL","ADDARIO","ALLIOUANE","ARNAUDF","ARNAUD","AUDIBERT","BEN BOUZID","BOUR","CANTELLI","CARDINALE","CARLIN","COURTOIS","DALMASSO","DHOUIMER","ELLENA","FERALIS","FERRO","FIORUCCI","FRENDO","GANDOLIN","GLASKOFF","GUIZANI","ISOARD","LANDRIEUX","MALLO","MANDREA","MARCELLI","MARINO","MARTINELLI","MARZARRO","MATTEI","MOLINER","MONGRANDI","MORALDO","NAPOLITANO","OROFINO","OUTILI","PEREZ","PERRONE","PETERS","PIOMBINO","RATEAU","RINI","RODRIGUEZ","ROSSO","SARTORI","TORDO","TORRE","TRIPODIN","TRIPODIP","VANINI","VELLA","VIALE"],"not_rendered":{"charts":0,"images":0,"macros":1,"external_links":0,"defined_names":28,"comments":0,"pivot_tables":0},"unopened":[],"bounds":{"document_bytes":16777216,"sheet_cells":100000,"rows_first":2000,"rows_last":500,"rows_between":2000,"halvings":0,"cell_chars":16384,"cell_head_chars":4096},"cells_cut":0,"cells_raw":0,"read":"whole","date_system":"1900"}

{"sheet":"Base de Travail Mensuelle","index":0,"n_rows":58,"n_cols":80,"rows_kept":58,"cut":false,"hidden":false,"merged":[]}
["NOMS","PRESTATION","2016-12-17","2016-12-18","2016-12-19","2016-12-20","2016-12-21","2016-12-22","2016-12-23","2016-12-24","2016-12-25","2016-12-26","2016-12-27","2016-12-28","2016-12-29","2016-12-30","2016-12-31","2017-01-01","2017-01-02","2017-01-03","2017-01-04","2017-01-05","2017-01-06","2017-01-07","2017-01-08","2017-01-09","2017-01-10","2017-01-11","2017-01-12","2017-01-13","2017-01-14","2017-01-15","2017-01-16","2017-01-17","2017-01-18","2017-01-19","2017-01-20","2017-01-21","2017-01-22",23,null,25,null,27,null,29,null,31,null,2,null,4,null,null,null,null,null,null,null,null,null,null,null,null,"pris","conges","arrt","prendre",null,null,null,null,null,null,null,null,null,null,null,"2016-12-20"]
["Addario Grégory","remplaçant","NUIT",null,"ENC NUIT 20H30-02H30","ENC NUIT 20H30-02H30","ENC NUIT 20H30-02H30","ENC NUIT 20H30-02H30","ENC NUIT 20H30-02H30","Repos","Repos","ENC MATIN 5H-12H","ENC MATIN 5H-12H","ENC MATIN 5H-12H","Repos","ENC MATIN 5H-12H","NICE OUEST","Repos","ENC MATIN 5H-12H","ENC MATIN 5H-12H","ENC MATIN 5H-12H","ENC MATIN 5H-12H","ENC MATIN 5H-12H","Repos","V.N.  Matin","ENC MATIN 5H-12H","ENC MATIN 5H-12H","ENC MATIN 5H-12H","ENC MATIN 5H-12H","ENC MATIN 5H-12H","Repos","Repos","ENC NUIT 20H30-02H30","ENC NUIT 20H30-02H30","ENC NUIT 20H30-02H30","ENC NUIT 20H30-02H30","ENC NUIT 20H30-02H30","Repos","Repos"]
["Alliouane Saïd","remplaçant",null,null,"ENC NUIT 20H30-02H30","ENC NUIT 20H30-02H30","ENC NUIT 20H30-02H30","ENC NUIT 20H30-02H30","ENC NUIT 20H30-02H30","Repos","V.N.  Après Midi","ENC MATIN 5H-12H","ENC MATIN 5H-12H","Repos","ENC MATIN 5H-12H","ENC MATIN 5H-12H","OUEST","Repos","ENC NUIT 20H30-02H30","ENC NUIT 20H30-02H30","ENC NUIT 20H30-02H30","ENC NUIT 20H30-02H30","ENC NUIT 20H30-02H30","Repos","Repos","ENC MATIN 5H-12H","ENC MATIN 5H-12H","ENC MATIN 5H-12H","ENC MATIN 5H-12H","ENC MATIN 5H-12H","Repos","Repos","ENC NUIT 20H30-02H30","ENC NUIT 20H30-02H30","ENC NUIT 20H30-02H30","ENC NUIT 20H30-02H30","ENC NUIT 20H30-02H30","Repos","Repos"]
["Arnaud Fabrice","fourgon carton AMP",null,null,"CARTON AM","CARTON AM","CARTON AM","CARTON AM","CARTON AM","Repos","V.N.  Après Midi","CARTON AM","CARTON AM","CARTON AM","CARTON AM","CARTON AM","Repos","Repos","Repos","CARTON AM","CARTON AM","CARTON AM","CARTON AM","CARTON AM","Repos","CARTON AM","CARTON AM","CARTON AM","CARTON AM","CARTON AM","Repos","Repos","CARTON AM","CARTON AM","CARTON AM","CARTON AM","CARTON AM","Repos","Repos"]
["Audibert Michel","OUEST  Déchetterie",null,null,"NICE OUEST","NICE OUEST","NICE OUEST","NICE OUEST","NICE OUEST","NICE OUEST","Repos","NICE OUEST","NICE OUEST","NICE OUEST","NICE OUEST","NICE OUEST","Repos","Repos","Congés","Congés","Congés","Congés","Congés","Congés","Congés","NICE OUEST","NICE OUEST","NICE OUEST","NICE OUEST","Repos","NICE OUEST","Repos","NICE OUEST","NICE OUEST","NICE OUEST","NICE OUEST","NICE OUEST","Repos","Repos",null,null,null,null,null,null,null,null,null,null,null,null,null,null,null,null,null,null,null,null,null,null,null,null,null,null,null,null,null,null,"Glaskoff Hervé","Benne Carton"]
["Ben Bouzid Bourhane","OUEST  Déchetterie",null,"OUEST","NICE OUEST","NICE OUEST","Repos","NICE OUEST","NICE OUEST","NICE OUEST","Repos","NICE OUEST","NICE OUEST","NICE OUEST","NICE OUEST","NICE OUEST","Repos","Repos","NICE OUEST","NICE OUEST","NICE OUEST","NICE OUEST","NICE OUEST","Repos","NICE OUEST","NICE OUEST","NICE OUEST","NICE OUEST","NICE OUEST","NICE OUEST","Repos","Repos","NICE OUEST","NICE OUEST","Repos","NICE OUEST","NICE OUEST","NICE OUEST",null,null,null,null,null,null,null,null,null,null,null,null,null,null,null,null,null,null,null,null,null,null,null,null,null,null,null,null,null,null,null,"Torre Jean Marie","Benne Carton"]
["Cantelli Thomas","remplaçant",null,null,null,null,null,null,null,null,null,null,null,null,null,null,null,null,"Repos","ENC MATIN 5H-12H","ENC MATIN 5H-12H","ENC MATIN 5H-12H","ENC MATIN 5H-12H","NICE OUEST","Repos","ENC NUIT 20H30-02H30","ENC NUIT 20H30-02H30","ENC NUIT 20H30-02H30","ENC NUIT 20H30-02H30","ENC NUIT 20H30-02H30","Repos","Repos","ENC MATIN 5H-12H","ENC MATIN 5H-12H","Repos","ENC MATIN 5H-12H","ENC MATIN 5H-12H","NICE EST","Repos",null,null,null,null,null,null,null,null,null,"2017-02-01",null,null,null,null,null,null,null,null,null,null,null,null,null,null,null,null,null,null,null,null,"Guizani Samy","fourgon carton matin"]
["Cardinale Jean Claude","OUEST  Déchetterie",null,null,"Congés","Congés","Congés","Congés","Congés","Congés","Congés","NICE OUEST","NICE OUEST","Repos","NICE OUEST","NICE OUEST","NICE OUEST","Repos","NICE OUEST","NICE OUEST","NICE OUEST","NICE OUEST","NICE OUEST","Repos","NICE OUEST","NICE OUEST","NICE OUEST","NICE OUEST","NICE OUEST","NICE OUEST","Repos","Repos","NICE OUEST","NICE OUEST","NICE OUEST","NICE OUEST","NICE OUEST","Repos","Repos",null,null,null,null,null,null,null,null,null,null,null,null,null,null,null,null,null,null,null,null,null,null,null,null,null,null,null,null,null,null,"Martinelli Julien","fourgon carton matin"]
["Courtois Alexis","remplaçant","EST",null,"ENC MATIN 5H-12H","ENC MATIN 5H-12H","ENC MATIN 5H-12H","ENC MATIN 5H-12H","Repos","NICE EST","Repos","ENC NUIT 20H30-02H30","ENC NUIT 20H30-02H30","ENC NUIT 20H30-02H30","ENC NUIT 20H30-02H30","ENC NUIT 20H30-02H30","Repos","Repos","ENC NUIT 20H30-02H30","ENC NUIT 20H30-02H30","ENC NUIT 20H30-02H30","ENC NUIT 20H30-02H30","ENC NUIT 20H30-02H30","Repos","Repos","ENC NUIT 20H30-02H30","ENC NUIT 20H30-02H30","ENC NUIT 20H30-02H30","ENC NUIT 20H30-02H30","ENC NUIT 20H30-02H30","Repos","Repos","ENC MATIN 5H-12H","ENC MATIN 5H-12H","ENC MATIN 5H-12H","ENC MATIN 5H-12H","Repos","NICE EST","Repos",null,null,null,null,null,null,null,null,null,null,null,null,null,null,null,null,null,null,null,null,null,null,null,null,null,null,null,null,null,null,"Arnaud Fabrice","fourgon carton AMP"]
["Dhouimer Yassine","remplaçant",null,"V.N.  Matin","NICE EST","NICE EST","NICE EST","NICE EST","NICE EST","Repos","V.N.  Matin","NICE EST","NICE EST","NICE EST","NICE EST","NICE EST","Repos","V.N.  Matin","NICE EST","NICE EST","NICE EST","NICE EST","Repos","NICE EST","Repos","NICE EST","NICE EST","NICE EST","NICE EST","NICE EST","Repos","Repos","NICE EST","NICE EST","NICE EST","NICE EST","NICE EST","Repos",null,null,null,null,null,null,null,null,null,null,null,null,null,null,null,null,null,null,null,null,null,null,null,null,null,null,null,null,null,null,null,"Vanini Kévin","fourgon carton AMP"]
["Ellena Thomas","remplaçant",null,null,"ENC NUIT 20H30-02H30","ENC NUIT 20H30-02H30","ENC NUIT 20H30-02H30","ENC NUIT 20H30-02H30","ENC NUIT 20H30-02H30","Repos","Repos","NICE OUEST","NICE OUEST","NICE OUEST","NICE OUEST","NICE OUEST","NICE EST","Repos","NICE OUEST","NICE OUEST","NICE OUEST","Repos","NICE OUEST","NICE OUEST","Repos","ENC MATIN 5H-12H","ENC MATIN 5H-12H","ENC MATIN 5H-12H","ENC MATIN 5H-12H","ENC MATIN 5H-12H","Repos","NICE OUEST & VIEUX NICE","ENC NUIT 20H30-02H30","ENC NUIT 20H30-02H30","ENC NUIT 20H30-02H30","ENC NUIT 20H30-02H30","ENC NUIT 20H30-02H30","Repos","Repos",null,null,null,null,null,null,null,null,null,null,null,null,null,null,null,null,null,null,null,null,null,null,null,null,null,null,null,null,null,null,"Perez Yann","fourgon carton AMP"]
["Frendo Mathieu","EST  Déchetterie","EST",null,"NICE EST","NICE EST","NICE EST","NICE EST","NICE EST","Repos","Repos","NICE EST","NICE EST","NICE EST","NICE EST","NICE EST","Repos","Repos","NICE EST","NICE EST","Repos","NICE EST","NICE EST","NICE EST","Repos","NICE EST","NICE EST","NICE EST","NICE EST","NICE EST","Repos","NICE EST","NICE EST","NICE EST","NICE EST","NICE EST","NICE EST","Repos",null,null,null,null,null,null,null,null,null,null,null,null,null,null,null,null,null,null,null,null,null,null,null,null,null,null,null,null,null,null,null,null,"fourgon carton AMP"]
["Gandolin Adrien","remplaçant",null,null,"ENC MATIN 5H-12H","ENC MATIN 5H-12H","ENC MATIN 5H-12H","Repos","ENC MATIN 5H-12H","NICE EST","Repos","ENC NUIT 20H30-02H30","ENC NUIT 20H30-02H30","ENC NUIT 20H30-02H30","ENC NUIT 20H30-02H30","ENC NUIT 20H30-02H30","Repos","Repos","ENC NUIT 20H30-02H30","ENC NUIT 20H30-02H30","ENC NUIT 20H30-02H30","ENC NUIT 20H30-02H30","ENC NUIT 20H30-02H30","Repos","V.N.  Après Midi","ENC NUIT 20H30-02H30","ENC NUIT 20H30-02H30","ENC NUIT 20H30-02H30","ENC NUIT 20H30-02H30","ENC NUIT 20H30-02H30","Repos","V.N.  Matin","ENC MATIN 5H-12H","ENC MATIN 5H-12H","ENC MATIN 5H-12H","Repos","ENC MATIN 5H-12H","NICE EST","Repos",null,null,null,null,null,null,null,null,null,null,null,null,null,null,null,null,null,null,null,null,null,null,null,null,null,null,null,null,null,null,"Rini Romain","EST  Déchetterie","AM","Rodriguez franck"]
["Glaskoff Hervé","Benne Carton","EST",null,"B. CARTON","B. CARTON","B. CARTON","B. CARTON","B. CARTON","Repos","Repos","Congés","Congés","Congés","Congés","Congés","Congés","Congés","B. CARTON","Repos","B. CARTON","B. CARTON","B. CARTON","NICE OUEST","Repos","B. CARTON","B. CARTON","B. CARTON","B. CARTON","B. CARTON","Repos","V.N.  Après Midi","B. CARTON","B. CARTON","B. CARTON","B. CARTON","B. CARTON","Repos","Repos",null,null,null,null,null,null,null,null,null,null,null,null,null,null,null,null,null,null,null,null,null,null,null,null,null,null,null,null,null,null,"Marcelli Alain","EST  Déchetterie","AM","Cantelli Thomas"]
["Guizani Samy","fourgon carton matin",null,null,"CARTON MATIN","CARTON MATIN","CARTON MATIN","CARTON MATIN","Repos","EST","Repos","CARTON MATIN","CARTON MATIN","CARTON MATIN","CARTON MATIN","CARTON MATIN","Repos","V.N.  Après Midi","CARTON MATIN","CARTON MATIN","CARTON MATIN","CARTON MATIN","CARTON MATIN","Repos","Repos","CARTON MATIN","CARTON MATIN","CARTON MATIN","CARTON MATIN","CARTON MATIN","Repos","NICE NORD & VIEUX NICE","CARTON MATIN","CARTON MATIN","CARTON MATIN","CARTON MATIN","CARTON MATIN","Repos",null,null,null,null,null,null,null,null,null,null,null,null,null,null,null,null,null,null,null,null,null,null,null,null,null,null,null,null,null,null,null,"Mongrandi Frédéric","EST  Déchetterie"]
["Mallo Alfred","NORD  Déchetterie",null,"NORD","Repos","NICE NORD","NICE NORD","NICE NORD","NICE NORD","NICE NORD","Repos","NICE NORD","NICE NORD","NICE NORD","NICE NORD","NICE NORD","Repos","Repos","NICE NORD","NICE NORD","NICE NORD","NICE NORD","NICE NORD","Repos","Repos","NICE NORD","NICE NORD","NICE NORD","NICE NORD","NICE NORD","Repos","Repos","NICE NORD","NICE NORD","NICE NORD","NICE NORD","NICE NORD","Repos","Repos",null,null,null,null,null,null,null,null,null,null,null,null,null,null,null,null,null,null,null,null,null,null,null,null,null,null,null,null,null,null,"Frendo Mathieu","EST  Déchetterie","EST","Dhouimer Yassine"]
["Mandrea Thierry","OUEST  Déchetterie","OUEST",null,"NICE OUEST","NICE OUEST","NICE OUEST","NICE OUEST","NICE OUEST","Repos","Repos","Congés","Congés","Congés","Congés","Congés","Congés","Congés","NICE OUEST","NICE OUEST","Repos","NICE OUEST","NICE OUEST","NICE OUEST","Repos","NICE OUEST","NICE OUEST","NICE OUEST","NICE OUEST","NICE OUEST","Repos","NICE OUEST","NICE OUEST","NICE OUEST","NICE OUEST","NICE OUEST","NICE OUEST","Repos","Repos",null,null,null,null,null,null,null,null,null,null,null,null,null,null,null,null,null,null,null,null,null,null,null,null,null,null,null,null,null,null,null,"NORD  Déchetterie",null,"Mattei Patrick"]
["Marcelli Alain","EST  Déchetterie",null,"EST","NICE EST","NICE EST","NICE EST","NICE EST","NICE EST","Repos","Repos","NICE EST","NICE EST","NICE EST","NICE EST","NICE EST","Repos","Repos","Congés","Congés","Congés","Congés","Congés","Congés","Congés","NICE EST","Repos","NICE EST","NICE EST","NICE EST","NICE EST","Repos","NICE EST","NICE EST","NICE EST","NICE EST","NICE EST","Repos",null,null,null,null,null,null,null,null,null,null,null,null,null,null,null,null,null,null,null,null,null,null,null,null,null,null,null,null,null,null,null,"Audibert Michel","OUEST  Déchetterie",null,"Marino Alain"]
["Marino Alain","remplaçant","NORD",null,"ENC MATIN 5H-12H","ENC MATIN 5H-12H","NICE NORD","ENC MATIN 5H-12H","CARTON MATIN","Repos","Repos","ENC MATIN 5H-12H","Repos","ENC MATIN 5H-12H","ENC MATIN 5H-12H","ENC MATIN 5H-12H","NICE NORD","Repos","ENC MATIN 5H-12H","ENC MATIN 5H-12H","ENC MATIN 5H-12H","ENC MATIN 5H-12H","ENC MATIN 5H-12H","Repos","NICE EST","ENC MATIN 5H-12H","ENC MATIN 5H-12H","CARTON MATIN","ENC MATIN 5H-12H","ENC MATIN 5H-12H","Repos","Repos","ENC MATIN 5H-12H","ENC MATIN 5H-12H","ENC MATIN 5H-12H","ENC MATIN 5H-12H","ENC MATIN 5H-12H","Repos","Repos",null,null,null,null,null,null,null,null,null,null,null,null,null,null,null,null,null,null,null,null,null,null,null,null,null,null,null,null,null,null,"Mandrea Thierry","OUEST  Déchetterie","NUIT","Perrone Lucas"]
["Martinelli Julien","fourgon carton matin","OUEST",null,"CARTON MATIN","CARTON MATIN","CARTON MATIN","CARTON MATIN","CARTON MATIN","Repos","Repos","Congés","Congés","Congés","Congés","Congés","Congés","Congés","CARTON MATIN","CARTON MATIN","CARTON MATIN","CARTON MATIN","CARTON MATIN","Repos","NICE OUEST","CARTON MATIN","CARTON MATIN","Repos","CARTON MATIN","CARTON MATIN","NICE OUEST","Repos","CARTON MATIN","CARTON MATIN","CARTON MATIN","CARTON MATIN","CARTON MATIN","Repos",null,null,null,null,null,null,null,null,null,null,null,null,null,null,null,null,null,null,null,null,null,null,null,null,null,null,null,null,null,null,null,"Ben Bouzid Bourhane","OUEST  Déchetterie","NUIT","Cantelli Thomas"]
["Marzarro Christopher","fourgon carton AMP","Repos","Repos","Repos","CARTON AP","CARTON AP","CARTON AP","CARTON AP","CARTON AP","Repos","CARTON AP","CARTON AP","CARTON AP","CARTON AP","CARTON AP","Repos","Repos","CARTON AP","CARTON AP","CARTON AP","CARTON AP","CARTON AP","Repos","Repos","CARTON AP","CARTON AP","CARTON AP","CARTON AP","CARTON AP","Repos","Repos","Repos","CARTON AP","CARTON AP","CARTON AP","CARTON AP","CARTON AP",null,null,null,null,null,null,null,null,null,null,null,null,null,null,null,null,null,null,null,null,null,null,null,null,null,null,null,null,null,null,null,"Cardinale Jean Claude","OUEST  Déchetterie","NUIT","Gandolin Adrien"]
["Mattei Patrick","remplaçant",null,null,"NICE NORD","Repos","NICE NORD","ENC MATIN 5H-12H","CARTON MATIN","Repos","Repos","ENC MATIN 5H-12H","Repos","ENC MATIN 5H-12H","ENC MATIN 5H-12H","ENC MATIN 5H-12H","NICE NORD","Repos","ENC MATIN 5H-12H","ENC MATIN 5H-12H","ENC MATIN 5H-12H","ENC MATIN 5H-12H","ENC MATIN 5H-12H","Repos","NICE EST","ENC MATIN 5H-12H","ENC MATIN 5H-12H","CARTON MATIN","ENC MATIN 5H-12H","ENC MATIN 5H-12H","Repos","Repos","ENC MATIN 5H-12H","ENC MATIN 5H-12H","ENC MATIN 5H-12H","ENC MATIN 5H-12H","ENC MATIN 5H-12H","Repos",null,null,null,null,null,null,null,null,null,null,null,null,null,null,null,null,null,null,null,null,null,null,null,null,null,null,null,null,null,null,null,"Addario Grégory","remplaçant","NUIT","Courtois Alexis"]
["Mongrandi Frédéric","EST  Déchetterie",null,null,"Congés","Congés","Congés","Congés","Congés","Congés","Congés","NICE EST","NICE EST","Repos","NICE EST","NICE EST","NICE EST","Repos","NICE EST","NICE EST","NICE EST","NICE EST","NICE EST","NICE EST","Repos","NICE EST","NICE EST","NICE EST","NICE EST","NICE EST","Repos","Repos","NICE EST","NICE EST","NICE EST","NICE EST","NICE EST","Repos","Repos",null,null,null,null,null,null,null,null,null,null,null,null,null,null,null,null,null,null,null,null,null,null,null,null,null,null,null,null,null,null,"Alliouane Saïd","remplaçant","NUIT","Napolitano Walter"]
["Moraldo Adrien",null,null,null,"ENC AM 12H30-19H30","ENC AM 12H30-19H30","ENC AM 12H30-19H30","Repos","ENC AM 12H30-19H30","NICE OUEST","Repos","Congés","Congés","Congés","Congés","Congés","Congés","Congés","CARTON AM","CARTON AM","CARTON AM","CARTON AM","CARTON AM","Repos","Repos","CARTON AM","CARTON AM","CARTON AM","CARTON AM","CARTON AM","Repos","Repos","ENC AM 12H30-19H30","ENC AM 12H30-19H30","ENC AM 12H30-19H30","ENC AM 12H30-19H30","ENC AM 12H30-19H30","Repos",null,null,null,null,null,null,null,null,null,null,null,null,null,null,null,null,null,null,null,null,null,null,null,null,null,null,null,null,null,null,null,"Cantelli Thomas","remplaçant",null,"Tordo Fabien"]
["Napolitano Walter","remplaçant","OUEST",null,"ENC MATIN 5H-12H","ENC MATIN 5H-12H","ENC MATIN 5H-12H","ENC MATIN 5H-12H","ENC MATIN 5H-12H","Repos","Repos","ENC NUIT 20H30-02H30","ENC NUIT 20H30-02H30","ENC NUIT 20H30-02H30","ENC NUIT 20H30-02H30","ENC NUIT 20H30-02H30","Repos","Repos","ENC NUIT 20H30-02H30","ENC NUIT 20H30-02H30","ENC NUIT 20H30-02H30","ENC NUIT 20H30-02H30","ENC NUIT 20H30-02H30","Repos","Repos","ENC MATIN 5H-12H","ENC MATIN 5H-12H","ENC MATIN 5H-12H","ENC MATIN 5H-12H","Repos","NICE OUEST","Repos","ENC MATIN 5H-12H","ENC MATIN 5H-12H","ENC MATIN 5H-12H","Repos","ENC MATIN 5H-12H","NICE OUEST","Repos",null,null,null,null,null,null,null,null,null,null,null,null,null,null,null,null,null,null,null,null,null,null,null,null,null,null,null,null,null,null,"Courtois Alexis","remplaçant"]
["Orofino Carmelo","remplaçant",null,null,"NICE EST","NICE EST","NICE EST","NICE EST","NICE EST","Repos","Repos","B. CARTON","B. CARTON","B. CARTON","B. CARTON","B. CARTON","Repos","Repos","NICE EST","B. CARTON","NICE EST","Repos","NICE EST","Repos","Repos","NICE EST","B. CARTON","NICE EST","ENC AM 12H30-19H30","ENC AM 12H30-19H30","Repos","Repos","ENC AM 12H30-19H30","ENC AM 12H30-19H30","ENC AM 12H30-19H30","ENC AM 12H30-19H30","ENC AM 12H30-19H30","Repos",null,null,null,null,null,null,null,null,null,null,null,null,null,null,null,null,null,null,null,null,null,null,null,null,null,null,null,null,null,null,null,"Dhouimer Yassine","remplaçant","5 H","Outili Yassin"]
["Outili Yassin","remplaçant",null,null,"ENC NUIT 20H30-02H30","ENC NUIT 20H30-02H30","ENC NUIT 20H30-02H30","ENC NUIT 20H30-02H30","ENC NUIT 20H30-02H30","Repos","Repos","ENC MATIN 5H-12H","ENC MATIN 5H-12H","ENC MATIN 5H-12H","Repos","ENC MATIN 5H-12H","NICE OUEST","Repos","ENC MATIN 5H-12H","ENC MATIN 5H-12H","ENC MATIN 5H-12H","ENC MATIN 5H-12H","ENC MATIN 5H-12H","Repos","V.N.  Après Midi","ENC NUIT 20H30-02H30","ENC NUIT 20H30-02H30","ENC NUIT 20H30-02H30","ENC NUIT 20H30-02H30","ENC NUIT 20H30-02H30","Repos","Repos","ENC NUIT 20H30-02H30","ENC NUIT 20H30-02H30","ENC NUIT 20H30-02H30","ENC NUIT 20H30-02H30","ENC NUIT 20H30-02H30",null,null,null,null,null,null,null,null,null,null,null,null,null,null,null,null,null,null,null,null,null,null,null,null,null,null,null,null,null,null,null,null,"Ellena Thomas","remplaçant","5 H","Addario Grégory"]
["Perez Yann","fourgon carton AMP",null,"OUEST","CARTON AM","CARTON AM","CARTON AM","CARTON AM","CARTON AM","Repos","Repos","CARTON AM","CARTON AM","CARTON AM","CARTON AM","CARTON AM","Repos","Repos","Congés","Congés","Congés","Congés","Congés","Congés","Congés","Repos","CARTON AM","CARTON AM","CARTON AM","CARTON AM","CARTON AM","Repos","CARTON AM","CARTON AM","CARTON AM","CARTON AM","CARTON AM",null,null,null,null,null,"Congés","Congés",null,null,null,null,null,null,null,null,null,null,null,null,null,null,null,null,null,null,null,null,null,null,null,null,null,"Gandolin Adrien","remplaçant","5 H","Alliouane Saïd"]
["Perrone Lucas",null,null,null,"Congés","Congés","Congés","Congés","Congés","Congés","Congés","ENC NUIT 20H30-02H30","ENC NUIT 20H30-02H30","ENC NUIT 20H30-02H30","ENC NUIT 20H30-02H30","ENC NUIT 20H30-02H30","Repos","V.N.  Après Midi","ENC NUIT 20H30-02H30","ENC NUIT 20H30-02H30","ENC NUIT 20H30-02H30","ENC NUIT 20H30-02H30","ENC NUIT 20H30-02H30","Repos","V.N.  Après Midi","ENC AM 12H30-19H30","ENC AM 12H30-19H30","ENC AM 12H30-19H30","ENC AM 12H30-19H30","Repos","NICE NORD","Repos","ENC NUIT 20H30-02H30","ENC NUIT 20H30-02H30","ENC NUIT 20H30-02H30","ENC NUIT 20H30-02H30","ENC NUIT 20H30-02H30",null,null,null,null,null,null,null,null,null,null,null,null,null,null,null,null,null,null,null,null,null,null,null,null,null,null,null,null,null,null,null,null,"Marino Alain","remplaçant","5 H","Ellena Thomas"]
["Rini Romain","EST  Déchetterie",null,null,"Congés","Congés","Congés","Congés","Congés","Congés","Congés","Congés","Congés","Congés","Congés","Congés","Congés","Congés","NICE EST","NICE EST","NICE EST","NICE EST","NICE EST","Repos","Repos","NICE EST","NICE EST","Repos","NICE EST","NICE EST","NICE EST","Repos","NICE EST","NICE EST","NICE EST","NICE EST","NICE EST",null,null,null,null,null,null,null,null,null,null,null,null,null,null,null,null,null,null,null,null,null,null,null,null,null,null,null,null,null,null,null,null,"Mattei Patrick","remplaçant","5 H","Viale Jonathan"]
["Rodriguez franck",null,null,null,"Congés","Congés","Congés","Congés","Congés","Congés","Congés","ENC AM 12H30-19H30","ENC AM 12H30-19H30","ENC AM 12H30-19H30","ENC AM 12H30-19H30","ENC AM 12H30-19H30","Repos","V.N.  A.M.","ENC AM 12H30-19H30","ENC AM 12H30-19H30","ENC AM 12H30-19H30","ENC AM 12H30-19H30","ENC AM 12H30-19H30","Repos","Repos","ENC AM 12H30-19H30","ENC AM 12H30-19H30","ENC AM 12H30-19H30","Repos","ENC AM 12H30-19H30","NICE OUEST","Repos","ENC AM 12H30-19H30","ENC AM 12H30-19H30","ENC AM 12H30-19H30","ENC AM 12H30-19H30","ENC AM 12H30-19H30",null,null,null,null,null,null,null,null,null,null,null,null,null,null,null,null,null,null,null,null,null,null,null,null,null,null,null,null,null,null,null,null,"Moraldo Adrien"]
["Tordo Fabien","remplaçant","OUEST",null,"NICE OUEST","NICE OUEST","NICE OUEST","NICE OUEST","NICE OUEST","Repos","Repos","ENC NUIT 20H30-02H30","ENC NUIT 20H30-02H30","ENC NUIT 20H30-02H30","ENC NUIT 20H30-02H30","ENC NUIT 20H30-02H30","Repos","Repos","ENC NUIT 20H30-02H30","ENC NUIT 20H30-02H30","ENC NUIT 20H30-02H30","ENC NUIT 20H30-02H30","ENC NUIT 20H30-02H30","Repos","Repos","ENC NUIT 20H30-02H30","ENC NUIT 20H30-02H30","ENC NUIT 20H30-02H30","ENC NUIT 20H30-02H30","ENC NUIT 20H30-02H30","Repos","Repos","ENC MATIN 5H-12H","ENC MATIN 5H-12H","ENC MATIN 5H-12H","ENC MATIN 5H-12H","Repos","NICE OUEST",null,null,null,null,null,null,null,null,null,null,null,null,null,null,null,null,null,null,null,null,null,null,null,null,null,null,null,null,null,null,null,"Napolitano Walter","remplaçant"]
["Torre Jean Marie","Benne Carton","EST",null,"B. CARTON","B. CARTON","B. CARTON","B. CARTON","B. CARTON","Repos","Repos","B. CARTON","B. CARTON","B. CARTON","B. CARTON","B. CARTON","Repos","Repos","B. CARTON","B. CARTON","B. CARTON","B. CARTON","B. CARTON","Repos","Repos","B. CARTON","Repos","B. CARTON","B. CARTON","B. CARTON","NICE EST","Repos","B. CARTON","B. CARTON","B. CARTON","B. CARTON","B. CARTON",null,null,null,null,null,null,null,null,null,null,null,null,null,null,null,null,null,null,null,null,null,null,null,null,null,null,null,null,null,null,null,null,"Orofino Carmelo","remplaçant"]
["Vanini Kévin","fourgon carton AMP","CARTON AP",null,"CARTON AM","CARTON AM","CARTON AM","CARTON AM","CARTON AM","Repos","Repos","Repos","CARTON AM","CARTON AM","CARTON AM","CARTON AM","CARTON AM","Repos","CARTON AM","CARTON AM","CARTON AM","CARTON AM","CARTON AM","Repos","Repos","Congés","Congés","Congés","Congés","Congés","Congés","Congés","CARTON AM","CARTON AM","CARTON AM","CARTON AM","CARTON AM",null,null,null,null,null,null,null,null,null,null,null,null,null,null,null,null,null,null,null,null,null,null,null,null,null,null,null,null,null,null,null,null,"Outili Yassin","remplaçant"]
["Viale Jonathan","remplaçant",null,null,"ENC NUIT 20H30-02H30","ENC NUIT 20H30-02H30","ENC NUIT 20H30-02H30","ENC NUIT 20H30-02H30","ENC NUIT 20H30-02H30","Repos","Repos","ENC MATIN 5H-12H","ENC MATIN 5H-12H","ENC MATIN 5H-12H","ENC MATIN 5H-12H","Repos","NICE EST","Repos","ENC MATIN 5H-12H","ENC MATIN 5H-12H","ENC MATIN 5H-12H","ENC MATIN 5H-12H","ENC MATIN 5H-12H","Repos","Repos","ENC NUIT 20H30-02H30","ENC NUIT 20H30-02H30","ENC NUIT 20H30-02H30","ENC NUIT 20H30-02H30","ENC NUIT 20H30-02H30","Repos","NICE NORD","ENC NUIT 20H30-02H30","ENC NUIT 20H30-02H30","ENC NUIT 20H30-02H30","ENC NUIT 20H30-02H30","ENC NUIT 20H30-02H30",null,null,null,null,null,null,null,null,null,null,null,null,null,null,null,null,null,null,null,null,null,null,null,null,null,null,null,null,null,null,null,null,"Rodriguez franck"]
["Isoard Nicolas","remplaçant",null,null,null,null,null,null,null,null,null,null,null,null,null,null,null,null,null,null,null,null,null,null,null,null,null,null,null,null,null,null,null,null,null,null,null,null,null,null,null,null,null,null,null,null,null,null,null,null,null,null,null,null,null,null,null,null,null,null,null,null,null,null,null,null,null,null,null,"Perrone Lucas"]
[]
["Bour Yvon",null,"7H-12H / 14H-18H","7H-12H","Repos","12H-19H","12H-19H","12H-18H","12H-18H","7H-14H",null,"Repos","12H-19H","12H-19H","12H-18H","12H-18H","7H-14H",null,"Repos","Congés","12H-19H","12H-18H","12H-18H","7H-12H / 14H-18H","7H-12H","Repos","12H-19H","Congés","12H-18H","12H-18H","7H-12H / 14H-18H","7H-12H","Repos","12H-19H","Congés","12H-18H","12H-18H","7H-12H / 14H-18H","7H-12H"]
["Dalmasso Yves",null,null,null,"7H-14H","7H-14H","B. CARTON","5H-12H","Congés",null,null,"9H-16H","5H-12H","B. CARTON","9H-16H","9H-16H",null,null,"5H-12H","5H-12H","5H-12H","5H-12H","5H-12H",null,null,"Repos","7H-14H","B. CARTON","7H-14H","7H-14H","7H-12H / 14H-18H",null,"7H-14H","7H-14H","B. CARTON","7H-14H","7H-14H"]
["Féralis Cécile",null,null,null,"12H-19H","12H-19H","12H-19H","12H-19H","12H-19H",null,null,"Congés","congés","Congés","Congés","Congés",null,null,"12H-19H","12H-19H","B. CARTON","12H-19H","Repos","7H-12H / 14H-18H",null,"12H-19H","12H-19H","12H-19H","12H-19H","12H-19H",null,"compact.+ Est\n7H-12H","12H-19H","12H-19H","12H-19H","12H-19H","12H-19H"]
["Landrieux Nathalie",null,"7H-12H / 14H-18H",null,"B. CARTON","B. CARTON","Repos","B. CARTON","B. CARTON","7H-14H",null,"B. CARTON","B. CARTON","Repos","B. CARTON","B. CARTON","7H-14H",null,"B. CARTON","B. CARTON","Repos","B. CARTON","B. CARTON","7H-12H / 14H-18H","Compact.+Est\n7H-12H","B. CARTON","B. CARTON","Repos","B. CARTON","B. CARTON","7H-12H / 14H-18H",null,"B. CARTON","B. CARTON","Repos","B. CARTON","B. CARTON","7H-12H / 14H-18H"]
["Moliner David",null,"4H-7H COMPACTEUR",null,"5H-12H","5H-12H","4-12H","Repos","4-12H","4H-14H COMPACTEUR",null,"4-12H","4-12H","4-12H","4-12H","4-12H",null,null,"Congés","Congés","Congés","Congés","Congés",null,null,"4-12H","4-12H","4-12H","4-12H","4-12H","4H-7H COMPACTEUR",null,"5H-12H","5H-12H","5H-12H","5H-12H","5H-12H"]
["Piombino Jean-Marc",null,null,"7H-12H","4-12H","4-12H","5H-12H","4-12H","5H-12H",null,null,"5H-12H","Repos","5H-12H","5H-12H","5H-12H","4H-14H COMPACTEUR",null,"4-12H","4-12H","4-12H","4-12H","4-12H","4H-7H COMPACTEUR",null,"5H-12H","5H-12H","5H-12H","5H-12H","5H-12H",null,null,"4-12H","4-12H","4-12H","4-12H","4-12H","4H-7H COMPACTEUR"]
["Rateau Laurent",null,null,null,"9H-16H","9H-16H","9H-16H","9H-16H","9H-16H",null,null,"9H-16H","9H-16H","9H-16H","9H-16H","9H-16H",null,null,"9H-16H","9H-16H","9H-16H","9H-16H","9H-16H",null,null,"9H-16H","9H-16H","9H-16H","9H-16H","9H-16H",null,null,"9H-16H","9H-16H","9H-16H","9H-16H","Repos"]
["Rosso Dominique",null,"7H-12H / 14H-18H",null,"12H-19H","12H-19H","12H-19H","12H-19H","12H-19H",null,null,"12H-19H","12H-19H","12H-19H","Congés","Congés",null,null,"12H-19H","12H-19H","12H-19H","12H-19H","12H-19H",null,null,"12H-19H","12H-19H","12H-19H","12H-19H","12H-19H",null,null,"12H-19H","12H-19H","12H-19H","12H-19H","Repos","7H-12H / 14H-18H"]
[]
["Abile Gal Roger",null,"Repos","Repos","Standard 11H-15H / 15H30-19H","Standard 11H-15H / 15H30-19H","Standard 11H-15H / 15H30-19H","Congés","Congés","Congés","Congés","Congés","Congés","Congés","Congés","Congés","Congés","Congés","Standard 11H-15H / 15H30-19H","Standard 11H-15H / 15H30-19H","Standard 11H-15H / 15H30-19H","Standard 11H-15H / 15H30-19H","Standard 11H-15H / 15H30-19H","Repos","Repos","Standard 11H-15H / 15H30-19H","Standard 11H-15H / 15H30-19H","Standard 11H-15H / 15H30-19H","Standard 11H-15H / 15H30-19H","Standard 11H-15H / 15H30-19H","Repos","Repos","Standard 11H-15H / 15H30-19H","Standard 11H-15H / 15H30-19H","Standard 11H-15H / 15H30-19H","Standard 11H-15H / 15H30-19H","Standard 11H-15H / 15H30-19H","Repos","Repos"]
["Ferro Clément",null,"Repos","Repos","Standard 8H-12H/13H-16H30","Standard 8H-12H/13H-16H30","Standard 8H-12H/13H-16H30","Standard 8H-12H/13H-16H30","Standard 8H-12H/13H-16H30","Repos","Repos","Standard 8H-12H/13H-16H30","Standard 8H-12H/13H-16H30","Standard 8H-12H/13H-16H30","Standard 8H-12H/13H-16H30","Standard 8H-12H/13H-16H30","Repos","Repos","Standard 8H-12H/13H-16H30","Standard 8H-12H/13H-16H30","Standard 8H-12H/13H-16H30","Standard 8H-12H/13H-16H30","Standard 8H-12H/13H-16H30","Repos","Repos","Standard 8H-12H/13H-16H30","Standard 8H-12H/13H-16H30","Standard 8H-12H/13H-16H30","Standard 8H-12H/13H-16H30","Standard 8H-12H/13H-16H30","Repos","Repos","Standard 8H-12H/13H-16H30","Standard 8H-12H/13H-16H30","Standard 8H-12H/13H-16H30","Standard 8H-12H/13H-16H30","Standard 8H-12H/13H-16H30","Repos","Repos"]
[]
["Arnaud Gérard",null,null,null,"Contrôle 12H-19H","Contrôle 12H-19H","Contrôle 12H-19H","Congés","Congés","Congés","Congés","Congés","Congés","Congés","Contrôle 12H-19H","Contrôle 12H-19H","Repos","Repos","Contrôle 12H-19H","Contrôle 12H-19H","Contrôle 12H-19H","Contrôle 12H-19H","Contrôle 12H-19H","Repos","Contrôle OM 03H-09H","Contrôle 12H-19H","Contrôle 12H-19H","Contrôle 12H-19H","Contrôle 12H-19H","Contrôle 12H-19H","Repos","Repos","Contrôle 12H-19H","Contrôle 12H-19H","Contrôle 12H-19H","Contrôle 12H-19H","Contrôle 12H-19H","Repos","Repos"]
["Fiorucci Alain",null,null,null,"Contröle Privé 19H00- 02H30","Contrôle 13H-20H","Contrôle 19H-02H30","Contrôle 19H-02H30","Contrôle 19H-02H30","Repos","Contrôle OM 20H-02H","Contrôle 19H-02H30","Contrôle 19H-02H30","Contrôle 19H-02H30","Repos","Contrôle 19H-02H30","Contrôle Enc 5H-11H","Contrôle Enc 5H-11H","Contrôle 19H-02H30","Contrôle 19H-02H30","Congés","Contrôle 19H-02H30","Contrôle 19H-02H30","Repos","Contrôle OM 20H-02H","Contrôle 19H-02H30","Contrôle 19H-02H30","Contrôle 19H-02H30","Contrôle 19H-02H30","Contrôle 19H-02H30","Repos","Repos","Contrôle 19H-02H30","Contrôle 13H-20H","Contrôle 19H-02H30","Contrôle 19H-02H30","Contrôle 19H-02H30","Repos","Repos"]
["Peters Robert",null,null,null,"Congés","Congés","Congés","Congés","Congés","Repos","Repos","Contrôle 7H-12H / 14H30-17H","Contrôle 7H-12H / 14H30-17H","Contrôle 7H-12H / 14H30-17H","Contrôle 7H-12H / 14H30-17H","Contrôle 7H-12H / 14H30-17H","Repos","Repos","Contrôle 7H-12H / 14H30-17H","Contrôle 7H-12H / 14H30-17H","Contrôle 7H-12H / 14H30-17H","Contrôle 7H-12H / 14H30-17H","Contrôle 7H-12H / 14H30-17H","Repos","Contrôle Déch 6H-12H","Contrôle 7H-12H / 14H30-17H","Contrôle 7H-12H / 14H30-17H","Contrôle 7H-12H / 14H30-17H","Contrôle 7H-12H / 14H30-17H","Contrôle 7H-12H / 14H30-17H","Repos","Contrôle Déch 6H-12H","Contrôle 7H-12H / 14H30-17H","Contrôle 7H-12H / 14H30-17H","Contrôle 7H-12H / 14H30-17H","Contrôle 7H-12H / 14H30-17H","Contrôle 7H-12H / 14H30-17H","Repos","Repos"]
["Tripodi Patrick",null,null,null,"Contröle 12H00-19H30","Contröle 12H00-19H30","Contröle 12H00-19H30","Contröle 12H00-19H30","Contröle 12H00-19H30","Repos","Contrôle Enc 13H-19H","Contröle 12H00-19H30","Contröle 12H00-19H30","Contröle 12H00-19H30","Contröle 12H00-19H30","Contröle 12H00-19H30","Repos","Repos","Contröle 12H00-19H30","Contröle 12H00-19H30","Contröle 12H00-19H30","Contröle 12H00-19H30","Contröle 12H00-19H30","Repos","Repos","Contröle 12H00-19H30","Contröle 12H00-19H30","Contröle 12H00-19H30","Contröle 12H00-19H30","Contröle 12H00-19H30","Repos","Repos","Contröle 12H00-19H30","Contröle 12H00-19H30","Contröle 12H00-19H30","Contröle 12H00-19H30","Contröle 12H00-19H30","Repos","Repos"]
["Sartori Pierre",null,null,null,"Contrôle Privé 06H-14H","Contrôle Privé 06H-14H","Contrôle Privé 19H00-02H","Contrôle Privé 12H-19H","Contrôle Privé 06H-13H30","Repos","Repos","Contrôle Privé 06H-14H","Contrôle Privé 06H-14H","Contrôle Privé 19H00-02H","Contrôle Privé 12H-19H","Contrôle Privé 06H-13H30","Repos","Repos","Contrôle Privé 06H-14H","Contrôle Privé 06H-14H","Contrôle Privé 19H00-02H","Contrôle Privé 12H-19H","Contrôle Privé 06H-13H30","Repos","Repos","Contrôle Privé 06H-14H","Contrôle Privé 06H-14H","Contrôle Privé 19H00-02H","Contrôle Privé 12H-19H","Contrôle Privé 06H-13H30","Repos","Repos","Contrôle Privé 06H-14H","Contrôle Privé 06H-14H","Contrôle Privé 19H00-02H","Contrôle Privé 12H-19H","Contrôle Privé 06H-13H30","Repos","Repos"]
["Vella Ferdinand",null,null,null,"Contrôle 19H-02H30","Contrôle 19H-02H30","Contrôle 19H-02H30","Contrôle 19H-02H30","Contrôle 19H-02H30","Repos","Repos","Congés","Congés","Congés","Congés","Congés","Congés","Congés","Contrôle 13H-20H","Contrôle 19H-02H30","Contrôle 19H-02H30","Contrôle 19H-02H30","Repos","Contrôle 19H-02H30","Repos","Contrôle 13H-20H","Contrôle 19H-02H30","Contrôle 19H-02H30","Contrôle 19H-02H30","Contrôle 19H-02H30","Repos","Contrôle OM 20H-02H","Contrôle 13H-20H","Contrôle 19H-02H30","Contrôle 19H-02H30","VN 13H-20H","VN 13H-20H","Repos","Repos"]
[]
["Carlin Hélène",null,null,null,"Secrétariat 9H-12H /13H-17H /20H-21H30","Secrétariat 13H-18H","Congés","Congés","Congés","Congés","Congés","Congés","Congés","Secrétariat 8H30-12H /13H-17H","Secrétariat 9H-12H /13H-17H /20H-21H30","Secrétariat 8H30-12H /12H30-17H","Repos","Repos","Secrétariat 9H-12H /13H-17H /20H-21H30","Secrétariat 13H-18H","Secrétariat 8H30-12H /13H-17H","Secrétariat 9H-12H /13H-17H /20H-21H30","Secrétariat 8H30-12H /12H30-17H","Repos","Repos","Secrétariat 9H-12H /13H-17H /20H-21H30","Secrétariat 13H-18H","Secrétariat 8H30-12H /13H-17H","Secrétariat 9H-12H /13H-17H /20H-21H30","Secrétariat 8H30-12H /12H30-17H","Repos","Repos","Secrétariat 9H-12H /13H-17H /20H-21H30","Secrétariat 13H-18H","Secrétariat 8H30-12H /13H-17H","Secrétariat 9H-12H /13H-17H /20H-21H30","Secrétariat 8H30-12H /12H30-17H","Repos","Repos"]
["Tripodi Nadège",null,null,null,"Secrétariat 8H30-12H/12H45-16H15","Secrétariat 8H30-12H/12H45-16H15","Repos","Secrétariat 8H30-12H/12H45-16H15","Secrétariat 8H30-12H/12H45-16H15",null,null,"Secrétariat 8H30-12H/12H45-16H15","Congés","Congés","Congés","Congés","Congés","Congés","Congés","Secrétariat 8H30-12H/12H45-16H15","Repos","Secrétariat 8H30-12H/12H45-16H15","Secrétariat 8H30-12H/12H45-16H15","Repos","Repos","Secrétariat 8H30-12H/12H45-16H15","Secrétariat 8H30-12H/12H45-16H15","Repos","Secrétariat 8H30-12H/12H45-16H15","Secrétariat 8H30-12H/12H45-16H15","Repos","Repos","Secrétariat 8H30-12H/12H45-16H15","Secrétariat 8H30-12H/12H45-16H15","Repos","Colonne1","Colonne2","Repos","Repos"]

{"sheet":"Parametres","index":1,"n_rows":52,"n_cols":3,"rows_kept":52,"cut":false,"hidden":false,"merged":[]}
[null,"Liste des saisies\nde la feuille Base de Travail","Liste des saisies\nSouhaitée"]
[null,"12H-18H","12H-18H"]
[null,"12H-19H","12H-19H"]
[null,"4-12H","4-12H"]
[null,"4H-14H COMPACTEUR","4H-14H COMPACTEUR"]
[null,"4H-7H COMPACTEUR","4H-7H COMPACTEUR"]
[null,"5 H","ENC MATIN 5H-12H"]
[null,"5H-12H","5H-12H"]
[null,"7H-12H","7H-12H"]
[null,"7H-12H / 14H-18H","7H-12H / 14H-18H"]
[null,"7H-14H","7H-14H"]
[null,"9H-16H","9H-16H"]
[null,"A.P.","ENC AM 12H30-19H30"]
[null,"B. CARTON","B. CARTON"]
[null,"CARTON AP","CARTON AM"]
[null,"CARTON MATIN","CARTON MATIN"]
[null,"compact.+ Est\n7H-12H","compact.+ Est\n7H-12H"]
[null,"Congés","Congés"]
[null,"Contrôle 12H00-19H30","Contrôle 12H00-19H30"]
[null,"Contrôle 12H-19H","Contrôle 12H-19H"]
[null,"Contrôle 13H-20H","Contrôle 13H-20H"]
[null,"Contrôle 19H-02H30","Contrôle 19H-02H30"]
[null,"Contrôle 7H-12H / 14H30-17H","Contrôle 7H-12H / 14H30-17H"]
[null,"Contrôle Déch 6H-12H","Contrôle Déch 6H-12H"]
[null,"Contrôle Enc 13H-19H","Contrôle Enc 13H-19H"]
[null,"Contrôle Enc 5H-11H","Contrôle Enc 5H-11H"]
[null,"Contrôle OM 03H-09H","Contrôle OM 03H-09H"]
[null,"Contrôle OM 20H-02H","Contrôle OM 20H-02H"]
[null,"Contrôle Privé 19H00-02H30","Contrôle Privé 19H00- 02H30"]
[null,"Contrôle Privé 19H00-02H","Contrôle Privé 19H00-02H"]
[null,"Contrôle Privé 12H-19H","Contrôle Privé 12H-19H"]
[null,"Contrôle Privé 06H-13H30","Contrôle Privé 06H-13H30"]
[null,"Contrôle Privé 06H-14H","Contrôle Privé 06H-14H"]
[null,"EST","NICE EST"]
[null,"NORD","NICE NORD"]
[null,"NUIT","ENC NUIT 20H30-02H30"]
[null,"OUEST","NICE OUEST"]
[null,"Repos","Repos"]
[null,"Secrétariat 13H-18H","Secrétariat 13H-18H"]
[null,"Secrétariat 8H30-12H /12H30-17H","Secrétariat 8H30-12H /12H30-17H"]
[null,"Secrétariat 8H30-12H /13H-17H","Secrétariat 8H30-12H /13H-17H"]
[null,"Secrétariat 8H30-12H/12H45-16H15","Secrétariat 8H30-12H/12H45-16H15"]
[null,"Secrétariat 9H-12H /13H-17H /20H-21H30","Secrétariat 9H-12H /13H-17H /20H-21H30"]
[null,"Std Roger","Standard 11H-15H / 15H30-19H"]
[null,"Std Clément","Standard 8H-12H/13H-16H30"]
[null,"V.N.  A.M.","V.N.  A.M."]
[null,"V.N.  Après Midi","V.N.  Après Midi"]
[null,"V.N.  Matin","V.N.  Matin"]
[null,"VN 13H-20H","VN 13H-20H"]
[null,"NICE OUEST & VIEUX NICE","NICE OUEST & VIEUX NICE"]
[null,"NICE EST & VIEUX NICE","NICE EST & VIEUX NICE"]
[null,"NICE NORD & VIEUX NICE","NICE NORD & VIEUX NICE"]

{"sheet":"Planning Mensuel","index":2,"n_rows":39,"n_cols":61,"rows_kept":39,"cut":false,"hidden":false,"merged":[]}
[{"$f":"TRANSPOSE('Base de Travail Mensuelle'!A1:AM58)","v":"NOMS"},"Addario Grégory","Alliouane Saïd","Arnaud Fabrice","Audibert Michel","Ben Bouzid Bourhane","Cantelli Thomas","Cardinale Jean Claude","Courtois Alexis","Dhouimer Yassine","Ellena Thomas","Frendo Mathieu","Gandolin Adrien","Glaskoff Hervé","Guizani Samy","Mallo Alfred","Mandrea Thierry","Marcelli Alain","Marino Alain","Martinelli Julien","Marzarro Christopher","Mattei Patrick","Mongrandi Frédéric","Moraldo Adrien","Napolitano Walter","Orofino Carmelo","Outili Yassin","Perez Yann","Perrone Lucas","Rini Romain","Rodriguez franck","Tordo Fabien","Torre Jean Marie","Vanini Kévin","Viale Jonathan","Isoard Nicolas",0,"Bour Yvon","Dalmasso Yves","Féralis Cécile","Landrieux Nathalie","Moliner David","Piombino Jean-Marc","Rateau Laurent","Rosso Dominique",0,"Abile Gal Roger","Ferro Clément",0,"Arnaud Gérard","Fiorucci Alain","Peters Robert","Tripodi Patrick","Sartori Pierre","Vella Ferdinand",0,"Carlin Hélène","Tripodi Nadège",{"$error":"#N/A"},{"$error":"#N/A"},{"$error":"#N/A"}]
["PRESTATION","remplaçant","remplaçant","fourgon carton AMP","OUEST  Déchetterie","OUEST  Déchetterie","remplaçant","OUEST  Déchetterie","remplaçant","remplaçant","remplaçant","EST  Déchetterie","remplaçant","Benne Carton","fourgon carton matin","NORD  Déchetterie","OUEST  Déchetterie","EST  Déchetterie","remplaçant","fourgon carton matin","fourgon carton AMP","remplaçant","EST  Déchetterie",0,"remplaçant","remplaçant","remplaçant","fourgon carton AMP",0,"EST  Déchetterie",0,"remplaçant","Benne Carton","fourgon carton AMP","remplaçant","remplaçant",0,0,0,0,0,0,0,0,0,0,0,0,0,0,0,0,0,0,0,0,0,0,{"$error":"#N/A"},{"$error":"#N/A"},{"$error":"#N/A"}]
["2016-12-17","NUIT",0,0,0,0,0,0,"EST",0,0,"EST",0,"EST",0,0,"OUEST",0,"NORD","OUEST","Repos",0,0,0,"OUEST",0,0,0,0,0,0,"OUEST","EST","CARTON AP",0,0,0,"7H-12H / 14H-18H",0,0,"7H-12H / 14H-18H","4H-7H COMPACTEUR",0,0,"7H-12H / 14H-18H",0,"Repos","Repos",0,0,0,0,0,0,0,0,0,0,{"$error":"#N/A"},{"$error":"#N/A"},{"$error":"#N/A"}]
["2016-12-18",0,0,0,0,"OUEST",0,0,0,"V.N.  Matin",0,0,0,0,0,"NORD",0,"EST",0,0,"Repos",0,0,0,0,0,0,"OUEST",0,0,0,0,0,0,0,0,0,"7H-12H",0,0,0,0,"7H-12H",0,0,0,"Repos","Repos",0,0,0,0,0,0,0,0,0,0,{"$error":"#N/A"},{"$error":"#N/A"},{"$error":"#N/A"}]
["2016-12-19","ENC NUIT 20H30-02H30","ENC NUIT 20H30-02H30","CARTON AM","NICE OUEST","NICE OUEST",0,"Congés","ENC MATIN 5H-12H","NICE EST","ENC NUIT 20H30-02H30","NICE EST","ENC MATIN 5H-12H","B. CARTON","CARTON MATIN","Repos","NICE OUEST","NICE EST","ENC MATIN 5H-12H","CARTON MATIN","Repos","NICE NORD","Congés","ENC AM 12H30-19H30","ENC MATIN 5H-12H","NICE EST","ENC NUIT 20H30-02H30","CARTON AM","Congés","Congés","Congés","NICE OUEST","B. CARTON","CARTON AM","ENC NUIT 20H30-02H30",0,0,"Repos","7H-14H","12H-19H","B. CARTON","5H-12H","4-12H","9H-16H","12H-19H",0,"Standard 11H-15H / 15H30-19H","Standard 8H-12H/13H-16H30",0,"Contrôle 12H-19H","Contröle Privé 19H00- 02H30","Congés","Contröle 12H00-19H30","Contrôle Privé 06H-14H","Contrôle 19H-02H30",0,"Secrétariat 9H-12H /13H-17H /20H-21H30","Secrétariat 8H30-12H/12H45-16H15",{"$error":"#N/A"},{"$error":"#N/A"},{"$error":"#N/A"}]
["2016-12-20","ENC NUIT 20H30-02H30","ENC NUIT 20H30-02H30","CARTON AM","NICE OUEST","NICE OUEST",0,"Congés","ENC MATIN 5H-12H","NICE EST","ENC NUIT 20H30-02H30","NICE EST","ENC MATIN 5H-12H","B. CARTON","CARTON MATIN","NICE NORD","NICE OUEST","NICE EST","ENC MATIN 5H-12H","CARTON MATIN","CARTON AP","Repos","Congés","ENC AM 12H30-19H30","ENC MATIN 5H-12H","NICE EST","ENC NUIT 20H30-02H30","CARTON AM","Congés","Congés","Congés","NICE OUEST","B. CARTON","CARTON AM","ENC NUIT 20H30-02H30",0,0,"12H-19H","7H-14H","12H-19H","B. CARTON","5H-12H","4-12H","9H-16H","12H-19H",0,"Standard 11H-15H / 15H30-19H","Standard 8H-12H/13H-16H30",0,"Contrôle 12H-19H","Contrôle 13H-20H","Congés","Contröle 12H00-19H30","Contrôle Privé 06H-14H","Contrôle 19H-02H30",0,"Secrétariat 13H-18H","Secrétariat 8H30-12H/12H45-16H15",{"$error":"#N/A"},{"$error":"#N/A"},{"$error":"#N/A"}]
["2016-12-21","ENC NUIT 20H30-02H30","ENC NUIT 20H30-02H30","CARTON AM","NICE OUEST","Repos",0,"Congés","ENC MATIN 5H-12H","NICE EST","ENC NUIT 20H30-02H30","NICE EST","ENC MATIN 5H-12H","B. CARTON","CARTON MATIN","NICE NORD","NICE OUEST","NICE EST","NICE NORD","CARTON MATIN","CARTON AP","NICE NORD","Congés","ENC AM 12H30-19H30","ENC MATIN 5H-12H","NICE EST","ENC NUIT 20H30-02H30","CARTON AM","Congés","Congés","Congés","NICE OUEST","B. CARTON","CARTON AM","ENC NUIT 20H30-02H30",0,0,"12H-19H","B. CARTON","12H-19H","Repos","4-12H","5H-12H","9H-16H","12H-19H",0,"Standard 11H-15H / 15H30-19H","Standard 8H-12H/13H-16H30",0,"Contrôle 12H-19H","Contrôle 19H-02H30","Congés","Contröle 12H00-19H30","Contrôle Privé 19H00-02H","Contrôle 19H-02H30",0,"Congés","Repos",{"$error":"#N/A"},{"$error":"#N/A"},{"$error":"#N/A"}]
["2016-12-22","ENC NUIT 20H30-02H30","ENC NUIT 20H30-02H30","CARTON AM","NICE OUEST","NICE OUEST",0,"Congés","ENC MATIN 5H-12H","NICE EST","ENC NUIT 20H30-02H30","NICE EST","Repos","B. CARTON","CARTON MATIN","NICE NORD","NICE OUEST","NICE EST","ENC MATIN 5H-12H","CARTON MATIN","CARTON AP","ENC MATIN 5H-12H","Congés","Repos","ENC MATIN 5H-12H","NICE EST","ENC NUIT 20H30-02H30","CARTON AM","Congés","Congés","Congés","NICE OUEST","B. CARTON","CARTON AM","ENC NUIT 20H30-02H30",0,0,"12H-18H","5H-12H","12H-19H","B. CARTON","Repos","4-12H","9H-16H","12H-19H",0,"Congés","Standard 8H-12H/13H-16H30",0,"Congés","Contrôle 19H-02H30","Congés","Contröle 12H00-19H30","Contrôle Privé 12H-19H","Contrôle 19H-02H30",0,"Congés","Secrétariat 8H30-12H/12H45-16H15",{"$error":"#N/A"},{"$error":"#N/A"},{"$error":"#N/A"}]
["2016-12-23","ENC NUIT 20H30-02H30","ENC NUIT 20H30-02H30","CARTON AM","NICE OUEST","NICE OUEST",0,"Congés","Repos","NICE EST","ENC NUIT 20H30-02H30","NICE EST","ENC MATIN 5H-12H","B. CARTON","Repos","NICE NORD","NICE OUEST","NICE EST","CARTON MATIN","CARTON MATIN","CARTON AP","CARTON MATIN","Congés","ENC AM 12H30-19H30","ENC MATIN 5H-12H","NICE EST","ENC NUIT 20H30-02H30","CARTON AM","Congés","Congés","Congés","NICE OUEST","B. CARTON","CARTON AM","ENC NUIT 20H30-02H30",0,0,"12H-18H","Congés","12H-19H","B. CARTON","4-12H","5H-12H","9H-16H","12H-19H",0,"Congés","Standard 8H-12H/13H-16H30",0,"Congés","Contrôle 19H-02H30","Congés","Contröle 12H00-19H30","Contrôle Privé 06H-13H30","Contrôle 19H-02H30",0,"Congés","Secrétariat 8H30-12H/12H45-16H15",{"$error":"#N/A"},{"$error":"#N/A"},{"$error":"#N/A"}]
["2016-12-24","Repos","Repos","Repos","NICE OUEST","NICE OUEST",0,"Congés","NICE EST","Repos","Repos","Repos","NICE EST","Repos","EST","NICE NORD","Repos","Repos","Repos","Repos","CARTON AP","Repos","Congés","NICE OUEST","Repos","Repos","Repos","Repos","Congés","Congés","Congés","Repos","Repos","Repos","Repos",0,0,"7H-14H",0,0,"7H-14H","4H-14H COMPACTEUR",0,0,0,0,"Congés","Repos",0,"Congés","Repos","Repos","Repos","Repos","Repos",0,"Congés",0,{"$error":"#N/A"},{"$error":"#N/A"},{"$error":"#N/A"}]
["2016-12-25","Repos","V.N.  Après Midi","V.N.  Après Midi","Repos","Repos",0,"Congés","Repos","V.N.  Matin","Repos","Repos","Repos","Repos","Repos","Repos","Repos","Repos","Repos","Repos","Repos","Repos","Congés","Repos","Repos","Repos","Repos","Repos","Congés","Congés","Congés","Repos","Repos","Repos","Repos",0,0,0,0,0,0,0,0,0,0,0,"Congés","Repos",0,"Congés","Contrôle OM 20H-02H","Repos","Contrôle Enc 13H-19H","Repos","Repos",0,"Congés",0,{"$error":"#N/A"},{"$error":"#N/A"},{"$error":"#N/A"}]
["2016-12-26","ENC MATIN 5H-12H","ENC MATIN 5H-12H","CARTON AM","NICE OUEST","NICE OUEST",0,"NICE OUEST","ENC NUIT 20H30-02H30","NICE EST","NICE OUEST","NICE EST","ENC NUIT 20H30-02H30","Congés","CARTON MATIN","NICE NORD","Congés","NICE EST","ENC MATIN 5H-12H","Congés","CARTON AP","ENC MATIN 5H-12H","NICE EST","Congés","ENC NUIT 20H30-02H30","B. CARTON","ENC MATIN 5H-12H","CARTON AM","ENC NUIT 20H30-02H30","Congés","ENC AM 12H30-19H30","ENC NUIT 20H30-02H30","B. CARTON","Repos","ENC MATIN 5H-12H",0,0,"Repos","9H-16H","Congés","B. CARTON","4-12H","5H-12H","9H-16H","12H-19H",0,"Congés","Standard 8H-12H/13H-16H30",0,"Congés","Contrôle 19H-02H30","Contrôle 7H-12H / 14H30-17H","Contröle 12H00-19H30","Contrôle Privé 06H-14H","Congés",0,"Congés","Secrétariat 8H30-12H/12H45-16H15",{"$error":"#N/A"},{"$error":"#N/A"},{"$error":"#N/A"}]
["2016-12-27","ENC MATIN 5H-12H","ENC MATIN 5H-12H","CARTON AM","NICE OUEST","NICE OUEST",0,"NICE OUEST","ENC NUIT 20H30-02H30","NICE EST","NICE OUEST","NICE EST","ENC NUIT 20H30-02H30","Congés","CARTON MATIN","NICE NORD","Congés","NICE EST","Repos","Congés","CARTON AP","Repos","NICE EST","Congés","ENC NUIT 20H30-02H30","B. CARTON","ENC MATIN 5H-12H","CARTON AM","ENC NUIT 20H30-02H30","Congés","ENC AM 12H30-19H30","ENC NUIT 20H30-02H30","B. CARTON","CARTON AM","ENC MATIN 5H-12H",0,0,"12H-19H","5H-12H","congés","B. CARTON","4-12H","Repos","9H-16H","12H-19H",0,"Congés","Standard 8H-12H/13H-16H30",0,"Congés","Contrôle 19H-02H30","Contrôle 7H-12H / 14H30-17H","Contröle 12H00-19H30","Contrôle Privé 06H-14H","Congés",0,"Congés","Congés",{"$error":"#N/A"},{"$error":"#N/A"},{"$error":"#N/A"}]
["2016-12-28","ENC MATIN 5H-12H","Repos","CARTON AM","NICE OUEST","NICE OUEST",0,"Repos","ENC NUIT 20H30-02H30","NICE EST","NICE OUEST","NICE EST","ENC NUIT 20H30-02H30","Congés","CARTON MATIN","NICE NORD","Congés","NICE EST","ENC MATIN 5H-12H","Congés","CARTON AP","ENC MATIN 5H-12H","Repos","Congés","ENC NUIT 20H30-02H30","B. CARTON","ENC MATIN 5H-12H","CARTON AM","ENC NUIT 20H30-02H30","Congés","ENC AM 12H30-19H30","ENC NUIT 20H30-02H30","B. CARTON","CARTON AM","ENC MATIN 5H-12H",0,0,"12H-19H","B. CARTON","Congés","Repos","4-12H","5H-12H","9H-16H","12H-19H",0,"Congés","Standard 8H-12H/13H-16H30",0,"Congés","Contrôle 19H-02H30","Contrôle 7H-12H / 14H30-17H","Contröle 12H00-19H30","Contrôle Privé 19H00-02H","Congés",0,"Secrétariat 8H30-12H /13H-17H","Congés",{"$error":"#N/A"},{"$error":"#N/A"},{"$error":"#N/A"}]
["2016-12-29","Repos","ENC MATIN 5H-12H","CARTON AM","NICE OUEST","NICE OUEST",0,"NICE OUEST","ENC NUIT 20H30-02H30","NICE EST","NICE OUEST","NICE EST","ENC NUIT 20H30-02H30","Congés","CARTON MATIN","NICE NORD","Congés","NICE EST","ENC MATIN 5H-12H","Congés","CARTON AP","ENC MATIN 5H-12H","NICE EST","Congés","ENC NUIT 20H30-02H30","B. CARTON","Repos","CARTON AM","ENC NUIT 20H30-02H30","Congés","ENC AM 12H30-19H30","ENC NUIT 20H30-02H30","B. CARTON","CARTON AM","ENC MATIN 5H-12H",0,0,"12H-18H","9H-16H","Congés","B. CARTON","4-12H","5H-12H","9H-16H","Congés",0,"Congés","Standard 8H-12H/13H-16H30",0,"Contrôle 12H-19H","Repos","Contrôle 7H-12H / 14H30-17H","Contröle 12H00-19H30","Contrôle Privé 12H-19H","Congés",0,"Secrétariat 9H-12H /13H-17H /20H-21H30","Congés",{"$error":"#N/A"},{"$error":"#N/A"},{"$error":"#N/A"}]
["2016-12-30","ENC MATIN 5H-12H","ENC MATIN 5H-12H","CARTON AM","NICE OUEST","NICE OUEST",0,"NICE OUEST","ENC NUIT 20H30-02H30","NICE EST","NICE OUEST","NICE EST","ENC NUIT 20H30-02H30","Congés","CARTON MATIN","NICE NORD","Congés","NICE EST","ENC MATIN 5H-12H","Congés","CARTON AP","ENC MATIN 5H-12H","NICE EST","Congés","ENC NUIT 20H30-02H30","B. CARTON","ENC MATIN 5H-12H","CARTON AM","ENC NUIT 20H30-02H30","Congés","ENC AM 12H30-19H30","ENC NUIT 20H30-02H30","B. CARTON","CARTON AM","Repos",0,0,"12H-18H","9H-16H","Congés","B. CARTON","4-12H","5H-12H","9H-16H","Congés",0,"Congés","Standard 8H-12H/13H-16H30",0,"Contrôle 12H-19H","Contrôle 19H-02H30","Contrôle 7H-12H / 14H30-17H","Contröle 12H00-19H30","Contrôle Privé 06H-13H30","Congés",0,"Secrétariat 8H30-12H /12H30-17H","Congés",{"$error":"#N/A"},{"$error":"#N/A"},{"$error":"#N/A"}]
["2016-12-31","NICE OUEST","OUEST","Repos","Repos","Repos",0,"NICE OUEST","Repos","Repos","NICE EST","Repos","Repos","Congés","Repos","Repos","Congés","Repos","NICE NORD","Congés","Repos","NICE NORD","NICE EST","Congés","Repos","Repos","NICE OUEST","Repos","Repos","Congés","Repos","Repos","Repos","CARTON AM","NICE EST",0,0,"7H-14H",0,0,"7H-14H",0,"4H-14H COMPACTEUR",0,0,0,"Congés","Repos",0,"Repos","Contrôle Enc 5H-11H","Repos","Repos","Repos","Congés",0,"Repos","Congés",{"$error":"#N/A"},{"$error":"#N/A"},{"$error":"#N/A"}]
["2017-01-01","Repos","Repos","Repos","Repos","Repos",0,"Repos","Repos","V.N.  Matin","Repos","Repos","Repos","Congés","V.N.  Après Midi","Repos","Congés","Repos","Repos","Congés","Repos","Repos","Repos","Congés","Repos","Repos","Repos","Repos","V.N.  Après Midi","Congés","V.N.  A.M.","Repos","Repos","Repos","Repos",0,0,0,0,0,0,0,0,0,0,0,"Congés","Repos",0,"Repos","Contrôle Enc 5H-11H","Repos","Repos","Repos","Congés",0,"Repos","Congés",{"$error":"#N/A"},{"$error":"#N/A"},{"$error":"#N/A"}]
["2017-01-02","ENC MATIN 5H-12H","ENC NUIT 20H30-02H30","Repos","Congés","NICE OUEST","Repos","NICE OUEST","ENC NUIT 20H30-02H30","NICE EST","NICE OUEST","NICE EST","ENC NUIT 20H30-02H30","B. CARTON","CARTON MATIN","NICE NORD","NICE OUEST","Congés","ENC MATIN 5H-12H","CARTON MATIN","CARTON AP","ENC MATIN 5H-12H","NICE EST","CARTON AM","ENC NUIT 20H30-02H30","NICE EST","ENC MATIN 5H-12H","Congés","ENC NUIT 20H30-02H30","NICE EST","ENC AM 12H30-19H30","ENC NUIT 20H30-02H30","B. CARTON","CARTON AM","ENC MATIN 5H-12H",0,0,"Repos","5H-12H","12H-19H","B. CARTON","Congés","4-12H","9H-16H","12H-19H",0,"Standard 11H-15H / 15H30-19H","Standard 8H-12H/13H-16H30",0,"Contrôle 12H-19H","Contrôle 19H-02H30","Contrôle 7H-12H / 14H30-17H","Contröle 12H00-19H30","Contrôle Privé 06H-14H","Contrôle 13H-20H",0,"Secrétariat 9H-12H /13H-17H /20H-21H30","Congés",{"$error":"#N/A"},{"$error":"#N/A"},{"$error":"#N/A"}]
["2017-01-03","ENC MATIN 5H-12H","ENC NUIT 20H30-02H30","CARTON AM","Congés","NICE OUEST","ENC MATIN 5H-12H","NICE OUEST","ENC NUIT 20H30-02H30","NICE EST","NICE OUEST","NICE EST","ENC NUIT 20H30-02H30","Repos","CARTON MATIN","NICE NORD","NICE OUEST","Congés","ENC MATIN 5H-12H","CARTON MATIN","CARTON AP","ENC MATIN 5H-12H","NICE EST","CARTON AM","ENC NUIT 20H30-02H30","B. CARTON","ENC MATIN 5H-12H","Congés","ENC NUIT 20H30-02H30","NICE EST","ENC AM 12H30-19H30","ENC NUIT 20H30-02H30","B. CARTON","CARTON AM","ENC MATIN 5H-12H",0,0,"Congés","5H-12H","12H-19H","B. CARTON","Congés","4-12H","9H-16H","12H-19H",0,"Standard 11H-15H / 15H30-19H","Standard 8H-12H/13H-16H30",0,"Contrôle 12H-19H","Contrôle 19H-02H30","Contrôle 7H-12H / 14H30-17H","Contröle 12H00-19H30","Contrôle Privé 06H-14H","Contrôle 19H-02H30",0,"Secrétariat 13H-18H","Secrétariat 8H30-12H/12H45-16H15",{"$error":"#N/A"},{"$error":"#N/A"},{"$error":"#N/A"}]
["2017-01-04","ENC MATIN 5H-12H","ENC NUIT 20H30-02H30","CARTON AM","Congés","NICE OUEST","ENC MATIN 5H-12H","NICE OUEST","ENC NUIT 20H30-02H30","NICE EST","NICE OUEST","Repos","ENC NUIT 20H30-02H30","B. CARTON","CARTON MATIN","NICE NORD","Repos","Congés","ENC MATIN 5H-12H","CARTON MATIN","CARTON AP","ENC MATIN 5H-12H","NICE EST","CARTON AM","ENC NUIT 20H30-02H30","NICE EST","ENC MATIN 5H-12H","Congés","ENC NUIT 20H30-02H30","NICE EST","ENC AM 12H30-19H30","ENC NUIT 20H30-02H30","B. CARTON","CARTON AM","ENC MATIN 5H-12H",0,0,"12H-19H","5H-12H","B. CARTON","Repos","Congés","4-12H","9H-16H","12H-19H",0,"Standard 11H-15H / 15H30-19H","Standard 8H-12H/13H-16H30",0,"Contrôle 12H-19H","Congés","Contrôle 7H-12H / 14H30-17H","Contröle 12H00-19H30","Contrôle Privé 19H00-02H","Contrôle 19H-02H30",0,"Secrétariat 8H30-12H /13H-17H","Repos",{"$error":"#N/A"},{"$error":"#N/A"},{"$error":"#N/A"}]
["2017-01-05","ENC MATIN 5H-12H","ENC NUIT 20H30-02H30","CARTON AM","Congés","NICE OUEST","ENC MATIN 5H-12H","NICE OUEST","ENC NUIT 20H30-02H30","NICE EST","Repos","NICE EST","ENC NUIT 20H30-02H30","B. CARTON","CARTON MATIN","NICE NORD","NICE OUEST","Congés","ENC MATIN 5H-12H","CARTON MATIN","CARTON AP","ENC MATIN 5H-12H","NICE EST","CARTON AM","ENC NUIT 20H30-02H30","Repos","ENC MATIN 5H-12H","Congés","ENC NUIT 20H30-02H30","NICE EST","ENC AM 12H30-19H30","ENC NUIT 20H30-02H30","B. CARTON","CARTON AM","ENC MATIN 5H-12H",0,0,"12H-18H","5H-12H","12H-19H","B. CARTON","Congés","4-12H","9H-16H","12H-19H",0,"Standard 11H-15H / 15H30-19H","Standard 8H-12H/13H-16H30",0,"Contrôle 12H-19H","Contrôle 19H-02H30","Contrôle 7H-12H / 14H30-17H","Contröle 12H00-19H30","Contrôle Privé 12H-19H","Contrôle 19H-02H30",0,"Secrétariat 9H-12H /13H-17H /20H-21H30","Secrétariat 8H30-12H/12H45-16H15",{"$error":"#N/A"},{"$error":"#N/A"},{"$error":"#N/A"}]
["2017-01-06","ENC MATIN 5H-12H","ENC NUIT 20H30-02H30","CARTON AM","Congés","NICE OUEST","ENC MATIN 5H-12H","NICE OUEST","ENC NUIT 20H30-02H30","Repos","NICE OUEST","NICE EST","ENC NUIT 20H30-02H30","B. CARTON","CARTON MATIN","NICE NORD","NICE OUEST","Congés","ENC MATIN 5H-12H","CARTON MATIN","CARTON AP","ENC MATIN 5H-12H","NICE EST","CARTON AM","ENC NUIT 20H30-02H30","NICE EST","ENC MATIN 5H-12H","Congés","ENC NUIT 20H30-02H30","NICE EST","ENC AM 12H30-19H30","ENC NUIT 20H30-02H30","B. CARTON","CARTON AM","ENC MATIN 5H-12H",0,0,"12H-18H","5H-12H","Repos","B. CARTON","Congés","4-12H","9H-16H","12H-19H",0,"Standard 11H-15H / 15H30-19H","Standard 8H-12H/13H-16H30",0,"Contrôle 12H-19H","Contrôle 19H-02H30","Contrôle 7H-12H / 14H30-17H","Contröle 12H00-19H30","Contrôle Privé 06H-13H30","Repos",0,"Secrétariat 8H30-12H /12H30-17H","Secrétariat 8H30-12H/12H45-16H15",{"$error":"#N/A"},{"$error":"#N/A"},{"$error":"#N/A"}]
["2017-01-07","Repos","Repos","CARTON AM","Congés","Repos","NICE OUEST","Repos","Repos","NICE EST","NICE OUEST","NICE EST","Repos","NICE OUEST","Repos","Repos","NICE OUEST","Congés","Repos","Repos","Repos","Repos","NICE EST","Repos","Repos","Repos","Repos","Congés","Repos","Repos","Repos","Repos","Repos","Repos","Repos",0,0,"7H-12H / 14H-18H",0,"7H-12H / 14H-18H","7H-12H / 14H-18H",0,"4H-7H COMPACTEUR",0,0,0,"Repos","Repos",0,"Repos","Repos","Repos","Repos","Repos","Contrôle 19H-02H30",0,"Repos","Repos",{"$error":"#N/A"},{"$error":"#N/A"},{"$error":"#N/A"}]
["2017-01-08","V.N.  Matin","Repos","Repos","Congés","NICE OUEST","Repos","NICE OUEST","Repos","Repos","Repos","Repos","V.N.  Après Midi","Repos","Repos","Repos","Repos","Congés","NICE EST","NICE OUEST","Repos","NICE EST","Repos","Repos","Repos","Repos","V.N.  Après Midi","Congés","V.N.  Après Midi","Repos","Repos","Repos","Repos","Repos","Repos",0,0,"7H-12H",0,0,"Compact.+Est\r7H-12H",0,0,0,0,0,"Repos","Repos",0,"Contrôle OM 03H-09H","Contrôle OM 20H-02H","Contrôle Déch 6H-12H","Repos","Repos","Repos",0,"Repos","Repos",{"$error":"#N/A"},{"$error":"#N/A"},{"$error":"#N/A"}]
["2017-01-09","ENC MATIN 5H-12H","ENC MATIN 5H-12H","CARTON AM","NICE OUEST","NICE OUEST","ENC NUIT 20H30-02H30","NICE OUEST","ENC NUIT 20H30-02H30","NICE EST","ENC MATIN 5H-12H","NICE EST","ENC NUIT 20H30-02H30","B. CARTON","CARTON MATIN","NICE NORD","NICE OUEST","NICE EST","ENC MATIN 5H-12H","CARTON MATIN","CARTON AP","ENC MATIN 5H-12H","NICE EST","CARTON AM","ENC MATIN 5H-12H","NICE EST","ENC NUIT 20H30-02H30","Repos","ENC AM 12H30-19H30","NICE EST","ENC AM 12H30-19H30","ENC NUIT 20H30-02H30","B. CARTON","Congés","ENC NUIT 20H30-02H30",0,0,"Repos","Repos","12H-19H","B. CARTON","4-12H","5H-12H","9H-16H","12H-19H",0,"Standard 11H-15H / 15H30-19H","Standard 8H-12H/13H-16H30",0,"Contrôle 12H-19H","Contrôle 19H-02H30","Contrôle 7H-12H / 14H30-17H","Contröle 12H00-19H30","Contrôle Privé 06H-14H","Contrôle 13H-20H",0,"Secrétariat 9H-12H /13H-17H /20H-21H30","Secrétariat 8H30-12H/12H45-16H15",{"$error":"#N/A"},{"$error":"#N/A"},{"$error":"#N/A"}]
["2017-01-10","ENC MATIN 5H-12H","ENC MATIN 5H-12H","CARTON AM","NICE OUEST","NICE OUEST","ENC NUIT 20H30-02H30","NICE OUEST","ENC NUIT 20H30-02H30","NICE EST","ENC MATIN 5H-12H","NICE EST","ENC NUIT 20H30-02H30","B. CARTON","CARTON MATIN","NICE NORD","NICE OUEST","Repos","ENC MATIN 5H-12H","CARTON MATIN","CARTON AP","ENC MATIN 5H-12H","NICE EST","CARTON AM","ENC MATIN 5H-12H","B. CARTON","ENC NUIT 20H30-02H30","CARTON AM","ENC AM 12H30-19H30","NICE EST","ENC AM 12H30-19H30","ENC NUIT 20H30-02H30","Repos","Congés","ENC NUIT 20H30-02H30",0,0,"12H-19H","7H-14H","12H-19H","B. CARTON","4-12H","5H-12H","9H-16H","12H-19H",0,"Standard 11H-15H / 15H30-19H","Standard 8H-12H/13H-16H30",0,"Contrôle 12H-19H","Contrôle 19H-02H30","Contrôle 7H-12H / 14H30-17H","Contröle 12H00-19H30","Contrôle Privé 06H-14H","Contrôle 19H-02H30",0,"Secrétariat 13H-18H","Secrétariat 8H30-12H/12H45-16H15",{"$error":"#N/A"},{"$error":"#N/A"},{"$error":"#N/A"}]
["2017-01-11","ENC MATIN 5H-12H","ENC MATIN 5H-12H","CARTON AM","NICE OUEST","NICE OUEST","ENC NUIT 20H30-02H30","NICE OUEST","ENC NUIT 20H30-02H30","NICE EST","ENC MATIN 5H-12H","NICE EST","ENC NUIT 20H30-02H30","B. CARTON","CARTON MATIN","NICE NORD","NICE OUEST","NICE EST","CARTON MATIN","Repos","CARTON AP","CARTON MATIN","NICE EST","CARTON AM","ENC MATIN 5H-12H","NICE EST","ENC NUIT 20H30-02H30","CARTON AM","ENC AM 12H30-19H30","Repos","ENC AM 12H30-19H30","ENC NUIT 20H30-02H30","B. CARTON","Congés","ENC NUIT 20H30-02H30",0,0,"Congés","B. CARTON","12H-19H","Repos","4-12H","5H-12H","9H-16H","12H-19H",0,"Standard 11H-15H / 15H30-19H","Standard 8H-12H/13H-16H30",0,"Contrôle 12H-19H","Contrôle 19H-02H30","Contrôle 7H-12H / 14H30-17H","Contröle 12H00-19H30","Contrôle Privé 19H00-02H","Contrôle 19H-02H30",0,"Secrétariat 8H30-12H /13H-17H","Repos",{"$error":"#N/A"},{"$error":"#N/A"},{"$error":"#N/A"}]
["2017-01-12","ENC MATIN 5H-12H","ENC MATIN 5H-12H","CARTON AM","NICE OUEST","NICE OUEST","ENC NUIT 20H30-02H30","NICE OUEST","ENC NUIT 20H30-02H30","NICE EST","ENC MATIN 5H-12H","NICE EST","ENC NUIT 20H30-02H30","B. CARTON","CARTON MATIN","NICE NORD","NICE OUEST","NICE EST","ENC MATIN 5H-12H","CARTON MATIN","CARTON AP","ENC MATIN 5H-12H","NICE EST","CARTON AM","ENC MATIN 5H-12H","ENC AM 12H30-19H30","ENC NUIT 20H30-02H30","CARTON AM","ENC AM 12H30-19H30","NICE EST","Repos","ENC NUIT 20H30-02H30","B. CARTON","Congés","ENC NUIT 20H30-02H30",0,0,"12H-18H","7H-14H","12H-19H","B. CARTON","4-12H","5H-12H","9H-16H","12H-19H",0,"Standard 11H-15H / 15H30-19H","Standard 8H-12H/13H-16H30",0,"Contrôle 12H-19H","Contrôle 19H-02H30","Contrôle 7H-12H / 14H30-17H","Contröle 12H00-19H30","Contrôle Privé 12H-19H","Contrôle 19H-02H30",0,"Secrétariat 9H-12H /13H-17H /20H-21H30","Secrétariat 8H30-12H/12H45-16H15",{"$error":"#N/A"},{"$error":"#N/A"},{"$error":"#N/A"}]
["2017-01-13","ENC MATIN 5H-12H","ENC MATIN 5H-12H","CARTON AM","Repos","NICE OUEST","ENC NUIT 20H30-02H30","NICE OUEST","ENC NUIT 20H30-02H30","NICE EST","ENC MATIN 5H-12H","NICE EST","ENC NUIT 20H30-02H30","B. CARTON","CARTON MATIN","NICE NORD","NICE OUEST","NICE EST","ENC MATIN 5H-12H","CARTON MATIN","CARTON AP","ENC MATIN 5H-12H","NICE EST","CARTON AM","Repos","ENC AM 12H30-19H30","ENC NUIT 20H30-02H30","CARTON AM","Repos","NICE EST","ENC AM 12H30-19H30","ENC NUIT 20H30-02H30","B. CARTON","Congés","ENC NUIT 20H30-02H30",0,0,"12H-18H","7H-14H","12H-19H","B. CARTON","4-12H","5H-12H","9H-16H","12H-19H",0,"Standard 11H-15H / 15H30-19H","Standard 8H-12H/13H-16H30",0,"Contrôle 12H-19H","Contrôle 19H-02H30","Contrôle 7H-12H / 14H30-17H","Contröle 12H00-19H30","Contrôle Privé 06H-13H30","Contrôle 19H-02H30",0,"Secrétariat 8H30-12H /12H30-17H","Secrétariat 8H30-12H/12H45-16H15",{"$error":"#N/A"},{"$error":"#N/A"},{"$error":"#N/A"}]
["2017-01-14","Repos","Repos","Repos","NICE OUEST","Repos","Repos","Repos","Repos","Repos","Repos","Repos","Repos","Repos","Repos","Repos","Repos","NICE EST","Repos","NICE OUEST","Repos","Repos","Repos","Repos","NICE OUEST","Repos","Repos","CARTON AM","NICE NORD","NICE EST","NICE OUEST","Repos","NICE EST","Congés","Repos",0,0,"7H-12H / 14H-18H","7H-12H / 14H-18H",0,"7H-12H / 14H-18H","4H-7H COMPACTEUR",0,0,0,0,"Repos","Repos",0,"Repos","Repos","Repos","Repos","Repos","Repos",0,"Repos","Repos",{"$error":"#N/A"},{"$error":"#N/A"},{"$error":"#N/A"}]
["2017-01-15","Repos","Repos","Repos","Repos","Repos","Repos","Repos","Repos","Repos","NICE OUEST & VIEUX NICE","NICE EST","V.N.  Matin","V.N.  Après Midi","NICE NORD & VIEUX NICE","Repos","NICE OUEST","Repos","Repos","Repos","Repos","Repos","Repos","Repos","Repos","Repos","Repos","Repos","Repos","Repos","Repos","Repos","Repos","Congés","NICE NORD",0,0,"7H-12H",0,"compact.+ Est\r7H-12H",0,0,0,0,0,0,"Repos","Repos",0,"Repos","Repos","Contrôle Déch 6H-12H","Repos","Repos","Contrôle OM 20H-02H",0,"Repos","Repos",{"$error":"#N/A"},{"$error":"#N/A"},{"$error":"#N/A"}]
["2017-01-16","ENC NUIT 20H30-02H30","ENC NUIT 20H30-02H30","CARTON AM","NICE OUEST","NICE OUEST","ENC MATIN 5H-12H","NICE OUEST","ENC MATIN 5H-12H","NICE EST","ENC NUIT 20H30-02H30","NICE EST","ENC MATIN 5H-12H","B. CARTON","CARTON MATIN","NICE NORD","NICE OUEST","NICE EST","ENC MATIN 5H-12H","CARTON MATIN","Repos","ENC MATIN 5H-12H","NICE EST","ENC AM 12H30-19H30","ENC MATIN 5H-12H","ENC AM 12H30-19H30","ENC NUIT 20H30-02H30","CARTON AM","ENC NUIT 20H30-02H30","NICE EST","ENC AM 12H30-19H30","ENC MATIN 5H-12H","B. CARTON","CARTON AM","ENC NUIT 20H30-02H30",0,0,"Repos","7H-14H","12H-19H","B. CARTON","5H-12H","4-12H","9H-16H","12H-19H",0,"Standard 11H-15H / 15H30-19H","Standard 8H-12H/13H-16H30",0,"Contrôle 12H-19H","Contrôle 19H-02H30","Contrôle 7H-12H / 14H30-17H","Contröle 12H00-19H30","Contrôle Privé 06H-14H","Contrôle 13H-20H",0,"Secrétariat 9H-12H /13H-17H /20H-21H30","Secrétariat 8H30-12H/12H45-16H15",{"$error":"#N/A"},{"$error":"#N/A"},{"$error":"#N/A"}]
["2017-01-17","ENC NUIT 20H30-02H30","ENC NUIT 20H30-02H30","CARTON AM","NICE OUEST","NICE OUEST","ENC MATIN 5H-12H","NICE OUEST","ENC MATIN 5H-12H","NICE EST","ENC NUIT 20H30-02H30","NICE EST","ENC MATIN 5H-12H","B. CARTON","CARTON MATIN","NICE NORD","NICE OUEST","NICE EST","ENC MATIN 5H-12H","CARTON MATIN","CARTON AP","ENC MATIN 5H-12H","NICE EST","ENC AM 12H30-19H30","ENC MATIN 5H-12H","ENC AM 12H30-19H30","ENC NUIT 20H30-02H30","CARTON AM","ENC NUIT 20H30-02H30","NICE EST","ENC AM 12H30-19H30","ENC MATIN 5H-12H","B. CARTON","CARTON AM","ENC NUIT 20H30-02H30",0,0,"12H-19H","7H-14H","12H-19H","B. CARTON","5H-12H","4-12H","9H-16H","12H-19H",0,"Standard 11H-15H / 15H30-19H","Standard 8H-12H/13H-16H30",0,"Contrôle 12H-19H","Contrôle 13H-20H","Contrôle 7H-12H / 14H30-17H","Contröle 12H00-19H30","Contrôle Privé 06H-14H","Contrôle 19H-02H30",0,"Secrétariat 13H-18H","Secrétariat 8H30-12H/12H45-16H15",{"$error":"#N/A"},{"$error":"#N/A"},{"$error":"#N/A"}]
["2017-01-18","ENC NUIT 20H30-02H30","ENC NUIT 20H30-02H30","CARTON AM","NICE OUEST","Repos","Repos","NICE OUEST","ENC MATIN 5H-12H","NICE EST","ENC NUIT 20H30-02H30","NICE EST","ENC MATIN 5H-12H","B. CARTON","CARTON MATIN","NICE NORD","NICE OUEST","NICE EST","ENC MATIN 5H-12H","CARTON MATIN","CARTON AP","ENC MATIN 5H-12H","NICE EST","ENC AM 12H30-19H30","ENC MATIN 5H-12H","ENC AM 12H30-19H30","ENC NUIT 20H30-02H30","CARTON AM","ENC NUIT 20H30-02H30","NICE EST","ENC AM 12H30-19H30","ENC MATIN 5H-12H","B. CARTON","CARTON AM","ENC NUIT 20H30-02H30",0,0,"Congés","B. CARTON","12H-19H","Repos","5H-12H","4-12H","9H-16H","12H-19H",0,"Standard 11H-15H / 15H30-19H","Standard 8H-12H/13H-16H30",0,"Contrôle 12H-19H","Contrôle 19H-02H30","Contrôle 7H-12H / 14H30-17H","Contröle 12H00-19H30","Contrôle Privé 19H00-02H","Contrôle 19H-02H30",0,"Secrétariat 8H30-12H /13H-17H","Repos",{"$error":"#N/A"},{"$error":"#N/A"},{"$error":"#N/A"}]
["2017-01-19","ENC NUIT 20H30-02H30","ENC NUIT 20H30-02H30","CARTON AM","NICE OUEST","NICE OUEST","ENC MATIN 5H-12H","NICE OUEST","ENC MATIN 5H-12H","NICE EST","ENC NUIT 20H30-02H30","NICE EST","Repos","B. CARTON","CARTON MATIN","NICE NORD","NICE OUEST","NICE EST","ENC MATIN 5H-12H","CARTON MATIN","CARTON AP","ENC MATIN 5H-12H","NICE EST","ENC AM 12H30-19H30","Repos","ENC AM 12H30-19H30","ENC NUIT 20H30-02H30","CARTON AM","ENC NUIT 20H30-02H30","NICE EST","ENC AM 12H30-19H30","ENC MATIN 5H-12H","B. CARTON","CARTON AM","ENC NUIT 20H30-02H30",0,0,"12H-18H","7H-14H","12H-19H","B. CARTON","5H-12H","4-12H","9H-16H","12H-19H",0,"Standard 11H-15H / 15H30-19H","Standard 8H-12H/13H-16H30",0,"Contrôle 12H-19H","Contrôle 19H-02H30","Contrôle 7H-12H / 14H30-17H","Contröle 12H00-19H30","Contrôle Privé 12H-19H","VN 13H-20H",0,"Secrétariat 9H-12H /13H-17H /20H-21H30","Colonne1",{"$error":"#N/A"},{"$error":"#N/A"},{"$error":"#N/A"}]
["2017-01-20","ENC NUIT 20H30-02H30","ENC NUIT 20H30-02H30","CARTON AM","NICE OUEST","NICE OUEST","ENC MATIN 5H-12H","NICE OUEST","Repos","NICE EST","ENC NUIT 20H30-02H30","NICE EST","ENC MATIN 5H-12H","B. CARTON","CARTON MATIN","NICE NORD","NICE OUEST","NICE EST","ENC MATIN 5H-12H","CARTON MATIN","CARTON AP","ENC MATIN 5H-12H","NICE EST","ENC AM 12H30-19H30","ENC MATIN 5H-12H","ENC AM 12H30-19H30","ENC NUIT 20H30-02H30","CARTON AM","ENC NUIT 20H30-02H30","NICE EST","ENC AM 12H30-19H30","Repos","B. CARTON","CARTON AM","ENC NUIT 20H30-02H30",0,0,"12H-18H","7H-14H","12H-19H","B. CARTON","5H-12H","4-12H","Repos","Repos",0,"Standard 11H-15H / 15H30-19H","Standard 8H-12H/13H-16H30",0,"Contrôle 12H-19H","Contrôle 19H-02H30","Contrôle 7H-12H / 14H30-17H","Contröle 12H00-19H30","Contrôle Privé 06H-13H30","VN 13H-20H",0,"Secrétariat 8H30-12H /12H30-17H","Colonne2",{"$error":"#N/A"},{"$error":"#N/A"},{"$error":"#N/A"}]
["2017-01-21","Repos","Repos","Repos","Repos","NICE OUEST","NICE EST","Repos","NICE EST","Repos","Repos","Repos","NICE EST","Repos","Repos","Repos","Repos","Repos","Repos","Repos","CARTON AP","Repos","Repos","Repos","NICE OUEST","Repos",0,0,0,0,0,"NICE OUEST",0,0,0,0,0,"7H-12H / 14H-18H",0,0,"7H-12H / 14H-18H",0,"4H-7H COMPACTEUR",0,"7H-12H / 14H-18H",0,"Repos","Repos",0,"Repos","Repos","Repos","Repos","Repos","Repos",0,"Repos","Repos",{"$error":"#N/A"},{"$error":"#N/A"},{"$error":"#N/A"}]
["2017-01-22","Repos","Repos","Repos","Repos",0,"Repos","Repos","Repos",0,"Repos",0,"Repos","Repos",0,"Repos","Repos",0,"Repos",0,0,0,"Repos",0,"Repos",0,0,0,0,0,0,0,0,0,0,0,0,"7H-12H",0,0,0,0,0,0,0,0,"Repos","Repos",0,"Repos","Repos","Repos","Repos","Repos","Repos",0,"Repos","Repos",{"$error":"#N/A"},{"$error":"#N/A"},{"$error":"#N/A"}]

{"sheet":"ABILE GAL","index":3,"n_rows":48,"n_cols":12,"rows_kept":48,"cut":false,"hidden":false,"merged":[[40,2,45,5],[0,0,1,2],[0,3,1,5],[0,6,1,11],[2,0,2,1],[2,2,2,5],[57,2,57,4],[46,0,46,5],[47,2,47,4],[48,2,48,4],[49,2,49,4],[50,2,50,4],[51,2,51,4],[52,2,52,4],[53,2,53,4],[54,2,54,4],[55,2,55,4],[56,2,56,4],[64,2,64,4],[65,2,65,4],[66,2,66,4],[67,2,67,4],[58,2,58,4],[59,2,59,4],[60,2,60,4],[61,2,61,4],[62,2,62,4],[63,2,63,4]]}
["ABILE GAL ROGER",null,null,null,null,null,"Feuille Attachement"]
[]
["2017-01-01",null," fournir avant  Mercredi 04/01  demande de congés pour Février 2017 en fonction des disponibilités",null,null,null,"HS","HS","HS","Total","Nuit","Insalubrité"]
["Jours","Date","Prestations","Confirmations","Prestations  HS","Horaires",0,0,0,{"$f":"SUM(G4:I4)","v":0},0,0]
["Mercredi","2016-12-21",{"$f":"'Planning Mensuel'!AU6","v":"Standard 11H-15H / 15H30-19H"},null,null,null,null,null,null,0]
["Jeudi","2016-12-22",{"$f":"'Planning Mensuel'!AU7","v":"Standard 11H-15H / 15H30-19H"},null,null,null,null,null,null,0]
["Vendredi","2016-12-23",{"$f":"'Planning Mensuel'!AU8","v":"Congés"},"Congés",null,null,null,null,null,0]
["Samedi","2016-12-24",{"$f":"'Planning Mensuel'!AU9","v":"Congés"},"Congés",null,null,null,null,null,0]
["Dimanche","2016-12-25",{"$f":"'Planning Mensuel'!AU10","v":"Congés"},"Congés",null,null,null,null,null,0]
["Lundi","2016-12-26",{"$f":"'Planning Mensuel'!AU11","v":"Congés"},"Congés",null,null,null,null,null,0]
["Mardi","2016-12-27",{"$f":"'Planning Mensuel'!AU12","v":"Congés"},"Congés",null,null,null,null,null,0]
["Mercredi","2016-12-28",{"$f":"'Planning Mensuel'!AU13","v":"Congés"},"Congés",null,null,null,null,null,0]
["Jeudi","2016-12-29",{"$f":"'Planning Mensuel'!AU14","v":"Congés"},"Congés",null,null,null,null,null,0]
["Vendredi","2016-12-30",{"$f":"'Planning Mensuel'!AU15","v":"Congés"},"Congés",null,null,null,null,null,0]
["Samedi","2016-12-31",{"$f":"'Planning Mensuel'!AU16","v":"Congés"},"Congés",null,null,null,null,null,0]
["Dimanche","2017-01-01",{"$f":"'Planning Mensuel'!AU17","v":"Congés"},"Congés",null,null,null,null,null,0]
["Lundi","2017-01-02",{"$f":"'Planning Mensuel'!AU18","v":"Congés"},"Congés",null,null,null,null,null,0]
["Mardi","2017-01-03",{"$f":"'Planning Mensuel'!AU19","v":"Standard 11H-15H / 15H30-19H"},null,"Standard","10H-11H",null,null,null,0]
["Mercredi","2017-01-04",{"$f":"'Planning Mensuel'!AU20","v":"Standard 11H-15H / 15H30-19H"},null,"Standard","10H-11H",null,null,null,0]
["Jeudi","2017-01-05",{"$f":"'Planning Mensuel'!AU21","v":"Standard 11H-15H / 15H30-19H"},null,"Standard","10H-11H",null,null,null,0]
["Vendredi","2017-01-06",{"$f":"'Planning Mensuel'!AU22","v":"Standard 11H-15H / 15H30-19H"},null,"Standard","10H-11H",null,null,null,0]
["Samedi","2017-01-07",{"$f":"'Planning Mensuel'!AU23","v":"Standard 11H-15H / 15H30-19H"},null,null,null,null,null,null,0]
["Dimanche","2017-01-08",{"$f":"'Planning Mensuel'!AU24","v":"Repos"},null,null,null,null,null,null,0]
["Lundi","2017-01-09",{"$f":"'Planning Mensuel'!AU25","v":"Repos"},null,null,null,null,null,null,0]
["Mardi","2017-01-10",{"$f":"'Planning Mensuel'!AU26","v":"Standard 11H-15H / 15H30-19H"},null,null,null,null,null,null,0]
["Mercredi","2017-01-11",{"$f":"'Planning Mensuel'!AU27","v":"Standard 11H-15H / 15H30-19H"},null,null,null,null,null,null,0]
["Jeudi","2017-01-12",{"$f":"'Planning Mensuel'!AU28","v":"Standard 11H-15H / 15H30-19H"},null,null,null,null,null,null,0]
["Vendredi","2017-01-13",{"$f":"'Planning Mensuel'!AU29","v":"Standard 11H-15H / 15H30-19H"},null,null,null,null,null,null,0]
["Samedi","2017-01-14",{"$f":"'Planning Mensuel'!AU30","v":"Standard 11H-15H / 15H30-19H"},null,null,null,null,null,null,0]
["Dimanche","2017-01-15",{"$f":"'Planning Mensuel'!AU31","v":"Repos"},null,null,null,null,null,null,0]
["Lundi","2017-01-16",{"$f":"'Planning Mensuel'!AU32","v":"Repos"},null,"Standard","10H-11H",null,null,null,0]
["Mardi","2017-01-17",{"$f":"'Planning Mensuel'!AU33","v":"Standard 11H-15H / 15H30-19H"},null,"Standard","10H-11H",null,null,null,0]
["Mercredi","2017-01-18",{"$f":"'Planning Mensuel'!AU34","v":"Standard 11H-15H / 15H30-19H"},null,"Standard","10H-11H",null,null,null,0]
["Jeudi","2017-01-19",{"$f":"'Planning Mensuel'!AU35","v":"Standard 11H-15H / 15H30-19H"},null,"Standard","10H-11H",null,null,null,0]
["Vendredi","2017-01-20",{"$f":"'Planning Mensuel'!AU36","v":"Standard 11H-15H / 15H30-19H"},null,"Standard","10H-11H",null,null,null,0]
[null,null,null,null,null,null,{"$f":"SUM(G5:G35)","v":0},0,0,0,0,0]
[]
[]
[]
[]
[]
[]
[]
[]
[]
[]
["REMARQUES"]
["Date","heures","Remarques",null,null,"Responsables"]

{"sheet":"ADDARIO","index":4,"n_rows":48,"n_cols":12,"rows_kept":48,"cut":false,"hidden":false,"merged":[[51,2,51,4],[0,0,1,2],[0,3,1,5],[0,6,1,11],[2,0,2,1],[2,2,2,5],[40,2,45,5],[46,0,46,5],[47,2,47,4],[48,2,48,4],[49,2,49,4],[50,2,50,4],[63,2,63,4],[52,2,52,4],[53,2,53,4],[54,2,54,4],[55,2,55,4],[56,2,56,4],[57,2,57,4],[58,2,58,4],[59,2,59,4],[60,2,60,4],[61,2,61,4],[62,2,62,4],[64,2,64,4],[65,2,65,4],[66,2,66,4],[67,2,67,4],[68,3,68,5]]}
["ADDARIO GREGORY",null,null,null,null,null,"Feuille Attachement"]
[]
["2017-01-01",null," fournir avant  Mercredi 04/01  demande de congés pour Février 2017 en fonction des disponibilités",null,null,null,"HS","HS","HS","Total","Nuit","Insalubrité"]
["Jours","Date","Prestations","Confirmations","Prestations  HS","Horaires",0,0,0,{"$f":"SUM(G4:I4)","v":0},0,0]
["Mercredi","2016-12-21",{"$f":"'Planning Mensuel'!B6","v":"ENC NUIT 20H30-02H30"},"ENC NUIT 20H30-02H30",null,null,null,null,null,0]
["Jeudi","2016-12-22",{"$f":"'Planning Mensuel'!B7","v":"ENC NUIT 20H30-02H30"},"Absent","Absent",null,null,null,null,0]
["Vendredi","2016-12-23",{"$f":"'Planning Mensuel'!B8","v":"ENC NUIT 20H30-02H30"},null,null,null,null,null,null,0]
["Samedi","2016-12-24",{"$f":"'Planning Mensuel'!B9","v":"ENC NUIT 20H30-02H30"},null,null,null,null,null,null,0]
["Dimanche","2016-12-25",{"$f":"'Planning Mensuel'!B10","v":"Repos"},null,null,null,null,null,null,0]
["Lundi","2016-12-26",{"$f":"'Planning Mensuel'!B11","v":"Repos"},null,null,null,null,null,null,0]
["Mardi","2016-12-27",{"$f":"'Planning Mensuel'!B12","v":"ENC MATIN 5H-12H"},null,null,null,null,null,null,0]
["Mercredi","2016-12-28",{"$f":"'Planning Mensuel'!B13","v":"ENC MATIN 5H-12H"},null,null,null,null,null,null,0]
["Jeudi","2016-12-29",{"$f":"'Planning Mensuel'!B14","v":"ENC MATIN 5H-12H"},null,null,null,null,null,null,0]
["Vendredi","2016-12-30",{"$f":"'Planning Mensuel'!B15","v":"Repos"},null,null,null,null,null,null,0]
["Samedi","2016-12-31",{"$f":"'Planning Mensuel'!B16","v":"ENC MATIN 5H-12H"},null,null,null,null,null,null,0]
["Dimanche","2017-01-01",{"$f":"'Planning Mensuel'!B17","v":"NICE OUEST"},null,null,null,null,null,null,0]
["Lundi","2017-01-02",{"$f":"'Planning Mensuel'!B18","v":"Repos"},null,null,null,null,null,null,0]
["Mardi","2017-01-03",{"$f":"'Planning Mensuel'!B19","v":"ENC MATIN 5H-12H"},null,null,null,null,null,null,0]
["Mercredi","2017-01-04",{"$f":"'Planning Mensuel'!B20","v":"ENC MATIN 5H-12H"},null,null,null,null,null,null,0]
["Jeudi","2017-01-05",{"$f":"'Planning Mensuel'!B21","v":"ENC MATIN 5H-12H"},null,null,null,null,null,null,0]
["Vendredi","2017-01-06",{"$f":"'Planning Mensuel'!B22","v":"ENC MATIN 5H-12H"},null,null,null,null,null,null,0]
["Samedi","2017-01-07",{"$f":"'Planning Mensuel'!B23","v":"ENC MATIN 5H-12H"},null,null,null,null,null,null,0]
["Dimanche","2017-01-08",{"$f":"'Planning Mensuel'!B24","v":"Repos"},null,"Vieux Nice","05H-11H",null,null,null,0]
["Lundi","2017-01-09",{"$f":"'Planning Mensuel'!B25","v":"V.N.  Matin"},null,null,null,null,null,null,0]
["Mardi","2017-01-10",{"$f":"'Planning Mensuel'!B26","v":"ENC MATIN 5H-12H"},null,null,null,null,null,null,0]
["Mercredi","2017-01-11",{"$f":"'Planning Mensuel'!B27","v":"ENC MATIN 5H-12H"},null,null,null,null,null,null,0]
["Jeudi","2017-01-12",{"$f":"'Planning Mensuel'!B28","v":"ENC MATIN 5H-12H"},null,null,null,null,null,null,0]
["Vendredi","2017-01-13",{"$f":"'Planning Mensuel'!B29","v":"ENC MATIN 5H-12H"},null,null,null,null,null,null,0]
["Samedi","2017-01-14",{"$f":"'Planning Mensuel'!B30","v":"ENC MATIN 5H-12H"},null,null,null,null,null,null,0]
["Dimanche","2017-01-15",{"$f":"'Planning Mensuel'!B31","v":"Repos"},null,null,null,null,null,null,0]
["Lundi","2017-01-16",{"$f":"'Planning Mensuel'!B32","v":"Repos"},null,null,null,null,null,null,0]
["Mardi","2017-01-17",{"$f":"'Planning Mensuel'!B33","v":"ENC NUIT 20H30-02H30"},null,null,null,null,null,null,0]
["Mercredi","2017-01-18",{"$f":"'Planning Mensuel'!B34","v":"ENC NUIT 20H30-02H30"},null,null,null,null,null,null,0]
["Jeudi","2017-01-19",{"$f":"'Planning Mensuel'!B35","v":"ENC NUIT 20H30-02H30"},null,null,null,null,null,null,0]
["Vendredi","2017-01-20",{"$f":"'Planning Mensuel'!B36","v":"ENC NUIT 20H30-02H30"},null,null,null,null,null,null,0]
[null,null,null,null,null,null,{"$f":"SUM(G5:G35)","v":0},0,0,0,0,0]
[]
[]
[]
[]
[]
[]
[]
[]
[]
[]
["REMARQUES"]
["Date","heures","Remarques",null,null,"Responsables"]

{"sheet":"ALLIOUANE","index":5,"n_rows":50,"n_cols":12,"rows_kept":50,"cut":false,"hidden":false,"merged":[[40,2,45,5],[0,0,1,2],[0,3,1,5],[0,6,1,11],[2,0,2,1],[2,2,2,5],[57,2,57,4],[46,0,46,5],[47,2,47,4],[48,2,48,4],[49,2,49,4],[50,2,50,4],[51,2,51,4],[52,2,52,4],[53,2,53,4],[54,2,54,4],[55,2,55,4],[56,2,56,4],[64,2,64,4],[65,2,65,4],[58,2,58,4],[59,2,59,4],[60,2,60,4],[61,2,61,4],[62,2,62,4],[63,2,63,4]]}
["ALLIOUANE SAID",null,null,null,null,null,"Feuille Attachement"]
[]
["2017-01-01",null," fournir avant  Mercredi 04/01  demande de congés pour Février 2017 en fonction des disponibilités",null,null,null,"HS","HS","HS","Total","Nuit","Insalubrité"]
["Jours","Date","Prestations","Confirmations","Prestations  HS","Horaires",0,0,0,{"$f":"SUM(G4:I4)","v":0},0,0]
["Mercredi","2016-12-21","Encombrants 20H30-03H30",null,null,null,null,null,null,0]
["Jeudi","2016-12-22","Encombrants 20H30-03H30",null,null,null,null,null,null,0]
["Vendredi","2016-12-23","Encombrants 20H30-03H30",null,null,null,null,null,null,0]
["Samedi","2016-12-24","Repos",null,null,null,null,null,null,0]
["Dimanche","2016-12-25","Repos",null,"Vieux Nice","14H-19H",null,null,null,0]
["Lundi","2016-12-26","Encombrants 5H-12H",null,null,null,null,null,null,0]
["Mardi","2016-12-27","Encombrants 5H-12H",null,null,null,null,null,null,0]
["Mercredi","2016-12-28","Repos",null,null,null,null,null,null,0]
["Jeudi","2016-12-29","Encombrants 5H-12H",null,null,null,null,null,null,0]
["Vendredi","2016-12-30","Encombrants 5H-12H",null,null,null,null,null,null,0]
["Samedi","2016-12-31","Nice Ouest",null,null,null,null,null,null,0]
["Dimanche","2017-01-01","Repos",null,null,null,null,null,null,0]
["Lundi","2017-01-02","Encombrants 20H30-03H30",null,null,null,null,null,null,0]
["Mardi","2017-01-03","Encombrants 20H30-03H30",null,null,null,null,null,null,0]
["Mercredi","2017-01-04","Encombrants 20H30-03H30",null,null,null,null,null,null,0]
["Jeudi","2017-01-05","Encombrants 20H30-03H30",null,null,null,null,null,null,0]
["Vendredi","2017-01-06","Encombrants 20H30-03H30",null,null,null,null,null,null,0]
["Samedi","2017-01-07","Repos",null,null,null,null,null,null,0]
["Dimanche","2017-01-08","Repos",null,null,null,null,null,null,0]
["Lundi","2017-01-09","Encombrants 5H-12H",null,null,null,null,null,null,0]
["Mardi","2017-01-10","Encombrants 5H-12H",null,null,null,null,null,null,0]
["Mercredi","2017-01-11","Encombrants 5H-12H",null,null,null,null,null,null,0]
["Jeudi","2017-01-12","Encombrants 5H-12H",null,null,null,null,null,null,0]
["Vendredi","2017-01-13","Encombrants 5H-12H",null,null,null,null,null,null,0]
["Samedi","2017-01-14","Repos",null,null,null,null,null,null,0]
["Dimanche","2017-01-15","Repos",null,null,null,null,null,null,0]
["Lundi","2017-01-16","Encombrants 20H30-03H30",null,null,null,null,null,null,0]
["Mardi","2017-01-17","Encombrants 20H30-03H30",null,null,null,null,null,null,0]
["Mercredi","2017-01-18","Encombrants 20H30-03H30",null,null,null,null,null,null,0]
["Jeudi","2017-01-19","Encombrants 20H30-03H30",null,null,null,null,null,null,0]
["Vendredi","2017-01-20","Encombrants 20H30-03H30",null,null,null,null,null,null,0]
[null,null,null,null,null,null,{"$f":"SUM(G5:G35)","v":0},0,0,0,0,0]
[]
[]
[]
[]
[null,null,"Travaille le samedi 22/10"]
[]
[]
[]
[]
[]
["REMARQUES"]
["Date","heures","Remarques",null,null,"Responsables"]
["2016-01-09","8H30-12H / 14H-18H","Nice Ouest Aucun tri sur les DEEE",null,null,"Peters"]
["2016-10-02","13H-19H","Arrivée à 13H45",null,null,"Arnaud"]

{"sheet":"ARNAUDF","index":6,"n_rows":50,"n_cols":12,"rows_kept":50,"cut":false,"hidden":false,"merged":[[40,2,45,5],[0,0,1,2],[0,3,1,5],[0,6,1,11],[2,0,2,1],[2,2,2,5],[57,2,57,4],[46,0,46,5],[47,2,47,4],[48,2,48,4],[49,2,49,4],[50,2,50,4],[51,2,51,4],[52,2,52,4],[53,2,53,4],[54,2,54,4],[55,2,55,4],[56,2,56,4],[64,2,64,4],[65,2,65,4],[66,2,66,4],[67,2,67,4],[58,2,58,4],[59,2,59,4],[60,2,60,4],[61,2,61,4],[62,2,62,4],[63,2,63,4]]}
["ARNAUD FABRICE",null,null,null,null,null,"Feuille Attachement"]
[]
["2017-01-01",null," fournir avant  Mercredi 04/01  demande de congés pour Février 2017 en fonction des disponibilités",null,null,null,"HS","HS","HS","Total","Nuit","Insalubrité"]
["Jours","Date","Prestations","Confirmations","Prestations  HS","Horaires",0,0,0,{"$f":"SUM(G4:I4)","v":0},0,0]
["Mercredi","2016-12-21","Cartons 12H30-19H30",null,null,null,null,null,null,0]
["Jeudi","2016-12-22","Cartons 12H30-19H30",null,null,null,null,null,null,0]
["Vendredi","2016-12-23","Cartons 12H30-19H30",null,null,null,null,null,null,0]
["Samedi","2016-12-24","Repos",null,null,null,null,null,null,0]
["Dimanche","2016-12-25","Repos",null,"Vieux Nice ","14H-19H",null,null,null,0]
["Lundi","2016-12-26","Cartons 12H30-19H30",null,null,null,null,null,null,0]
["Mardi","2016-12-27","Cartons 12H30-19H30",null,null,null,null,null,null,0]
["Mercredi","2016-12-28","Cartons 12H30-19H30",null,null,null,null,null,null,0]
["Jeudi","2016-12-29","Cartons 12H30-19H30",null,null,null,null,null,null,0]
["Vendredi","2016-12-30","Cartons 12H30-19H30",null,null,null,null,null,null,0]
["Samedi","2016-12-31","Repos",null,null,null,null,null,null,0]
["Dimanche","2017-01-01","Repos","Repos",null,null,null,null,null,0]
["Lundi","2017-01-02","Repos",null,null,null,null,null,null,0]
["Mardi","2017-01-03","Cartons 12H30-19H30",null,null,null,null,null,null,0]
["Mercredi","2017-01-04","Cartons 12H30-19H30",null,null,null,null,null,null,0]
["Jeudi","2017-01-05","Cartons 12H30-19H30",null,null,null,null,null,null,0]
["Vendredi","2017-01-06","Cartons 12H30-19H30",null,null,null,null,null,null,0]
["Samedi","2017-01-07","Cartons 12H30-19H30",null,null,null,null,null,null,0]
["Dimanche","2017-01-08","Repos",null,null,null,null,null,null,0]
["Lundi","2017-01-09","Cartons 12H30-19H30",null,null,null,null,null,null,0]
["Mardi","2017-01-10","Cartons 12H30-19H30",null,null,null,null,null,null,0]
["Mercredi","2017-01-11","Cartons 12H30-19H30",null,null,null,null,null,null,0]
["Jeudi","2017-01-12","Cartons 12H30-19H30",null,null,null,null,null,null,0]
["Vendredi","2017-01-13","Cartons 12H30-19H30",null,null,null,null,null,null,0]
["Samedi","2017-01-14","Repos",null,null,null,null,null,null,0]
["Dimanche","2017-01-15","Repos",null,null,null,null,null,null,0]
["Lundi","2017-01-16","Cartons 12H30-19H30",null,null,null,null,null,null,0]
["Mardi","2017-01-17","Cartons 12H30-19H30",null,null,null,null,null,null,0]
["Mercredi","2017-01-18","Cartons 12H30-19H30",null,null,null,null,null,null,0]
["Jeudi","2017-01-19","Cartons 12H30-19H30",null,null,null,null,null,null,0]
["Vendredi","2017-01-20","Cartons 12H30-19H30",null,null,null,null,null,null,0]
[null,null,null,null,null,null,{"$f":"SUM(G5:G35)","v":0},0,0,0,0,0]
[]
[]
[]
[]
[null,null,"Congés le 01/01/17"]
[]
[]
[]
[]
[]
["REMARQUES"]
["Date","heures","Remarques",null,null,"Responsables"]
["2016-03-05","8H30-12H / 14H-18H","Nice Ouest Aucun tri sur les DEEE",null,null,"Peters"]
["2016-03-19","8H30-12H / 14H-18H","Dans un accès de colère",null,null,"Novelli"]

{"sheet":"ARNAUD","index":7,"n_rows":47,"n_cols":12,"rows_kept":47,"cut":false,"hidden":false,"merged":[[48,3,48,5],[48,6,48,10],[0,0,1,2],[0,3,1,5],[0,6,1,11],[2,0,2,1],[2,2,2,5],[37,2,42,5],[44,0,45,10],[46,3,46,5],[46,6,46,10],[47,3,47,5],[47,6,47,10],[49,3,49,5],[49,6,49,10],[50,3,50,5],[50,6,50,10],[51,3,51,5],[51,6,51,10],[52,3,52,5],[52,6,52,10],[53,3,53,5],[53,6,53,10],[54,3,54,5],[54,6,54,10],[55,3,55,5],[55,6,55,10],[56,3,56,5],[56,6,56,10],[57,3,57,5],[57,6,57,10],[58,3,58,5],[58,6,58,10],[59,3,59,5],[59,6,59,10],[60,3,60,5],[60,6,60,10],[61,3,61,5],[61,6,61,10],[62,3,62,5],[62,6,62,10],[63,3,63,5],[63,6,63,10],[67,3,67,5],[67,6,67,10],[68,3,68,5],[68,6,68,10],[64,3,64,5],[64,6,64,10],[65,3,65,5],[65,6,65,10],[66,3,66,5],[66,6,66,10]]}
["ARNAUD GERARD",null,null,null,null,null,"Feuille Attachement"]
[]
["2017-01-01",null," fournir avant  Mercredi 04/01  demande de congés pour Février 2017 en fonction des disponibilités",null,null,null,"HS","HS","HS","Total","Nuit","Insalubrité"]
["Jours","Date","Prestations","Confirmations","Prestations  HS","Horaires",0,0,0,{"$f":"SUM(G4:I4)","v":0},0,0]
["Mercredi","2016-12-21","Contröle 12H00-19H30",null,null,null,null,null,null,0]
["Jeudi","2016-12-22","Congés","Congés",null,null,null,null,null,0]
["Vendredi","2016-12-23","Congés","Congés",null,null,null,null,null,0]
["Samedi","2016-12-24","Congés","Congés",null,null,null,null,null,0]
["Dimanche","2016-12-25","Congés","Congés",null,null,null,null,null,0]
["Lundi","2016-12-26","Congés","Congés",null,null,null,null,null,0]
["Mardi","2016-12-27","Congés","Congés",null,null,null,null,null,0]
["Mercredi","2016-12-28","Congés","Congés",null,null,null,null,null,0]
["Jeudi","2016-12-29","Contröle 12H00-19H30",null,null,null,null,null,null,0]
["Vendredi","2016-12-30","Contröle 12H00-19H30",null,null,null,null,null,null,0]
["Samedi","2016-12-31","Repos",null,null,null,null,null,null,0]
["Dimanche","2017-01-01","Repos",null,null,null,null,null,null,0]
["Lundi","2017-01-02","Contröle 12H00-19H30",null,null,null,null,null,null,0]
["Mardi","2017-01-03","Contröle 12H00-19H30",null,null,null,null,null,null,0]
["Mercredi","2017-01-04","Contröle 12H00-19H30",null,null,null,null,null,null,0]
["Jeudi","2017-01-05","Contröle 12H00-19H30",null,null,null,null,null,null,0]
["Vendredi","2017-01-06","Contröle 12H00-19H30",null,null,null,null,null,null,0]
["Samedi","2017-01-07","Repos",null,null,null,null,null,null,0]
["Dimanche","2017-01-08","Repos",null,"Contrôle OM","03H-09H",null,null,null,0]
["Lundi","2017-01-09","Contröle 12H00-19H30",null,null,null,null,null,null,0]
["Mardi","2017-01-10","Contröle 12H00-19H30",null,null,null,null,null,null,0]
["Mercredi","2017-01-11","Contröle 12H00-19H30",null,null,null,null,null,null,0]
["Jeudi","2017-01-12","Contröle 12H00-19H30",null,null,null,null,null,null,0]
["Vendredi","2017-01-13","Contröle 12H00-19H30",null,null,null,null,null,null,0]
["Samedi","2017-01-14","Repos",null,null,null,null,null,null,0]
["Dimanche","2017-01-15","Repos",null,null,null,null,null,null,0]
["Lundi","2017-01-16","Contröle 12H00-19H30",null,null,null,null,null,null,0]
["Mardi","2017-01-17","Contröle 12H00-19H30",null,null,null,null,null,null,0]
["Mercredi","2017-01-18","Contröle 12H00-19H30",null,null,null,null,null,null,0]
["Jeudi","2017-01-19","Contröle 12H00-19H30",null,null,null,null,null,null,0]
["Vendredi","2017-01-20","Contröle 12H00-19H30",null,null,null,null,null,null,0]
[null,null,null,null,null,null,{"$f":"SUM(G5:G35)","v":0},0,0,0,0,0]
[]
[]
[]
[]
[]
[]
[]
[]
["REMARQUES"]
[]
["Jours","Date","Date et heures","Remarques",null,null,"Responsables"]

{"sheet":"AUDIBERT","index":8,"n_rows":48,"n_cols":12,"rows_kept":48,"cut":false,"hidden":false,"merged":[[40,2,45,5],[0,0,1,2],[0,3,1,5],[0,6,1,11],[2,0,2,1],[2,2,2,5],[57,2,57,4],[46,0,46,5],[47,2,47,4],[48,2,48,4],[49,2,49,4],[50,2,50,4],[51,2,51,4],[52,2,52,4],[53,2,53,4],[54,2,54,4],[55,2,55,4],[56,2,56,4],[68,6,68,10],[58,2,58,4],[59,2,59,4],[60,2,60,4],[61,2,61,4],[62,2,62,4],[63,2,63,4],[64,2,64,4],[65,2,65,4],[66,2,66,4],[67,2,67,4],[68,3,68,5]]}
["AUDIBERT MICHEL",null,null,null,null,null,"Feuille Attachement"]
[]
["2017-01-01",null," fournir avant  Mercredi 04/01  demande de congés pour Février 2017 en fonction des disponibilités",null,null,null,"HS","HS","HS","Total","Nuit","Insalubrité"]
["Jours","Date","Prestations","Confirmations","Prestations  HS","Horaires",0,0,0,{"$f":"SUM(G4:I4)","v":0},0,0]
["Mercredi","2016-12-21","Nice Ouest",null,"Nice Ouest","14H-14H30",0.5,null,null,0.5]
["Jeudi","2016-12-22","Nice Ouest",null,"Nice Ouest","14H-14H30",0.5,null,null,0.5]
["Vendredi","2016-12-23","Nice Ouest",null,"Nice Ouest","14H-14H30",0.5,null,null,0.5]
["Samedi","2016-12-24","Repos",null,"Nice Ouest","8H30-14H30",6,null,null,6]
["Dimanche","2016-12-25","Repos",null,null,null,null,null,null,0]
["Lundi","2016-12-26","Nice Ouest",null,"Nice Ouest","14H-14H30",0.5,null,null,0.5]
["Mardi","2016-12-27","Nice Ouest",null,"Nice Ouest","14H-14H30",0.5,null,null,0.5]
["Mercredi","2016-12-28","Nice Ouest",null,"Nice Ouest","14H-14H30",0.5,null,null,0.5]
["Jeudi","2016-12-29","Nice Ouest",null,"Nice Ouest","14H-14H30",0.5,null,null,0.5]
["Vendredi","2016-12-30","Nice Ouest",null,"Nice Ouest","14H-14H30",0.5,null,null,0.5]
["Samedi","2016-12-31","Congés",null,null,null,null,null,null,0]
["Dimanche","2017-01-01","Congés",null,null,null,null,null,null,0]
["Lundi","2017-01-02","Congés",null,null,null,null,null,null,0]
["Mardi","2017-01-03","Congés",null,null,null,null,null,null,0]
["Mercredi","2017-01-04","Congés",null,null,null,null,null,null,0]
["Jeudi","2017-01-05","Congés",null,null,null,null,null,null,0]
["Vendredi","2017-01-06","Congés",null,null,null,null,null,null,0]
["Samedi","2017-01-07","Congés",null,null,null,null,null,null,0]
["Dimanche","2017-01-08","Congés",null,null,null,null,null,null,0]
["Lundi","2017-01-09","Nice Ouest",null,"Nice Ouest","14H-14H30",0.5,null,null,0.5]
["Mardi","2017-01-10","Nice Ouest",null,"Nice Ouest","14H-14H30",0.5,null,null,0.5]
["Mercredi","2017-01-11","Nice Ouest",null,"Nice Ouest","14H-14H30",0.5,null,null,0.5]
["Jeudi","2017-01-12","Nice Ouest",null,"Nice Ouest","14H-14H30",0.5,null,null,0.5]
["Vendredi","2017-01-13","Repos",null,null,null,null,null,null,0]
["Samedi","2017-01-14","Nice Ouest",null,"Nice Ouest","14H-14H30",0.5,null,null,0.5]
["Dimanche","2017-01-15","Repos",null,null,null,null,null,null,0]
["Lundi","2017-01-16","Nice Ouest",null,"Nice Ouest","14H-14H30",0.5,null,null,0.5]
["Mardi","2017-01-17","Nice Ouest",null,"Nice Ouest","14H-14H30",0.5,null,null,0.5]
["Mercredi","2017-01-18","Nice Ouest",null,"Nice Ouest","14H-14H30",0.5,null,null,0.5]
["Jeudi","2017-01-19","Nice Ouest",null,"Nice Ouest","14H-14H30",0.5,null,null,0.5]
["Vendredi","2017-01-20","Nice Ouest",null,"Nice Ouest","14H-14H30",0.5,null,null,0.5]
[null,null,null,null,null,null,{"$f":"SUM(G5:G35)","v":15},0,0,15,0,0]
[]
[]
[]
[]
[null,null,"Congés du 30/12 inclus au 08/01/17"]
[]
[]
[]
[]
[]
["REMARQUES"]
["Date","heures","Remarques",null,null,"Responsables"]

{"sheet":"BEN BOUZID","index":9,"n_rows":48,"n_cols":12,"rows_kept":48,"cut":false,"hidden":false,"merged":[[40,2,45,5],[0,0,1,2],[0,3,1,5],[0,6,1,11],[2,0,2,1],[2,2,2,5],[57,2,57,4],[46,0,46,5],[47,2,47,4],[48,2,48,4],[49,2,49,4],[50,2,50,4],[51,2,51,4],[52,2,52,4],[53,2,53,4],[54,2,54,4],[55,2,55,4],[56,2,56,4],[68,6,68,10],[58,2,58,4],[59,2,59,4],[60,2,60,4],[61,2,61,4],[62,2,62,4],[63,2,63,4],[64,2,64,4],[65,2,65,4],[66,2,66,4],[67,2,67,4],[68,3,68,5]]}
["BEN BOUZID BOURHANE",null,null,null,null,null,"Feuille Attachement"]
[]
["2017-01-01",null," fournir avant  Mercredi 04/01  demande de congés pour Février 2017 en fonction des disponibilités",null,null,null,"HS","HS","HS","Total","Nuit","Insalubrité"]
["Jours","Date","Prestations","Confirmations","Prestations  HS","Horaires",0,0,0,{"$f":"SUM(G4:I4)","v":0},0,0]
["Mercredi","2016-12-21","Repos",null,null,null,null,null,null,0]
["Jeudi","2016-12-22","Nice Ouest",null,"Nice Ouest","14H-14H30",null,null,null,0]
["Vendredi","2016-12-23","Nice Ouest",null,"Nice Ouest","14H-14H30",null,null,null,0]
["Samedi","2016-12-24","Nice Ouest",null,null,null,null,null,null,0]
["Dimanche","2016-12-25","Repos",null,null,null,null,null,null,0]
["Lundi","2016-12-26","Nice Ouest",null,"Nice Ouest","14H-14H30",null,null,null,0]
["Mardi","2016-12-27","Nice Ouest",null,"Nice Ouest","14H-14H30",null,null,null,0]
["Mercredi","2016-12-28","Nice Ouest",null,"Nice Ouest","14H-14H30",null,null,null,0]
["Jeudi","2016-12-29","Nice Ouest",null,"Nice Ouest","14H-14H30",null,null,null,0]
["Vendredi","2016-12-30","Nice Ouest",null,"Nice Ouest","14H-14H30",null,null,null,0]
["Samedi","2016-12-31","Repos",null,null,null,null,null,null,0]
["Dimanche","2017-01-01","Repos",null,null,null,null,null,null,0]
["Lundi","2017-01-02","Nice Ouest",null,"Nice Ouest","14H-14H30",null,null,null,0]
["Mardi","2017-01-03","Nice Ouest",null,"Nice Ouest","14H-14H30",null,null,null,0]
["Mercredi","2017-01-04","Nice Ouest",null,"Nice Ouest","14H-14H30",null,null,null,0]
["Jeudi","2017-01-05","Nice Ouest",null,"Nice Ouest","14H-14H30",null,null,null,0]
["Vendredi","2017-01-06","Nice Ouest",null,"Nice Ouest","14H-14H30",null,null,null,0]
["Samedi","2017-01-07","Repos",null,null,null,null,null,null,0]
["Dimanche","2017-01-08","Repos",null,"Nice Ouest","8H-12H",null,null,null,0]
["Lundi","2017-01-09","Nice Ouest",null,"Nice Ouest","14H-14H30",null,null,null,0]
["Mardi","2017-01-10","Nice Ouest",null,"Nice Ouest","14H-14H30",null,null,null,0]
["Mercredi","2017-01-11","Nice Ouest",null,"Nice Ouest","14H-14H30",null,null,null,0]
["Jeudi","2017-01-12","Nice Ouest",null,"Nice Ouest","14H-14H30",null,null,null,0]
["Vendredi","2017-01-13","Nice Ouest",null,"Nice Ouest","14H-14H30",null,null,null,0]
["Samedi","2017-01-14","Repos",null,null,null,null,null,null,0]
["Dimanche","2017-01-15","Repos",null,null,null,null,null,null,0]
["Lundi","2017-01-16","Nice Ouest",null,"Nice Ouest","14H-14H30",null,null,null,0]
["Mardi","2017-01-17","Nice Ouest",null,"Nice Ouest","14H-14H30",null,null,null,0]
["Mercredi","2017-01-18","Repos Attention travail le Sd 21/01/17",null,null,null,null,null,null,0]
["Jeudi","2017-01-19","Nice Ouest",null,"Nice Ouest","14H-14H30",null,null,null,0]
["Vendredi","2017-01-20","Nice Ouest",null,"Nice Ouest","14H-14H30",null,null,null,0]
[null,null,null,null,null,null,{"$f":"SUM(G5:G35)","v":0},0,0,0,0,0]
[]
[]
[]
[]
[null,null,"Travaillera le Samedi 21/01/17"]
[]
[]
[]
[]
[]
["REMARQUES"]
["Date","heures","Remarques",null,null,"Responsables"]

{"sheet":"BOUR","index":10,"n_rows":49,"n_cols":12,"rows_kept":49,"cut":false,"hidden":false,"merged":[[40,2,45,5],[0,0,1,2],[0,3,1,5],[0,6,1,11],[2,0,2,1],[2,2,2,5],[57,2,57,4],[46,0,46,5],[47,2,47,4],[48,2,48,4],[49,2,49,4],[50,2,50,4],[51,2,51,4],[52,2,52,4],[53,2,53,4],[54,2,54,4],[55,2,55,4],[56,2,56,4],[64,2,64,4],[65,2,65,4],[66,2,66,4],[67,2,67,4],[58,2,58,4],[59,2,59,4],[60,2,60,4],[61,2,61,4],[62,2,62,4],[63,2,63,4]]}
["BOUR YVON",null,null,null,null,null,"Feuille Attachement"]
[]
["2017-01-01",null," fournir avant  Mercredi 04/01  demande de congés pour Février 2017 en fonction des disponibilités",null,null,null,"HS","HS","HS","Total","Nuit","Insalubrité"]
["Jours","Date","Prestations","Confirmations","Prestations  HS","Horaires",0,0,0,{"$f":"SUM(G4:I4)","v":0},0,0]
["Mercredi","2016-12-21","Polybenne 12H-19H",null,null,null,null,null,null,0]
["Jeudi","2016-12-22","Polybenne 12H-18H",null,null,null,null,null,null,0]
["Vendredi","2016-12-23","Polybenne 12H-18H",null,null,null,null,null,null,0]
["Samedi","2016-12-24","Polybenne 7H-14H",null,null,null,null,null,null,0]
["Dimanche","2016-12-25","Repos",null,null,null,null,null,null,0]
["Lundi","2016-12-26","Repos",null,null,null,null,null,null,0]
["Mardi","2016-12-27","Polybenne 12H-19H",null,null,null,null,null,null,0]
["Mercredi","2016-12-28","Polybenne 12H-19H",null,null,null,null,null,null,0]
["Jeudi","2016-12-29","Polybenne 12H-18H",null,null,null,null,null,null,0]
["Vendredi","2016-12-30","Polybenne 12H-18H",null,null,null,null,null,null,0]
["Samedi","2016-12-31","Polybenne 7H-14H",null,null,null,null,null,null,0]
["Dimanche","2017-01-01","Repos",null,null,null,null,null,null,0]
["Lundi","2017-01-02","Repos",null,null,null,null,null,null,0]
["Mardi","2017-01-03","Congés",null,null,null,null,null,null,0]
["Mercredi","2017-01-04","Polybenne 12H-19H",null,null,null,null,null,null,0]
["Jeudi","2017-01-05","Polybenne 12H-18H",null,null,null,null,null,null,0]
["Vendredi","2017-01-06","Polybenne 12H-18H",null,null,null,null,null,null,0]
["Samedi","2017-01-07","Polybenne 7H-12H / 14H-18H",null,null,null,null,null,null,0]
["Dimanche","2017-01-08","Repos",null,"Polybenne ","7H-12H",null,null,null,0]
["Lundi","2017-01-09","Repos",null,null,null,null,null,null,0]
["Mardi","2017-01-10","Polybenne 12H-19H",null,null,null,null,null,null,0]
["Mercredi","2017-01-11","Congés",null,null,null,null,null,null,0]
["Jeudi","2017-01-12","Polybenne 12H-18H",null,null,null,null,null,null,0]
["Vendredi","2017-01-13","Polybenne 12H-18H",null,null,null,null,null,null,0]
["Samedi","2017-01-14","Polybenne 7H-12H / 14H-18H",null,null,null,null,null,null,0]
["Dimanche","2017-01-15","Repos",null,"Polybenne ","7H-12H",null,null,null,0]
["Lundi","2017-01-16","Repos",null,null,null,null,null,null,0]
["Mardi","2017-01-17","Polybenne 12H-19H",null,null,null,null,null,null,0]
["Mercredi","2017-01-18","Congés",null,null,null,null,null,null,0]
["Jeudi","2017-01-19","Polybenne 12H-18H",null,null,null,null,null,null,0]
["Vendredi","2017-01-20","Polybenne 12H-18H",null,null,null,null,null,null,0]
[null,null,null,null,null,null,{"$f":"SUM(G5:G35)","v":0},0,0,0,0,0]
[]
[]
[]
[]
[]
[]
[]
[]
[]
[]
["REMARQUES"]
["Date","heures","Remarques",null,null,"Responsables"]
["2015-12-10","18H","Vidage à la Sonitherm",null,null,"Peters"]

{"sheet":"CANTELLI","index":11,"n_rows":49,"n_cols":12,"rows_kept":49,"cut":false,"hidden":false,"merged":[[40,2,45,5],[0,0,1,2],[0,3,1,5],[0,6,1,11],[2,0,2,1],[2,2,2,5],[57,2,57,4],[46,0,46,5],[47,2,47,4],[48,2,48,4],[49,2,49,4],[50,2,50,4],[51,2,51,4],[52,2,52,4],[53,2,53,4],[54,2,54,4],[55,2,55,4],[56,2,56,4],[64,2,64,4],[65,2,65,4],[66,2,66,4],[67,2,67,4],[58,2,58,4],[59,2,59,4],[60,2,60,4],[61,2,61,4],[62,2,62,4],[63,2,63,4]]}
["CANTELLI THOMAS",null,null,null,null,null,"Feuille Attachement"]
[]
["2017-01-01",null," fournir avant  Mercredi 04/01  demande de congés pour Février 2017 en fonction des disponibilités",null,null,null,"HS","HS","HS","Total","Nuit","Insalubrité"]
["Jours","Date","Prestations","Confirmations","Prestations  HS","Horaires",0,0,0,{"$f":"SUM(G4:I4)","v":0},0,0]
["Mercredi","2016-12-21","Affectation COP Cagnes / Vence",null,null,null,null,null,null,0]
["Jeudi","2016-12-22","Affectation COP Cagnes / Vence",null,null,null,null,null,null,0]
["Vendredi","2016-12-23","Affectation COP Cagnes / Vence",null,null,null,null,null,null,0]
["Samedi","2016-12-24","Repos",null,null,null,null,null,null,0]
["Dimanche","2016-12-25","Repos",null,"COP Cagnes / Vence",null,null,null,null,0]
["Lundi","2016-12-26","Affectation COP Cagnes / Vence",null,null,null,null,null,null,0]
["Mardi","2016-12-27","Affectation COP Cagnes / Vence",null,null,null,null,null,null,0]
["Mercredi","2016-12-28","Affectation COP Cagnes / Vence",null,null,null,null,null,null,0]
["Jeudi","2016-12-29","Affectation COP Cagnes / Vence",null,null,null,null,null,null,0]
["Vendredi","2016-12-30","Affectation COP Cagnes / Vence",null,null,null,null,null,null,0]
["Samedi","2016-12-31","Repos",null,null,null,null,null,null,0]
["Dimanche","2017-01-01","Repos",null,"COP Cagnes / Vence",null,null,null,null,0]
["Lundi","2017-01-02","Repos",null,null,null,null,null,null,0]
["Mardi","2017-01-03","Encombrants 5H-12H",null,null,null,null,null,null,0]
["Mercredi","2017-01-04","Encombrants 5H-12H",null,null,null,null,null,null,0]
["Jeudi","2017-01-05","Encombrants 5H-12H",null,null,null,null,null,null,0]
["Vendredi","2017-01-06","Encombrants 5H-12H",null,null,null,null,null,null,0]
["Samedi","2017-01-07","Nice Ouest",null,"Nice Ouest","14H-14H30",null,null,null,0]
["Dimanche","2017-01-08","Repos",null,null,null,null,null,null,0]
["Lundi","2017-01-09","Encombrants 20H30-03H30",null,null,null,null,null,null,0]
["Mardi","2017-01-10","Encombrants 20H30-03H30",null,null,null,null,null,null,0]
["Mercredi","2017-01-11","Encombrants 20H30-03H30",null,null,null,null,null,null,0]
["Jeudi","2017-01-12","Encombrants 20H30-03H30",null,null,null,null,null,null,0]
["Vendredi","2017-01-13","Encombrants 20H30-03H30",null,null,null,null,null,null,0]
["Samedi","2017-01-14","Repos",null,null,null,null,null,null,0]
["Dimanche","2017-01-15","Repos",null,null,null,null,null,null,0]
["Lundi","2017-01-16","Encombrants 5H-12H",null,null,null,null,null,null,0]
["Mardi","2017-01-17","Encombrants 5H-12H",null,null,null,null,null,null,0]
["Mercredi","2017-01-18","Repos Attention travail le Sd 21/01/17",null,null,null,null,null,null,0]
["Jeudi","2017-01-19","Encombrants 5H-12H",null,null,null,null,null,null,0]
["Vendredi","2017-01-20","Encombrants 5H-12H",null,null,null,null,null,null,0]
[null,null,null,null,null,null,{"$f":"SUM(G5:G35)","v":0},0,0,0,0,0]
[]
[]
[]
[]
[null,null,"Travaillera le samedi 21/01 à NE"]
[]
[]
[]
[]
[]
["REMARQUES"]
["Date","heures","Remarques",null,null,"Responsables"]
["2016-05-30","5H40","Arrivée à 5H40 aux encombrants",null,null,"Cambra"]

{"sheet":"CARDINALE","index":12,"n_rows":49,"n_cols":12,"rows_kept":49,"cut":false,"hidden":false,"merged":[[40,2,45,5],[0,0,1,2],[0,3,1,5],[0,6,1,11],[2,0,2,1],[2,2,2,5],[57,2,57,4],[46,0,46,5],[47,2,47,4],[48,2,48,4],[49,2,49,4],[50,2,50,4],[51,2,51,4],[52,2,52,4],[53,2,53,4],[54,2,54,4],[55,2,55,4],[56,2,56,4],[64,2,64,4],[65,2,65,4],[58,2,58,4],[59,2,59,4],[60,2,60,4],[61,2,61,4],[62,2,62,4],[63,2,63,4]]}
["CARDINALE JEAN CLAUDE",null,null,null,null,null,"Feuille Attachement"]
[]
["2017-01-01",null," fournir avant  Mercredi 04/01  demande de congés pour Février 2017 en fonction des disponibilités",null,null,null,"HS","HS","HS","Total","Nuit","Insalubrité"]
["Jours","Date","Prestations","Confirmations","Prestations  HS","Horaires",0,0,0,{"$f":"SUM(G4:I4)","v":0},0,0]
["Mercredi","2016-12-21","Congés",null,null,null,null,null,null,0]
["Jeudi","2016-12-22","Congés",null,null,null,null,null,null,0]
["Vendredi","2016-12-23","Congés",null,null,null,null,null,null,0]
["Samedi","2016-12-24","Congés",null,null,null,null,null,null,0]
["Dimanche","2016-12-25","Congés",null,null,null,null,null,null,0]
["Lundi","2016-12-26","Nice Ouest",null,"Nice Ouest","14H-14H30",null,null,null,0]
["Mardi","2016-12-27","Nice Ouest",null,"Nice Ouest","14H-14H30",null,null,null,0]
["Mercredi","2016-12-28","Repos",null,null,null,null,null,null,0]
["Jeudi","2016-12-29","Nice Ouest",null,"Nice Ouest","14H-14H30",null,null,null,0]
["Vendredi","2016-12-30","Nice Ouest",null,"Nice Ouest","14H-14H30",null,null,null,0]
["Samedi","2016-12-31","Nice Ouest",null,null,null,null,null,null,0]
["Dimanche","2017-01-01","Repos",null,null,null,null,null,null,0]
["Lundi","2017-01-02","Nice Ouest",null,"Nice Ouest","14H-14H30",null,null,null,0]
["Mardi","2017-01-03","Nice Ouest",null,"Nice Ouest","14H-14H30",null,null,null,0]
["Mercredi","2017-01-04","Nice Ouest",null,"Nice Ouest","14H-14H30",null,null,null,0]
["Jeudi","2017-01-05","Nice Ouest",null,"Nice Ouest","14H-14H30",null,null,null,0]
["Vendredi","2017-01-06","Nice Ouest",null,"Nice Ouest","14H-14H30",null,null,null,0]
["Samedi","2017-01-07","Repos",null,null,null,null,null,null,0]
["Dimanche","2017-01-08","Repos",null,"Nice Ouest","8H-12H",null,null,null,0]
["Lundi","2017-01-09","Nice Ouest",null,"Nice Ouest","14H-14H30",null,null,null,0]
["Mardi","2017-01-10","Nice Ouest",null,"Nice Ouest","14H-14H30",null,null,null,0]
["Mercredi","2017-01-11","Nice Ouest",null,"Nice Ouest","14H-14H30",null,null,null,0]
["Jeudi","2017-01-12","Nice Ouest",null,"Nice Ouest","14H-14H30",null,null,null,0]
["Vendredi","2017-01-13","Nice Ouest",null,"Nice Ouest","14H-14H30",null,null,null,0]
["Samedi","2017-01-14","Repos",null,null,null,null,null,null,0]
["Dimanche","2017-01-15","Repos",null,null,null,null,null,null,0]
["Lundi","2017-01-16","Nice Ouest",null,"Nice Ouest","14H-14H30",null,null,null,0]
["Mardi","2017-01-17","Nice Ouest",null,"Nice Ouest","14H-14H30",null,null,null,0]
["Mercredi","2017-01-18","Nice Ouest",null,"Nice Ouest","14H-14H30",null,null,null,0]
["Jeudi","2017-01-19","Nice Ouest",null,"Nice Ouest","14H-14H30",null,null,null,0]
["Vendredi","2017-01-20","Nice Ouest",null,"Nice Ouest","14H-14H30",null,null,null,0]
[null,null,null,null,null,null,{"$f":"SUM(G5:G35)","v":0},0,0,0,0,0]
[]
[]
[]
[]
[null,null,"En congés jusqu'au 25/12"]
[]
[]
[]
[]
[]
["REMARQUES"]
["Date","heures","Remarques",null,null,"Responsables"]
["2016-01-09","8H30-12H / 14H-18H","Aucun tri sur les DEEE",null,null,"peters"]

{"sheet":"CARLIN","index":13,"n_rows":48,"n_cols":12,"rows_kept":48,"cut":false,"hidden":false,"merged":[[40,2,45,5],[0,0,1,2],[0,3,1,5],[0,6,1,11],[2,0,2,1],[2,2,2,5],[57,2,57,4],[46,0,46,5],[47,2,47,4],[48,2,48,4],[49,2,49,4],[50,2,50,4],[51,2,51,4],[52,2,52,4],[53,2,53,4],[54,2,54,4],[55,2,55,4],[56,2,56,4],[68,6,68,10],[58,2,58,4],[59,2,59,4],[60,2,60,4],[61,2,61,4],[62,2,62,4],[63,2,63,4],[64,2,64,4],[65,2,65,4],[66,2,66,4],[67,2,67,4],[68,3,68,5]]}
["CARLIN HELENE",null,null,null,null,null,"Feuille Attachement"]
[]
["2017-01-01",null," fournir avant  Mercredi 04/01  demande de congés pour Février 2017 en fonction des disponibilités",null,null,null,"HS","HS","HS","Total","Nuit","Insalubrité"]
["Jours","Date","Prestations","Confirmations","Prestations  HS","Horaires",0,0,0,{"$f":"SUM(G4:I4)","v":0},0,0]
["Mercredi","2016-12-21","Congés",null,null,null,null,null,null,0]
["Jeudi","2016-12-22","Congés",null,null,null,null,null,null,0]
["Vendredi","2016-12-23","Congés",null,null,null,null,null,null,0]
["Samedi","2016-12-24","Congés",null,null,null,null,null,null,0]
["Dimanche","2016-12-25","Congés",null,null,null,null,null,null,0]
["Lundi","2016-12-26","Congés",null,null,null,null,null,null,0]
["Mardi","2016-12-27","Congés",null,null,null,null,null,null,0]
["Mercredi","2016-12-28","Secrétariat 8H30-12H /13H-17H",null,null,null,null,null,null,0]
["Jeudi","2016-12-29","Secrétariat 9H-12H /13H-17H /20H-21H30",null,null,null,null,null,null,0]
["Vendredi","2016-12-30","Secrétariat 8H30-12H /12H30-17H",null,null,null,null,null,null,0]
["Samedi","2016-12-31","Repos",null,null,null,null,null,null,0]
["Dimanche","2017-01-01","Repos",null,null,null,null,null,null,0]
["Lundi","2017-01-02","Secrétariat 9H-12H /13H-17H /20H-21H30",null,null,null,null,null,null,0]
["Mardi","2017-01-03","Secrétariat 13H-18H",null,null,null,null,null,null,0]
["Mercredi","2017-01-04","Secrétariat 8H30-12H /13H-17H",null,null,null,null,null,null,0]
["Jeudi","2017-01-05","Secrétariat 9H-12H /13H-17H /20H-21H30",null,null,null,null,null,null,0]
["Vendredi","2017-01-06","Secrétariat 8H30-12H /12H30-17H",null,null,null,null,null,null,0]
["Samedi","2017-01-07","Repos",null,null,null,null,null,null,0]
["Dimanche","2017-01-08","Repos",null,null,null,null,null,null,0]
["Lundi","2017-01-09","Secrétariat 9H-12H /13H-17H /20H-21H30",null,null,null,null,null,null,0]
["Mardi","2017-01-10","Secrétariat 13H-18H",null,null,null,null,null,null,0]
["Mercredi","2017-01-11","Secrétariat 8H30-12H /13H-17H",null,null,null,null,null,null,0]
["Jeudi","2017-01-12","Secrétariat 9H-12H /13H-17H /20H-21H30",null,null,null,null,null,null,0]
["Vendredi","2017-01-13","Secrétariat 8H30-12H /12H30-17H",null,null,null,null,null,null,0]
["Samedi","2017-01-14","Repos",null,null,null,null,null,null,0]
["Dimanche","2017-01-15","Repos",null,null,null,null,null,null,0]
["Lundi","2017-01-16","Secrétariat 9H-12H /13H-17H /20H-21H30",null,null,null,null,null,null,0]
["Mardi","2017-01-17","Secrétariat 13H-18H",null,null,null,null,null,null,0]
["Mercredi","2017-01-18","Secrétariat 8H30-12H /13H-17H",null,null,null,null,null,null,0]
["Jeudi","2017-01-19","Secrétariat 9H-12H /13H-17H /20H-21H30",null,null,null,null,null,null,0]
["Vendredi","2017-01-20","Secrétariat 8H30-12H /12H30-17H",null,null,null,null,null,null,0]
[null,null,null,null,null,null,{"$f":"SUM(G5:G35)","v":0},0,0,0,0,0]
[]
[]
[]
[]
[null,null,"Congés le 21 et le 27 Décembre"]
[]
[]
[]
[]
[]
["REMARQUES"]
["Date","heures","Remarques",null,null,"Responsables"]

{"sheet":"COURTOIS","index":14,"n_rows":48,"n_cols":12,"rows_kept":48,"cut":false,"hidden":false,"merged":[[40,2,45,5],[0,0,1,2],[0,3,1,5],[0,6,1,11],[2,0,2,1],[2,2,2,5],[57,2,57,4],[46,0,46,5],[47,2,47,4],[48,2,48,4],[49,2,49,4],[50,2,50,4],[51,2,51,4],[52,2,52,4],[53,2,53,4],[54,2,54,4],[55,2,55,4],[56,2,56,4],[64,2,64,4],[58,2,58,4],[59,2,59,4],[60,2,60,4],[61,2,61,4],[62,2,62,4],[63,2,63,4]]}
["COURTOIS ALEXIS",null,null,null,null,null,"Feuille Attachement"]
[]
["2017-01-01",null," fournir avant  Mercredi 04/01  demande de congés pour Février 2017 en fonction des disponibilités",null,null,null,"HS","HS","HS","Total","Nuit","Insalubrité"]
["Jours","Date","Prestations","Confirmations","Prestations  HS","Horaires",0,0,0,{"$f":"SUM(G4:I4)","v":0},0,0]
["Mercredi","2016-12-21","Encombrants 5H-12H",null,null,null,null,null,null,0]
["Jeudi","2016-12-22","Encombrants 5H-12H",null,null,null,null,null,null,0]
["Vendredi","2016-12-23","Repos",null,null,null,null,null,null,0]
["Samedi","2016-12-24","Nice Est",null,null,null,null,null,null,0]
["Dimanche","2016-12-25","Repos",null,null,null,null,null,null,0]
["Lundi","2016-12-26","Encombrants 20H30-03H30",null,null,null,null,null,null,0]
["Mardi","2016-12-27","Encombrants 20H30-03H30",null,null,null,null,null,null,0]
["Mercredi","2016-12-28","Encombrants 20H30-03H30",null,null,null,null,null,null,0]
["Jeudi","2016-12-29","Encombrants 20H30-03H30",null,null,null,null,null,null,0]
["Vendredi","2016-12-30","Encombrants 20H30-03H30",null,null,null,null,null,null,0]
["Samedi","2016-12-31","Repos",null,null,null,null,null,null,0]
["Dimanche","2017-01-01","Repos",null,null,null,null,null,null,0]
["Lundi","2017-01-02","Encombrants 20H30-03H30",null,null,null,null,null,null,0]
["Mardi","2017-01-03","Encombrants 20H30-03H30",null,null,null,null,null,null,0]
["Mercredi","2017-01-04","Encombrants 20H30-03H30",null,null,null,null,null,null,0]
["Jeudi","2017-01-05","Encombrants 20H30-03H30",null,null,null,null,null,null,0]
["Vendredi","2017-01-06","Encombrants 20H30-03H30",null,null,null,null,null,null,0]
["Samedi","2017-01-07","Repos",null,null,null,null,null,null,0]
["Dimanche","2017-01-08","Repos",null,null,null,null,null,null,0]
["Lundi","2017-01-09","Encombrants 20H30-03H30",null,null,null,null,null,null,0]
["Mardi","2017-01-10","Encombrants 20H30-03H30",null,null,null,null,null,null,0]
["Mercredi","2017-01-11","Encombrants 20H30-03H30",null,null,null,null,null,null,0]
["Jeudi","2017-01-12","Encombrants 20H30-03H30",null,null,null,null,null,null,0]
["Vendredi","2017-01-13","Encombrants 20H30-03H30",null,null,null,null,null,null,0]
["Samedi","2017-01-14","Repos",null,null,null,null,null,null,0]
["Dimanche","2017-01-15","Repos",null,null,null,null,null,null,0]
["Lundi","2017-01-16","Encombrants 5H-12H",null,null,null,null,null,null,0]
["Mardi","2017-01-17","Encombrants 5H-12H",null,null,null,null,null,null,0]
["Mercredi","2017-01-18","Encombrants 5H-12H",null,null,null,null,null,null,0]
["Jeudi","2017-01-19","Encombrants 5H-12H",null,null,null,null,null,null,0]
["Vendredi","2017-01-20","Repos Attention travail le Sd 21/01/17",null,null,null,null,null,null,0]
[null,null,null,null,null,null,{"$f":"SUM(G5:G35)","v":0},0,0,0,0,0]
[]
[]
[]
[]
[null,null,"Travaillera le Samedi 21/01/17"]
[]
[]
[]
[]
[]
["REMARQUES"]
["Date","heures","Remarques",null,null,"Responsables"]

{"sheet":"DALMASSO","index":15,"n_rows":48,"n_cols":12,"rows_kept":48,"cut":false,"hidden":false,"merged":[[40,2,45,5],[0,0,1,2],[0,3,1,5],[0,6,1,11],[2,0,2,1],[2,2,2,5],[57,2,57,4],[46,0,46,5],[47,2,47,4],[48,2,48,4],[49,2,49,4],[50,2,50,4],[51,2,51,4],[52,2,52,4],[53,2,53,4],[54,2,54,4],[55,2,55,4],[56,2,56,4],[64,2,64,4],[58,2,58,4],[59,2,59,4],[60,2,60,4],[61,2,61,4],[62,2,62,4],[63,2,63,4]]}
["DALMASSO YVES",null,null,null,null,null,"Feuille Attachement"]
[]
["2017-01-01",null," fournir avant  Mercredi 04/01  demande de congés pour Février 2017 en fonction des disponibilités",null,null,null,"HS","HS","HS","Total","Nuit","Insalubrité"]
["Jours","Date","Prestations","Confirmations","Prestations  HS","Horaires",0,0,0,{"$f":"SUM(G4:I4)","v":0},0,0]
["Mercredi","2016-12-21","benne cartons 8H45-15H45",null,null,null,null,null,null,0]
["Jeudi","2016-12-22","Polybenne 5H-12H",null,null,null,null,null,null,0]
["Vendredi","2016-12-23","Congés",null,null,null,null,null,null,0]
["Samedi","2016-12-24","Repos",null,null,null,null,null,null,0]
["Dimanche","2016-12-25","Repos",null,null,null,null,null,null,0]
["Lundi","2016-12-26","Polybenne 9H-16H",null,null,null,null,null,null,0]
["Mardi","2016-12-27","Polybenne 5H-12H",null,null,null,null,null,null,0]
["Mercredi","2016-12-28","benne cartons 8H45-15H45",null,null,null,null,null,null,0]
["Jeudi","2016-12-29","Polybenne 9H-16H",null,null,null,null,null,null,0]
["Vendredi","2016-12-30","Polybenne 9H-16H",null,null,null,null,null,null,0]
["Samedi","2016-12-31","Repos",null,null,null,null,null,null,0]
["Dimanche","2017-01-01","Repos",null,null,null,null,null,null,0]
["Lundi","2017-01-02","Polybenne 5H-12H",null,null,null,null,null,null,0]
["Mardi","2017-01-03","Polybenne 5H-12H",null,null,null,null,null,null,0]
["Mercredi","2017-01-04","Polybenne 5H-12H",null,null,null,null,null,null,0]
["Jeudi","2017-01-05","Polybenne 5H-12H",null,null,null,null,null,null,0]
["Vendredi","2017-01-06","Polybenne 5H-12H",null,null,null,null,null,null,0]
["Samedi","2017-01-07","Repos",null,null,null,null,null,null,0]
["Dimanche","2017-01-08","Repos",null,null,null,null,null,null,0]
["Lundi","2017-01-09","Repos",null,null,null,null,null,null,0]
["Mardi","2017-01-10","Polybenne 7H-14H",null,null,null,null,null,null,0]
["Mercredi","2017-01-11","benne cartons 8H45-15H45",null,null,null,null,null,null,0]
["Jeudi","2017-01-12","Polybenne 7H-14H",null,null,null,null,null,null,0]
["Vendredi","2017-01-13","Polybenne 7H-14H",null,null,null,null,null,null,0]
["Samedi","2017-01-14","Polybenne 7H-12H / 14H-18H",null,"Polybenne","16H-18H",null,null,null,0]
["Dimanche","2017-01-15","Repos",null,null,null,null,null,null,0]
["Lundi","2017-01-16","Polybenne 7H-14H",null,null,null,null,null,null,0]
["Mardi","2017-01-17","Polybenne 7H-14H",null,null,null,null,null,null,0]
["Mercredi","2017-01-18","benne cartons 8H45-15H45",null,null,null,null,null,null,0]
["Jeudi","2017-01-19","Polybenne 7H-14H",null,null,null,null,null,null,0]
["Vendredi","2017-01-20","Polybenne 7H-14H",null,null,null,null,null,null,0]
[null,null,null,null,null,null,{"$f":"SUM(G5:G35)","v":0},0,0,0,0,0]
[]
[]
[]
[]
[]
[]
[]
[]
[]
[]
["REMARQUES"]
["Date","heures","Remarques",null,null,"Responsables"]

{"sheet":"DHOUIMER","index":16,"n_rows":48,"n_cols":12,"rows_kept":48,"cut":false,"hidden":false,"merged":[[40,2,45,5],[0,0,1,2],[0,3,1,5],[0,6,1,11],[2,0,2,1],[2,2,2,5],[57,2,57,4],[46,0,46,5],[47,2,47,4],[48,2,48,4],[49,2,49,4],[50,2,50,4],[51,2,51,4],[52,2,52,4],[53,2,53,4],[54,2,54,4],[55,2,55,4],[56,2,56,4],[68,6,68,10],[58,2,58,4],[59,2,59,4],[60,2,60,4],[61,2,61,4],[62,2,62,4],[63,2,63,4],[64,2,64,4],[65,2,65,4],[66,2,66,4],[67,2,67,4],[68,3,68,5]]}
["DHOUIMER YASSINE",null,null,null,null,null,"Feuille Attachement"]
[]
["2017-01-01",null," fournir avant  Mercredi 04/01  demande de congés pour Février 2017 en fonction des disponibilités",null,null,null,"HS","HS","HS","Total","Nuit","Insalubrité"]
["Jours","Date","Prestations","Confirmations","Prestations  HS","Horaires",0,0,0,{"$f":"SUM(G4:I4)","v":0},0,0]
["Mercredi","2016-12-21","Nice Est",null,null,null,null,null,null,0]
["Jeudi","2016-12-22","Nice Est",null,null,null,null,null,null,0]
["Vendredi","2016-12-23","Nice Est",null,null,null,null,null,null,0]
["Samedi","2016-12-24","Repos",null,null,null,null,null,null,0]
["Dimanche","2016-12-25","Repos",null,"Vieux Nice ","05H-10H",null,null,null,0]
["Lundi","2016-12-26","Nice Est",null,null,null,null,null,null,0]
["Mardi","2016-12-27","Nice Est",null,null,null,null,null,null,0]
["Mercredi","2016-12-28","Nice Est",null,null,null,null,null,null,0]
["Jeudi","2016-12-29","Nice Est",null,null,null,null,null,null,0]
["Vendredi","2016-12-30","Nice Est",null,null,null,null,null,null,0]
["Samedi","2016-12-31","Repos",null,null,null,null,null,null,0]
["Dimanche","2017-01-01","Repos",null,"Vieux Nice","05H-10H",null,null,null,0]
["Lundi","2017-01-02","Nice Est",null,null,null,null,null,null,0]
["Mardi","2017-01-03","Nice Est",null,null,null,null,null,null,0]
["Mercredi","2017-01-04","Nice Est",null,null,null,null,null,null,0]
["Jeudi","2017-01-05","Nice Est",null,null,null,null,null,null,0]
["Vendredi","2017-01-06","Repos",null,null,null,null,null,null,0]
["Samedi","2017-01-07","Nice Est",null,null,null,null,null,null,0]
["Dimanche","2017-01-08","Repos",null,null,null,null,null,null,0]
["Lundi","2017-01-09","Nice Est",null,null,null,null,null,null,0]
["Mardi","2017-01-10","Nice Est",null,null,null,null,null,null,0]
["Mercredi","2017-01-11","Nice Est",null,null,null,null,null,null,0]
["Jeudi","2017-01-12","Nice Est",null,null,null,null,null,null,0]
["Vendredi","2017-01-13","Nice Est",null,null,null,null,null,null,0]
["Samedi","2017-01-14","Repos",null,null,null,null,null,null,0]
["Dimanche","2017-01-15","Repos",null,null,null,null,null,null,0]
["Lundi","2017-01-16","Nice Est",null,null,null,null,null,null,0]
["Mardi","2017-01-17","Nice Est",null,null,null,null,null,null,0]
["Mercredi","2017-01-18","Nice Est",null,null,null,null,null,null,0]
["Jeudi","2017-01-19","Nice Est",null,null,null,null,null,null,0]
["Vendredi","2017-01-20","Nice Est",null,null,null,null,null,null,0]
[null,null,null,null,null,null,{"$f":"SUM(G5:G35)","v":0},0,0,0,0,0]
[]
[]
[]
[]
[]
[]
[]
[]
[]
[]
["REMARQUES"]
["Date","heures","Remarques",null,null,"Responsables"]

{"sheet":"ELLENA","index":17,"n_rows":48,"n_cols":12,"rows_kept":48,"cut":false,"hidden":false,"merged":[[40,2,45,5],[0,0,1,2],[0,3,1,5],[0,6,1,11],[2,0,2,1],[2,2,2,5],[57,2,57,4],[46,0,46,5],[47,2,47,4],[48,2,48,4],[49,2,49,4],[50,2,50,4],[51,2,51,4],[52,2,52,4],[53,2,53,4],[54,2,54,4],[55,2,55,4],[56,2,56,4],[64,2,64,4],[65,2,65,4],[66,2,66,4],[67,2,67,4],[58,2,58,4],[59,2,59,4],[60,2,60,4],[61,2,61,4],[62,2,62,4],[63,2,63,4]]}
["ELLENA THOMAS",null,null,null,null,null,"Feuille Attachement"]
[]
["2017-01-01",null," fournir avant  Mercredi 04/01  demande de congés pour Février 2017 en fonction des disponibilités",null,null,null,"HS","HS","HS","Total","Nuit","Insalubrité"]
["Jours","Date","Prestations","Confirmations","Prestations  HS","Horaires",0,0,0,{"$f":"SUM(G4:I4)","v":0},0,0]
["Mercredi","2016-12-21","Encombrants 20H30-03H30",null,null,null,null,null,null,0]
["Jeudi","2016-12-22","Encombrants 20H30-03H30",null,null,null,null,null,null,0]
["Vendredi","2016-12-23","Encombrants 20H30-03H30",null,null,null,null,null,null,0]
["Samedi","2016-12-24","Repos",null,null,null,null,null,null,0]
["Dimanche","2016-12-25","Repos",null,null,null,null,null,null,0]
["Lundi","2016-12-26","Nice Ouest",null,"Nice Ouest","14H-14H30",null,null,null,0]
["Mardi","2016-12-27","Nice Ouest",null,"Nice Ouest","14H-14H30",null,null,null,0]
["Mercredi","2016-12-28","Nice Ouest",null,"Nice Ouest","14H-14H30",null,null,null,0]
["Jeudi","2016-12-29","Nice Ouest",null,"Nice Ouest","14H-14H30",null,null,null,0]
["Vendredi","2016-12-30","Nice Ouest",null,"Nice Ouest","14H-14H30",null,null,null,0]
["Samedi","2016-12-31","Repos",null,"Nice Est","8H30-14H30",null,null,null,0]
["Dimanche","2017-01-01","Repos",null,null,null,null,null,null,0]
["Lundi","2017-01-02","Nice Ouest",null,"Nice Ouest","14H-14H30",null,null,null,0]
["Mardi","2017-01-03","Nice Ouest",null,"Nice Ouest","14H-14H30",null,null,null,0]
["Mercredi","2017-01-04","Nice Ouest",null,"Nice Ouest","14H-14H30",null,null,null,0]
["Jeudi","2017-01-05","Repos",null,null,null,null,null,null,0]
["Vendredi","2017-01-06","Nice Ouest",null,"Nice Ouest","14H-14H30",null,null,null,0]
["Samedi","2017-01-07","Nice Ouest",null,"Nice Ouest","14H-14H30",null,null,null,0]
["Dimanche","2017-01-08","Repos",null,null,null,null,null,null,0]
["Lundi","2017-01-09","Encombrants 5H-12H",null,null,null,null,null,null,0]
["Mardi","2017-01-10","Encombrants 5H-12H",null,null,null,null,null,null,0]
["Mercredi","2017-01-11","Encombrants 5H-12H",null,null,null,null,null,null,0]
["Jeudi","2017-01-12","Encombrants 5H-12H",null,null,null,null,null,null,0]
["Vendredi","2017-01-13","Encombrants 5H-12H",null,null,null,null,null,null,0]
["Samedi","2017-01-14","Repos",null,null,null,null,null,null,0]
["Dimanche","2017-01-15","Repos",null,"Nice Ouest & Vieux Nice","8H-12H / 13H-19H",null,null,null,0]
["Lundi","2017-01-16","Encombrants 20H30-03H30",null,null,null,null,null,null,0]
["Mardi","2017-01-17","Encombrants 20H30-03H30",null,null,null,null,null,null,0]
["Mercredi","2017-01-18","Encombrants 20H30-03H30",null,null,null,null,null,null,0]
["Jeudi","2017-01-19","Encombrants 20H30-03H30",null,null,null,null,null,null,0]
["Vendredi","2017-01-20","Encombrants 20H30-03H30",null,null,null,null,null,null,0]
[null,null,null,null,null,null,{"$f":"SUM(G5:G35)","v":0},0,0,0,0,0]
[]
[]
[]
[]
[]
[]
[]
[]
[]
[]
["REMARQUES"]
["Date","heures","Remarques",null,null,"Responsables"]

{"sheet":"FERALIS","index":18,"n_rows":48,"n_cols":12,"rows_kept":48,"cut":false,"hidden":false,"merged":[[40,2,45,5],[0,0,1,2],[0,3,1,5],[0,6,1,11],[2,0,2,1],[2,2,2,5],[57,2,57,4],[46,0,46,5],[47,2,47,4],[48,2,48,4],[49,2,49,4],[50,2,50,4],[51,2,51,4],[52,2,52,4],[53,2,53,4],[54,2,54,4],[55,2,55,4],[56,2,56,4],[68,6,68,10],[58,2,58,4],[59,2,59,4],[60,2,60,4],[61,2,61,4],[62,2,62,4],[63,2,63,4],[64,2,64,4],[65,2,65,4],[66,2,66,4],[67,2,67,4],[68,3,68,5]]}
["FERALIS CECILE",null,null,null,null,null,"Feuille Attachement"]
[]
["2017-01-01",null," fournir avant  Mercredi 04/01  demande de congés pour Février 2017 en fonction des disponibilités",null,null,null,"HS","HS","HS","Total","Nuit","Insalubrité"]
["Jours","Date","Prestations","Confirmations","Prestations  HS","Horaires",0,0,0,{"$f":"SUM(G4:I4)","v":0},0,0]
["Mercredi","2016-12-21","Polybenne 12H-19H",null,null,null,null,null,null,0]
["Jeudi","2016-12-22","Polybenne 12H-19H",null,null,null,null,null,null,0]
["Vendredi","2016-12-23","Polybenne 12H-19H",null,null,null,null,null,null,0]
["Samedi","2016-12-24","Repos",null,null,null,null,null,null,0]
["Dimanche","2016-12-25","Congés",null,null,null,null,null,null,0]
["Lundi","2016-12-26","Congés",null,null,null,null,null,null,0]
["Mardi","2016-12-27","Congés",null,null,null,null,null,null,0]
["Mercredi","2016-12-28","Congés",null,null,null,null,null,null,0]
["Jeudi","2016-12-29","Congés",null,null,null,null,null,null,0]
["Vendredi","2016-12-30","Congés",null,null,null,null,null,null,0]
["Samedi","2016-12-31","Congés",null,null,null,null,null,null,0]
["Dimanche","2017-01-01","Congés",null,null,null,null,null,null,0]
["Lundi","2017-01-02","Polybenne 12H-19H",null,null,null,null,null,null,0]
["Mardi","2017-01-03","Polybenne 12H-19H",null,null,null,null,null,null,0]
["Mercredi","2017-01-04","benne cartons 8H45-15H45",null,null,null,null,null,null,0]
["Jeudi","2017-01-05","Polybenne 12H-19H",null,null,null,null,null,null,0]
["Vendredi","2017-01-06","Repos",null,null,null,null,null,null,0]
["Samedi","2017-01-07","Polybenne 7H-12H / 14H-18H",null,"Polybenne","16H-18H",null,null,null,0]
["Dimanche","2017-01-08","Repos",null,null,null,null,null,null,0]
["Lundi","2017-01-09","Polybenne 12H-19H",null,null,null,null,null,null,0]
["Mardi","2017-01-10","Polybenne 12H-19H",null,null,null,null,null,null,0]
["Mercredi","2017-01-11","Polybenne 12H-19H",null,null,null,null,null,null,0]
["Jeudi","2017-01-12","Polybenne 12H-19H",null,null,null,null,null,null,0]
["Vendredi","2017-01-13","Polybenne 12H-19H",null,null,null,null,null,null,0]
["Samedi","2017-01-14","Repos",null,null,null,null,null,null,0]
["Dimanche","2017-01-15","Repos",null,"Cité du Parc & polybenne","7H-12H",null,null,null,0]
["Lundi","2017-01-16","Polybenne 12H-19H",null,null,null,null,null,null,0]
["Mardi","2017-01-17","Polybenne 12H-19H",null,null,null,null,null,null,0]
["Mercredi","2017-01-18","Polybenne 12H-19H",null,null,null,null,null,null,0]
["Jeudi","2017-01-19","Polybenne 12H-19H",null,null,null,null,null,null,0]
["Vendredi","2017-01-20","Polybenne 12H-19H",null,null,null,null,null,null,0]
[null,null,null,null,null,null,{"$f":"SUM(G5:G35)","v":0},0,0,0,0,0]
[]
[]
[]
[]
[]
[]
[]
[]
[]
[]
["REMARQUES"]
["Date","heures","Remarques",null,null,"Responsables"]

{"sheet":"FERRO","index":19,"n_rows":48,"n_cols":12,"rows_kept":48,"cut":false,"hidden":false,"merged":[[40,2,45,5],[0,0,1,2],[0,3,1,5],[0,6,1,11],[2,0,2,1],[2,2,2,5],[57,2,57,4],[46,0,46,5],[47,2,47,4],[48,2,48,4],[49,2,49,4],[50,2,50,4],[51,2,51,4],[52,2,52,4],[53,2,53,4],[54,2,54,4],[55,2,55,4],[56,2,56,4],[64,2,64,4],[65,2,65,4],[66,2,66,4],[67,2,67,4],[58,2,58,4],[59,2,59,4],[60,2,60,4],[61,2,61,4],[62,2,62,4],[63,2,63,4]]}
["FERRO CLEMENT",null,null,null,null,null,"Feuille Attachement"]
[]
["2017-01-01",null," fournir avant  Mercredi 04/01  demande de congés pour Février 2017 en fonction des disponibilités",null,null,null,"HS","HS","HS","Total","Nuit","Insalubrité"]
["Jours","Date","Prestations","Confirmations","Prestations  HS","Horaires",0,0,0,{"$f":"SUM(G4:I4)","v":0},0,0]
["Mercredi","2016-12-21","Standard 8H-12H/13H-16H30",null,"Standard ","16H30-17H30",null,null,null,0]
["Jeudi","2016-12-22","Standard 8H-12H/13H-16H30",null,"Standard ","16H30-17H30",null,null,null,0]
["Vendredi","2016-12-23","Standard 8H-12H/13H-16H30",null,"Standard ","16H30-17H30",null,null,null,0]
["Samedi","2016-12-24","Repos",null,null,null,null,null,null,0]
["Dimanche","2016-12-25","Repos",null,null,null,null,null,null,0]
["Lundi","2016-12-26","Standard 8H-12H/13H-16H30",null,"Standard ","16H30-17H30",null,null,null,0]
["Mardi","2016-12-27","Standard 8H-12H/13H-16H30",null,"Standard ","16H30-17H30",null,null,null,0]
["Mercredi","2016-12-28","Standard 8H-12H/13H-16H30",null,"Standard ","16H30-17H30",null,null,null,0]
["Jeudi","2016-12-29","Standard 8H-12H/13H-16H30",null,"Standard ","16H30-17H30",null,null,null,0]
["Vendredi","2016-12-30","Standard 8H-12H/13H-16H30",null,"Standard ","16H30-17H30",null,null,null,0]
["Samedi","2016-12-31","Repos",null,null,null,null,null,null,0]
["Dimanche","2017-01-01","Repos",null,null,null,null,null,null,0]
["Lundi","2017-01-02","Standard 8H-12H/13H-16H30",null,"Standard ","16H30-17H30",null,null,null,0]
["Mardi","2017-01-03","Standard 8H-12H/13H-16H30",null,null,null,null,null,null,0]
["Mercredi","2017-01-04","Standard 8H-12H/13H-16H30",null,null,null,null,null,null,0]
["Jeudi","2017-01-05","Standard 8H-12H/13H-16H30",null,null,null,null,null,null,0]
["Vendredi","2017-01-06","Standard 8H-12H/13H-16H30",null,null,null,null,null,null,0]
["Samedi","2017-01-07","Repos",null,null,null,null,null,null,0]
["Dimanche","2017-01-08","Repos",null,null,null,null,null,null,0]
["Lundi","2017-01-09","Standard 8H-12H/13H-16H30",null,"Standard ","16H30-17H30",null,null,null,0]
["Mardi","2017-01-10","Standard 8H-12H/13H-16H30",null,"Standard ","16H30-17H30",null,null,null,0]
["Mercredi","2017-01-11","Standard 8H-12H/13H-16H30",null,"Standard ","16H30-17H30",null,null,null,0]
["Jeudi","2017-01-12","Standard 8H-12H/13H-16H30",null,"Standard ","16H30-17H30",null,null,null,0]
["Vendredi","2017-01-13","Standard 8H-12H/13H-16H30",null,"Standard ","16H30-17H30",null,null,null,0]
["Samedi","2017-01-14","Repos",null,null,null,null,null,null,0]
["Dimanche","2017-01-15","Repos",null,null,null,null,null,null,0]
["Lundi","2017-01-16","Standard 8H-12H/13H-16H30",null,null,null,null,null,null,0]
["Mardi","2017-01-17","Standard 8H-12H/13H-16H30",null,null,null,null,null,null,0]
["Mercredi","2017-01-18","Standard 8H-12H/13H-16H30",null,null,null,null,null,null,0]
["Jeudi","2017-01-19","Standard 8H-12H/13H-16H30",null,null,null,null,null,null,0]
["Vendredi","2017-01-20","Standard 8H-12H/13H-16H30",null,null,null,null,null,null,0]
[null,null,null,null,null,null,{"$f":"SUM(G5:G35)","v":0},0,0,0,0,0]
[]
[]
[]
[]
[]
[]
[]
[]
[]
[]
["REMARQUES"]
["Date","heures","Remarques",null,null,"Responsables"]

{"sheet":"FIORUCCI","index":20,"n_rows":48,"n_cols":12,"rows_kept":48,"cut":false,"hidden":false,"merged":[[40,2,45,5],[0,0,1,2],[0,3,1,5],[0,6,1,11],[2,0,2,1],[2,2,2,5],[57,2,57,4],[46,0,46,5],[47,2,47,4],[48,2,48,4],[49,2,49,4],[50,2,50,4],[51,2,51,4],[52,2,52,4],[53,2,53,4],[54,2,54,4],[55,2,55,4],[56,2,56,4],[64,2,64,4],[65,2,65,4],[66,2,66,4],[67,2,67,4],[58,2,58,4],[59,2,59,4],[60,2,60,4],[61,2,61,4],[62,2,62,4],[63,2,63,4]]}
["FIORUCCI ALAIN",null,null,null,null,null,"Feuille Attachement"]
[]
["2017-01-01",null," fournir avant  Mercredi 04/01  demande de congés pour Février 2017 en fonction des disponibilités",null,null,null,"HS","HS","HS","Total","Nuit","Insalubrité"]
["Jours","Date","Prestations","Confirmations","Prestations  HS","Horaires",0,0,0,{"$f":"SUM(G4:I4)","v":0},0,0]
["Mercredi","2016-12-21","Contröle Privé 19H00- 02H30",null,null,null,null,null,null,0]
["Jeudi","2016-12-22","Contröle Privé 19H00- 02H30",null,null,null,null,null,null,0]
["Vendredi","2016-12-23","Contröle Privé 19H00- 02H30",null,null,null,null,null,null,0]
["Samedi","2016-12-24","Repos",null,null,null,null,null,null,0]
["Dimanche","2016-12-25","Repos",null,"Contröle OM","20H-02H",null,2,4,6]
["Lundi","2016-12-26","Contröle Privé 19H00- 02H30",null,null,null,null,null,null,0]
["Mardi","2016-12-27","Contröle Privé 19H00- 02H30",null,null,null,null,null,null,0]
["Mercredi","2016-12-28","Contröle Privé 19H00- 02H30",null,null,null,null,null,null,0]
["Jeudi","2016-12-29","Contröle Privé 19H00- 02H30",null,null,null,null,null,null,0]
["Vendredi","2016-12-30","Repos",null,null,null,null,null,null,0]
["Samedi","2016-12-31","Contrôle encombrants 5H-12H",null,"Contrôle encombrants","03H-05H",null,null,2,2]
["Dimanche","2017-01-01","Repos",null,"Contôle Encombrants","5H-11H",null,4,2,6]
["Lundi","2017-01-02","Contröle Privé 19H00- 02H30",null,null,null,null,null,null,0]
["Mardi","2017-01-03","Contröle Privé 19H00- 02H30",null,null,null,null,null,null,0]
["Mercredi","2017-01-04","Congés",null,null,null,null,null,null,0]
["Jeudi","2017-01-05","Contröle Privé 19H00- 02H30",null,null,null,null,null,null,0]
["Vendredi","2017-01-06","Contröle Privé 19H00- 02H30",null,null,null,null,null,null,0]
["Samedi","2017-01-07","Repos",null,null,null,null,null,null,0]
["Dimanche","2017-01-08","Repos",null,"Contröle OM","20H-02H",null,null,4,4]
["Lundi","2017-01-09","Contröle Privé 19H00- 02H30",null,null,null,null,null,null,0]
["Mardi","2017-01-10","Contröle Privé 19H00- 02H30",null,null,null,null,null,null,0]
["Mercredi","2017-01-11","Contröle Privé 19H00- 02H30",null,null,null,null,null,null,0]
["Jeudi","2017-01-12","Contröle Privé 19H00- 02H30",null,null,null,null,null,null,0]
["Vendredi","2017-01-13","Contröle Privé 19H00- 02H30",null,null,null,null,null,null,0]
["Samedi","2017-01-14","Repos",null,null,null,null,null,null,0]
["Dimanche","2017-01-15","Repos",null,null,null,null,null,null,0]
["Lundi","2017-01-16","Contröle Privé 19H00- 02H30",null,null,null,null,null,null,0]
["Mardi","2017-01-17","Contrôle 13H-20H",null,"Contrôle PM","22H-02H",null,null,4,4]
["Mercredi","2017-01-18","Contröle Privé 19H00- 02H30",null,null,null,null,null,null,0]
["Jeudi","2017-01-19","Contröle Privé 19H00- 02H30",null,null,null,null,null,null,0]
["Vendredi","2017-01-20","Contröle Privé 19H00- 02H30",null,null,null,null,null,null,0]
[null,null,null,null,null,null,{"$f":"SUM(G5:G35)","v":0},6,16,22,0,0]
[]
[]
[]
[]
[]
[]
[]
[]
[]
[]
["REMARQUES"]
["Date","heures","Remarques",null,null,"Responsables"]

{"sheet":"FRENDO","index":21,"n_rows":49,"n_cols":12,"rows_kept":49,"cut":false,"hidden":false,"merged":[[40,2,45,5],[0,0,1,2],[0,3,1,5],[0,6,1,11],[2,0,2,1],[2,2,2,5],[57,2,57,4],[46,0,46,5],[47,2,47,4],[48,2,48,4],[49,2,49,4],[50,2,50,4],[51,2,51,4],[52,2,52,4],[53,2,53,4],[54,2,54,4],[55,2,55,4],[56,2,56,4],[64,2,64,4],[65,2,65,4],[66,2,66,4],[67,2,67,4],[58,2,58,4],[59,2,59,4],[60,2,60,4],[61,2,61,4],[62,2,62,4],[63,2,63,4]]}
["FRENDO MATHIEU",null,null,null,null,null,"Feuille Attachement"]
[]
["2017-01-01",null," fournir avant  Mercredi 04/01  demande de congés pour Février 2017 en fonction des disponibilités",null,null,null,"HS","HS","HS","Total","Nuit","Insalubrité"]
["Jours","Date","Prestations","Confirmations","Prestations  HS","Horaires",0,0,0,{"$f":"SUM(G4:I4)","v":0},0,0]
["Mercredi","2016-12-21","Nice Est",null,null,null,null,null,null,0]
["Jeudi","2016-12-22","Nice Est",null,null,null,null,null,null,0]
["Vendredi","2016-12-23","Nice Est",null,null,null,null,null,null,0]
["Samedi","2016-12-24","Repos",null,null,null,null,null,null,0]
["Dimanche","2016-12-25","Repos",null,null,null,null,null,null,0]
["Lundi","2016-12-26","Nice Est",null,null,null,null,null,null,0]
["Mardi","2016-12-27","Nice Est",null,null,null,null,null,null,0]
["Mercredi","2016-12-28","Nice Est",null,null,null,null,null,null,0]
["Jeudi","2016-12-29","Nice Est",null,null,null,null,null,null,0]
["Vendredi","2016-12-30","Nice Est",null,null,null,null,null,null,0]
["Samedi","2016-12-31","Repos",null,null,null,null,null,null,0]
["Dimanche","2017-01-01","Repos",null,null,null,null,null,null,0]
["Lundi","2017-01-02","Nice Est",null,null,null,null,null,null,0]
["Mardi","2017-01-03","Nice Est",null,null,null,null,null,null,0]
["Mercredi","2017-01-04","Repos",null,null,null,null,null,null,0]
["Jeudi","2017-01-05","Nice Est",null,null,null,null,null,null,0]
["Vendredi","2017-01-06","Nice Est",null,null,null,null,null,null,0]
["Samedi","2017-01-07","Nice Est",null,null,null,null,null,null,0]
["Dimanche","2017-01-08","Repos",null,null,null,null,null,null,0]
["Lundi","2017-01-09","Nice Est",null,null,null,null,null,null,0]
["Mardi","2017-01-10","Nice Est",null,null,null,null,null,null,0]
["Mercredi","2017-01-11","Nice Est",null,null,null,null,null,null,0]
["Jeudi","2017-01-12","Nice Est",null,null,null,null,null,null,0]
["Vendredi","2017-01-13","Nice Est",null,null,null,null,null,null,0]
["Samedi","2017-01-14","Repos",null,null,null,null,null,null,0]
["Dimanche","2017-01-15","Repos",null,null,null,null,null,null,0]
["Lundi","2017-01-16","Nice Est",null,null,null,null,null,null,0]
["Mardi","2017-01-17","Nice Est",null,null,null,null,null,null,0]
["Mercredi","2017-01-18","Nice Est",null,null,null,null,null,null,0]
["Jeudi","2017-01-19","Nice Est",null,null,null,null,null,null,0]
["Vendredi","2017-01-20","Nice Est",null,null,null,null,null,null,0]
[null,null,null,null,null,null,{"$f":"SUM(G5:G35)","v":0},0,0,0,0,0]
[]
[]
[]
[]
[null,null,"Fin astreinte 21/11/2016"]
[]
[]
[]
[]
[]
["REMARQUES"]
["Date","heures","Remarques",null,null,"Responsables"]
["2016-03-21","09H25","Arrivée à 9H25 sur la déchetterie Nice Est",null,null,"Corvisier"]

{"sheet":"GANDOLIN","index":22,"n_rows":48,"n_cols":12,"rows_kept":48,"cut":false,"hidden":false,"merged":[[40,2,45,5],[0,0,1,2],[0,3,1,5],[0,6,1,11],[2,0,2,1],[2,2,2,5],[57,2,57,4],[46,0,46,5],[47,2,47,4],[48,2,48,4],[49,2,49,4],[50,2,50,4],[51,2,51,4],[52,2,52,4],[53,2,53,4],[54,2,54,4],[55,2,55,4],[56,2,56,4],[64,2,64,4],[65,2,65,4],[66,2,66,4],[67,2,67,4],[58,2,58,4],[59,2,59,4],[60,2,60,4],[61,2,61,4],[62,2,62,4],[63,2,63,4]]}
["GANDOLIN ADRIEN",null,null,null,null,null,"Feuille Attachement"]
[]
["2017-01-01",null," fournir avant  Mercredi 04/01  demande de congés pour Février 2017 en fonction des disponibilités",null,null,null,"HS","HS","HS","Total","Nuit","Insalubrité"]
["Jours","Date","Prestations","Confirmations","Prestations  HS","Horaires",0,0,0,{"$f":"SUM(G4:I4)","v":0},0,0]
["Mercredi","2016-12-21","Encombrants 5H-12H",null,null,null,null,null,null,0]
["Jeudi","2016-12-22","Repos",null,null,null,null,null,null,0]
["Vendredi","2016-12-23","Encombrants 5H-12H",null,null,null,null,null,null,0]
["Samedi","2016-12-24","Nice Est",null,null,null,null,null,null,0]
["Dimanche","2016-12-25","Repos",null,null,null,null,null,null,0]
["Lundi","2016-12-26","Encombrants 20H30-03H30",null,null,null,null,null,null,0]
["Mardi","2016-12-27","Encombrants 20H30-03H30",null,null,null,null,null,null,0]
["Mercredi","2016-12-28","Encombrants 20H30-03H30",null,null,null,null,null,null,0]
["Jeudi","2016-12-29","Encombrants 20H30-03H30",null,null,null,null,null,null,0]
["Vendredi","2016-12-30","Encombrants 20H30-03H30",null,null,null,null,null,null,0]
["Samedi","2016-12-31","Repos",null,null,null,null,null,null,0]
["Dimanche","2017-01-01","Repos",null,null,null,null,null,null,0]
["Lundi","2017-01-02","Encombrants 20H30-03H30",null,null,null,null,null,null,0]
["Mardi","2017-01-03","Encombrants 20H30-03H30",null,null,null,null,null,null,0]
["Mercredi","2017-01-04","Encombrants 20H30-03H30",null,null,null,null,null,null,0]
["Jeudi","2017-01-05","Encombrants 20H30-03H30",null,null,null,null,null,null,0]
["Vendredi","2017-01-06","Encombrants 20H30-03H30",null,null,null,null,null,null,0]
["Samedi","2017-01-07","Repos",null,null,null,null,null,null,0]
["Dimanche","2017-01-08","Repos",null,"Vieux Nice ","13H-19H",null,null,null,0]
["Lundi","2017-01-09","Encombrants 20H30-03H30",null,null,null,null,null,null,0]
["Mardi","2017-01-10","Encombrants 20H30-03H30",null,null,null,null,null,null,0]
["Mercredi","2017-01-11","Encombrants 20H30-03H30",null,null,null,null,null,null,0]
["Jeudi","2017-01-12","Encombrants 20H30-03H30",null,null,null,null,null,null,0]
["Vendredi","2017-01-13","Encombrants 20H30-03H30",null,null,null,null,null,null,0]
["Samedi","2017-01-14","Repos",null,null,null,null,null,null,0]
["Dimanche","2017-01-15","Repos",null,"Vieux Nice","05H-11H",null,null,null,0]
["Lundi","2017-01-16","Encombrants 5H-12H",null,null,null,null,null,null,0]
["Mardi","2017-01-17","Encombrants 5H-12H",null,null,null,null,null,null,0]
["Mercredi","2017-01-18","Encombrants 5H-12H",null,null,null,null,null,null,0]
["Jeudi","2017-01-19","Repos Attention travail le Sd 21/01/17",null,null,null,null,null,null,0]
["Vendredi","2017-01-20","Encombrants 5H-12H",null,null,null,null,null,null,0]
[null,null,null,null,null,null,{"$f":"SUM(G5:G35)","v":0},0,0,0,0,0]
[]
[]
[]
[]
[null,null,"Travailleras le samedi 21/01"]
[]
[]
[]
[]
[]
["REMARQUES"]
["Date","heures","Remarques",null,null,"Responsables"]

{"sheet":"GLASKOFF","index":23,"n_rows":51,"n_cols":12,"rows_kept":51,"cut":false,"hidden":false,"merged":[[40,2,45,5],[0,0,1,2],[0,3,1,5],[0,6,1,11],[2,0,2,1],[2,2,2,5],[57,2,57,4],[46,0,46,5],[47,2,47,4],[48,2,48,4],[49,2,49,4],[50,2,50,4],[51,2,51,4],[52,2,52,4],[53,2,53,4],[54,2,54,4],[55,2,55,4],[56,2,56,4],[64,2,64,4],[65,2,65,4],[66,2,66,4],[67,2,67,4],[58,2,58,4],[59,2,59,4],[60,2,60,4],[61,2,61,4],[62,2,62,4],[63,2,63,4]]}
["GLASKOFF HERVE",null,null,null,null,null,"Feuille Attachement"]
[]
["2017-01-01",null," fournir avant  Mercredi 04/01  demande de congés pour Février 2017 en fonction des disponibilités",null,null,null,"HS","HS","HS","Total","Nuit","Insalubrité"]
["Jours","Date","Prestations","Confirmations","Prestations  HS","Horaires",0,0,0,{"$f":"SUM(G4:I4)","v":0},0,0]
["Mercredi","2016-12-21","benne cartons 8H45-15H45",null,null,null,null,null,null,0]
["Jeudi","2016-12-22","benne cartons 8H45-15H45",null,null,null,null,null,null,0]
["Vendredi","2016-12-23","benne cartons 8H45-15H45",null,null,null,null,null,null,0]
["Samedi","2016-12-24","Congés",null,null,null,null,null,null,0]
["Dimanche","2016-12-25","Congés",null,null,null,null,null,null,0]
["Lundi","2016-12-26","Congés",null,null,null,null,null,null,0]
["Mardi","2016-12-27","Congés",null,null,null,null,null,null,0]
["Mercredi","2016-12-28","Congés",null,null,null,null,null,null,0]
["Jeudi","2016-12-29","Congés",null,null,null,null,null,null,0]
["Vendredi","2016-12-30","Congés",null,null,null,null,null,null,0]
["Samedi","2016-12-31","Congés",null,null,null,null,null,null,0]
["Dimanche","2017-01-01","Congés",null,null,null,null,null,null,0]
["Lundi","2017-01-02","benne cartons 8H45-15H45",null,null,null,null,null,null,0]
["Mardi","2017-01-03","Repos",null,null,null,null,null,null,0]
["Mercredi","2017-01-04","benne cartons 8H45-15H45",null,null,null,null,null,null,0]
["Jeudi","2017-01-05","benne cartons 8H45-15H45",null,null,null,null,null,null,0]
["Vendredi","2017-01-06","benne cartons 8H45-15H45",null,null,null,null,null,null,0]
["Samedi","2017-01-07","Nice Ouest",null,null,null,null,null,null,0]
["Dimanche","2017-01-08","Repos",null,null,null,null,null,null,0]
["Lundi","2017-01-09","benne cartons 8H45-15H45",null,null,null,null,null,null,0]
["Mardi","2017-01-10","benne cartons 8H45-15H45",null,null,null,null,null,null,0]
["Mercredi","2017-01-11","benne cartons 8H45-15H45",null,null,null,null,null,null,0]
["Jeudi","2017-01-12","benne cartons 8H45-15H45",null,null,null,null,null,null,0]
["Vendredi","2017-01-13","benne cartons 8H45-15H45",null,null,null,null,null,null,0]
["Samedi","2017-01-14","Repos",null,null,null,null,null,null,0]
["Dimanche","2017-01-15","Repos",null,"Vieux Nice","13H-19H",null,null,null,0]
["Lundi","2017-01-16","benne cartons 8H45-15H45",null,null,null,null,null,null,0]
["Mardi","2017-01-17","benne cartons 8H45-15H45",null,null,null,null,null,null,0]
["Mercredi","2017-01-18","benne cartons 8H45-15H45",null,null,null,null,null,null,0]
["Jeudi","2017-01-19","benne cartons 8H45-15H45",null,null,null,null,null,null,0]
["Vendredi","2017-01-20","benne cartons 8H45-15H45",null,null,null,null,null,null,0]
[null,null,null,null,null,null,{"$f":"SUM(G5:G35)","v":0},0,0,0,0,0]
[]
[]
[]
[]
[]
[]
[]
[]
[]
[]
["REMARQUES"]
["Date","heures","Remarques",null,null,"Responsables"]
["2016-08-17","14H30","Départ à 14H30 des cartons",null,null,"Arnaud"]
["2016-10-01","8H40","Arrivée à 8H40 sur Nice Est",null,null,"Cirimele"]
["2016-11-12","8H45","Arrivée à 8H40 sur Nice Est ",null,null,"Cirimele"]

{"sheet":"GUIZANI","index":24,"n_rows":50,"n_cols":12,"rows_kept":50,"cut":false,"hidden":false,"merged":[[40,2,45,5],[0,0,1,2],[0,3,1,5],[0,6,1,11],[2,0,2,1],[2,2,2,5],[57,2,57,4],[46,0,46,5],[47,2,47,4],[48,2,48,4],[49,2,49,4],[50,2,50,4],[51,2,51,4],[52,2,52,4],[53,2,53,4],[54,2,54,4],[55,2,55,4],[56,2,56,4],[64,2,64,4],[65,2,65,4],[66,2,66,4],[67,2,67,4],[58,2,58,4],[59,2,59,4],[60,2,60,4],[61,2,61,4],[62,2,62,4],[63,2,63,4]]}
["GUIZANI SAMI",null,null,null,null,null,"Feuille Attachement"]
[]
["2017-01-01",null," fournir avant  Mercredi 04/01  demande de congés pour Février 2017 en fonction des disponibilités",null,null,null,"HS","HS","HS","Total","Nuit","Insalubrité"]
["Jours","Date","Prestations","Confirmations","Prestations  HS","Horaires",0,0,0,{"$f":"SUM(G4:I4)","v":0},0,0]
["Mercredi","2016-12-21","Cartons 7H-14H",null,null,null,null,null,null,0]
["Jeudi","2016-12-22","Cartons 7H-14H",null,null,null,null,null,null,0]
["Vendredi","2016-12-23","Repos",null,null,null,null,null,null,0]
["Samedi","2016-12-24","Nice Est",null,null,null,null,null,null,0]
["Dimanche","2016-12-25","Repos",null,null,null,null,null,null,0]
["Lundi","2016-12-26","Cartons 7H-14H",null,null,null,null,null,null,0]
["Mardi","2016-12-27","Cartons 7H-14H",null,null,null,null,null,null,0]
["Mercredi","2016-12-28","Cartons 7H-14H",null,null,null,null,null,null,0]
["Jeudi","2016-12-29","Cartons 7H-14H",null,null,null,null,null,null,0]
["Vendredi","2016-12-30","Cartons 7H-14H",null,null,null,null,null,null,0]
["Samedi","2016-12-31","Repos",null,null,null,null,null,null,0]
["Dimanche","2017-01-01","Repos",null,"Vieux Nice","14H-19H",null,null,null,0]
["Lundi","2017-01-02","Cartons 7H-14H",null,null,null,null,null,null,0]
["Mardi","2017-01-03","Cartons 7H-14H",null,null,null,null,null,null,0]
["Mercredi","2017-01-04","Cartons 7H-14H",null,null,null,null,null,null,0]
["Jeudi","2017-01-05","Cartons 7H-14H",null,null,null,null,null,null,0]
["Vendredi","2017-01-06","Cartons 7H-14H",null,null,null,null,null,null,0]
["Samedi","2017-01-07","Repos",null,null,null,null,null,null,0]
["Dimanche","2017-01-08","Repos",null,null,null,null,null,null,0]
["Lundi","2017-01-09","Cartons 7H-14H",null,null,null,null,null,null,0]
["Mardi","2017-01-10","Cartons 7H-14H",null,null,null,null,null,null,0]
["Mercredi","2017-01-11","Cartons 7H-14H",null,null,null,null,null,null,0]
["Jeudi","2017-01-12","Cartons 7H-14H",null,null,null,null,null,null,0]
["Vendredi","2017-01-13","Cartons 7H-14H",null,null,null,null,null,null,0]
["Samedi","2017-01-14","Repos",null,null,null,null,null,null,0]
["Dimanche","2017-01-15","Repos",null,"Nice Est & Vieux Nice","8H-12H / 13H-19H",null,null,null,0]
["Lundi","2017-01-16","Cartons 7H-14H",null,null,null,null,null,null,0]
["Mardi","2017-01-17","Cartons 7H-14H",null,null,null,null,null,null,0]
["Mercredi","2017-01-18","Cartons 7H-14H",null,null,null,null,null,null,0]
["Jeudi","2017-01-19","Cartons 7H-14H",null,null,null,null,null,null,0]
["Vendredi","2017-01-20","Cartons 7H-14H",null,null,null,null,null,null,0]
[null,null,null,null,null,null,{"$f":"SUM(G5:G35)","v":0},0,0,0,0,0]
[]
[]
[]
[]
[null,null,"Formation 3/11,17/11,24/11,01/12,08/12,15/12\nCongés du 22/10/2016 au 29/10/2016\n"]
[]
[]
[]
[]
[]
["REMARQUES"]
["Date","heures","Remarques",null,null,"Responsables"]
["2015-12-30","7H","Pas de chaussures de sécurité à la prise de service",null,null,"Corvisier"]
["2016-09-09","12H","Pas de chaussures de sécurité à la prise de service",null,null,"Corvisier"]

{"sheet":"ISOARD","index":25,"n_rows":48,"n_cols":12,"rows_kept":48,"cut":false,"hidden":false,"merged":[[40,2,45,5],[0,0,1,2],[0,3,1,5],[0,6,1,11],[2,0,2,1],[2,2,2,5],[57,2,57,4],[46,0,46,5],[47,2,47,4],[48,2,48,4],[49,2,49,4],[50,2,50,4],[51,2,51,4],[52,2,52,4],[53,2,53,4],[54,2,54,4],[55,2,55,4],[56,2,56,4],[64,2,64,4],[65,2,65,4],[66,2,66,4],[67,2,67,4],[58,2,58,4],[59,2,59,4],[60,2,60,4],[61,2,61,4],[62,2,62,4],[63,2,63,4]]}
["ISOARD NICOLAS",null,null,null,null,null,"Feuille Attachement"]
[]
["2017-01-01",null," fournir avant  Mercredi 04/01  demande de congés pour Février 2017 en fonction des disponibilités",null,null,null,"HS","HS","HS","Total","Nuit","Insalubrité"]
["Jours","Date","Prestations","Confirmations","Prestations  HS","Horaires",0,0,0,{"$f":"SUM(G4:I4)","v":0},0,0]
["Mercredi","2016-12-21",null,null,null,null,null,null,null,0]
["Jeudi","2016-12-22",null,null,null,null,null,null,null,0]
["Vendredi","2016-12-23",null,null,null,null,null,null,null,0]
["Samedi","2016-12-24",null,null,null,null,null,null,null,0]
["Dimanche","2016-12-25",null,null,null,null,null,null,null,0]
["Lundi","2016-12-26",null,null,null,null,null,null,null,0]
["Mardi","2016-12-27",null,null,null,null,null,null,null,0]
["Mercredi","2016-12-28",null,null,null,null,null,null,null,0]
["Jeudi","2016-12-29",null,null,null,null,null,null,null,0]
["Vendredi","2016-12-30",null,null,null,null,null,null,null,0]
["Samedi","2016-12-31",null,null,null,null,null,null,null,0]
["Dimanche","2017-01-01",null,null,null,null,null,null,null,0]
["Lundi","2017-01-02",null,null,null,null,null,null,null,0]
["Mardi","2017-01-03",null,null,null,null,null,null,null,0]
["Mercredi","2017-01-04",null,null,null,null,null,null,null,0]
["Jeudi","2017-01-05",null,null,null,null,null,null,null,0]
["Vendredi","2017-01-06",null,null,null,null,null,null,null,0]
["Samedi","2017-01-07",null,null,null,null,null,null,null,0]
["Dimanche","2017-01-08",null,null,null,null,null,null,null,0]
["Lundi","2017-01-09",null,null,null,null,null,null,null,0]
["Mardi","2017-01-10",null,null,null,null,null,null,null,0]
["Mercredi","2017-01-11",null,null,null,null,null,null,null,0]
["Jeudi","2017-01-12",null,null,null,null,null,null,null,0]
["Vendredi","2017-01-13",null,null,null,null,null,null,null,0]
["Samedi","2017-01-14",null,null,null,null,null,null,null,0]
["Dimanche","2017-01-15",null,null,null,null,null,null,null,0]
["Lundi","2017-01-16",null,null,null,null,null,null,null,0]
["Mardi","2017-01-17",null,null,null,null,null,null,null,0]
["Mercredi","2017-01-18",null,null,null,null,null,null,null,0]
["Jeudi","2017-01-19",null,null,null,null,null,null,null,0]
["Vendredi","2017-01-20",null,null,null,null,null,null,null,0]
[null,null,null,null,null,null,{"$f":"SUM(G5:G35)","v":0},0,0,0,0,0]
[]
[]
[]
[]
[null,null,"Arrêt maladie jusqu'au 14/11/2016 avertir Raschella Brigitte"]
[]
[]
[]
[]
[]
["REMARQUES"]
["Date","heures","Remarques",null,null,"Responsables"]

{"sheet":"LANDRIEUX","index":26,"n_rows":48,"n_cols":12,"rows_kept":48,"cut":false,"hidden":false,"merged":[[50,2,50,4],[0,0,1,2],[0,3,1,5],[0,6,1,11],[2,0,2,1],[2,2,2,5],[13,3,16,3],[40,2,45,5],[46,0,46,5],[47,2,47,4],[48,2,48,4],[49,2,49,4],[62,2,62,4],[51,2,51,4],[52,2,52,4],[53,2,53,4],[54,2,54,4],[55,2,55,4],[56,2,56,4],[57,2,57,4],[58,2,58,4],[59,2,59,4],[60,2,60,4],[61,2,61,4],[63,2,63,4],[64,2,64,4],[65,2,65,4],[66,2,66,4],[67,2,67,4]]}
["LANDRIEUX NATHALIE",null,null,null,null,null,"Feuille Attachement"]
[]
["2017-01-01",null," fournir avant  Mercredi 04/01  demande de congés pour Février 2017 en fonction des disponibilités",null,null,null,"HS","HS","HS","Total","Nuit","Insalubrité"]
["Jours","Date","Prestations","Confirmations","Prestations  HS","Horaires",0,0,0,{"$f":"SUM(G4:I4)","v":0},0,0]
["Mercredi","2016-12-21","Repos",null,null,null,null,null,null,0]
["Jeudi","2016-12-22","Benne cartons 8H45 - 15H45",null,null,null,null,null,null,0]
["Vendredi","2016-12-23","Benne cartons 8H45 - 15H45",null,null,null,null,null,null,0]
["Samedi","2016-12-24","Polybenne 7H-14H",null,null,null,null,null,null,0]
["Dimanche","2016-12-25","Repos",null,null,null,null,null,null,0]
["Lundi","2016-12-26","Benne cartons 8H45 - 15H45",null,null,null,null,null,null,0]
["Mardi","2016-12-27","Benne cartons 8H45 - 15H45",null,null,null,null,null,null,0]
["Mercredi","2016-12-28","Repos",null,null,null,null,null,null,0]
["Jeudi","2016-12-29","Benne cartons 8H45 - 15H45",null,null,null,null,null,null,0]
["Vendredi","2016-12-30","Benne cartons 8H45 - 15H45","Astreinte Garder\n Portable Allumé",null,null,null,null,null,0]
["Samedi","2016-12-31","Polybenne 7H-14H",null,null,null,null,null,null,0]
["Dimanche","2017-01-01","Repos",null,null,null,null,null,null,0]
["Lundi","2017-01-02","Benne cartons 8H45 - 15H45",null,null,null,null,null,null,0]
["Mardi","2017-01-03","Benne cartons 8H45 - 15H45",null,null,null,null,null,null,0]
["Mercredi","2017-01-04","Repos",null,null,null,null,null,null,0]
["Jeudi","2017-01-05","Benne cartons 8H45 - 15H45",null,null,null,null,null,null,0]
["Vendredi","2017-01-06","Benne cartons 8H45 - 15H45",null,null,null,null,null,null,0]
["Samedi","2017-01-07","Polybenne 7H-12H / 14H-18H",null,"Polybenne"," 16H-18H",null,null,null,0]
["Dimanche","2017-01-08","Repos",null,"Cité du Parc & polybenne","7H-12H",null,null,null,0]
["Lundi","2017-01-09","Benne cartons 8H45 - 15H45",null,null,null,null,null,null,0]
["Mardi","2017-01-10","Benne cartons 8H45 - 15H45",null,null,null,null,null,null,0]
["Mercredi","2017-01-11","Repos",null,null,null,null,null,null,0]
["Jeudi","2017-01-12","Benne cartons 8H45 - 15H45",null,null,null,null,null,null,0]
["Vendredi","2017-01-13","Benne cartons 8H45 - 15H45",null,null,null,null,null,null,0]
["Samedi","2017-01-14","Polybenne 7H-12H / 14H-18H",null,"Polybenne"," 16H-18H",null,null,null,0]
["Dimanche","2017-01-15","Repos",null,null,null,null,null,null,0]
["Lundi","2017-01-16","Benne cartons 8H45 - 15H45",null,null,null,null,null,null,0]
["Mardi","2017-01-17","Benne cartons 8H45 - 15H45",null,null,null,null,null,null,0]
["Mercredi","2017-01-18","Repos",null,null,null,null,null,null,0]
["Jeudi","2017-01-19","Benne cartons 8H45 - 15H45",null,null,null,null,null,null,0]
["Vendredi","2017-01-20","Benne cartons 8H45 - 15H45",null,null,null,null,null,null,0]
[null,null,null,null,null,null,{"$f":"SUM(G5:G35)","v":0},0,0,0,0,0]
[]
[]
[]
[]
[]
[]
[]
[]
[]
[]
["REMARQUES"]
["Date","heures","Remarques",null,null,"Responsables"]

{"sheet":"MALLO","index":27,"n_rows":48,"n_cols":12,"rows_kept":48,"cut":false,"hidden":false,"merged":[[40,2,45,5],[0,0,1,2],[0,3,1,5],[0,6,1,11],[2,0,2,1],[2,2,2,5],[57,2,57,4],[46,0,46,5],[47,2,47,4],[48,2,48,4],[49,2,49,4],[50,2,50,4],[51,2,51,4],[52,2,52,4],[53,2,53,4],[54,2,54,4],[55,2,55,4],[56,2,56,4],[64,2,64,4],[65,2,65,4],[66,2,66,4],[67,2,67,4],[58,2,58,4],[59,2,59,4],[60,2,60,4],[61,2,61,4],[62,2,62,4],[63,2,63,4]]}
["MALLO ALFRED",null,null,null,null,null,"Feuille Attachement"]
[]
["2017-01-01",null," fournir avant  Mercredi 04/01  demande de congés pour Février 2017 en fonction des disponibilités",null,null,null,"HS","HS","HS","Total","Nuit","Insalubrité"]
["Jours","Date","Prestations","Confirmations","Prestations  HS","Horaires",0,0,0,{"$f":"SUM(G4:I4)","v":0},0,0]
["Mercredi","2016-12-21","Repos",null,null,null,null,null,null,0]
["Jeudi","2016-12-22","Nice Nord",null,null,null,null,null,null,0]
["Vendredi","2016-12-23","Nice Nord",null,null,null,null,null,null,0]
["Samedi","2016-12-24","Nice Nord",null,null,null,null,null,null,0]
["Dimanche","2016-12-25","Repos",null,null,null,null,null,null,0]
["Lundi","2016-12-26","Nice Nord",null,null,null,null,null,null,0]
["Mardi","2016-12-27","Nice Nord",null,null,null,null,null,null,0]
["Mercredi","2016-12-28","Nice Nord",null,null,null,null,null,null,0]
["Jeudi","2016-12-29","Nice Nord",null,null,null,null,null,null,0]
["Vendredi","2016-12-30","Nice Nord",null,null,null,null,null,null,0]
["Samedi","2016-12-31","Repos",null,null,null,null,null,null,0]
["Dimanche","2017-01-01","Repos",null,null,null,null,null,null,0]
["Lundi","2017-01-02","Nice Nord",null,null,null,null,null,null,0]
["Mardi","2017-01-03","Nice Nord",null,null,null,null,null,null,0]
["Mercredi","2017-01-04","Nice Nord",null,null,null,null,null,null,0]
["Jeudi","2017-01-05","Nice Nord",null,null,null,null,null,null,0]
["Vendredi","2017-01-06","Nice Nord",null,null,null,null,null,null,0]
["Samedi","2017-01-07","Repos",null,null,null,null,null,null,0]
["Dimanche","2017-01-08","Repos",null,null,null,null,null,null,0]
["Lundi","2017-01-09","Nice Nord",null,null,null,null,null,null,0]
["Mardi","2017-01-10","Nice Nord",null,null,null,null,null,null,0]
["Mercredi","2017-01-11","Nice Nord",null,null,null,null,null,null,0]
["Jeudi","2017-01-12","Nice Nord",null,null,null,null,null,null,0]
["Vendredi","2017-01-13","Nice Nord",null,null,null,null,null,null,0]
["Samedi","2017-01-14","Repos",null,null,null,null,null,null,0]
["Dimanche","2017-01-15","Repos",null,null,null,null,null,null,0]
["Lundi","2017-01-16","Nice Nord",null,null,null,null,null,null,0]
["Mardi","2017-01-17","Nice Nord",null,null,null,null,null,null,0]
["Mercredi","2017-01-18","Nice Nord",null,null,null,null,null,null,0]
["Jeudi","2017-01-19","Nice Nord",null,null,null,null,null,null,0]
["Vendredi","2017-01-20","Nice Nord",null,null,null,null,null,null,0]
[null,null,null,null,null,null,{"$f":"SUM(G5:G35)","v":0},0,0,0,0,0]
[]
[]
[]
[]
[]
[]
[]
[]
[]
[]
["REMARQUES"]
["Date","heures","Remarques",null,null,"Responsables"]

{"sheet":"MANDREA","index":28,"n_rows":48,"n_cols":12,"rows_kept":48,"cut":false,"hidden":false,"merged":[[40,2,45,5],[0,0,1,2],[0,3,1,5],[0,6,1,11],[2,0,2,1],[2,2,2,5],[57,2,57,4],[46,0,46,5],[47,2,47,4],[48,2,48,4],[49,2,49,4],[50,2,50,4],[51,2,51,4],[52,2,52,4],[53,2,53,4],[54,2,54,4],[55,2,55,4],[56,2,56,4],[64,2,64,4],[65,2,65,4],[66,2,66,4],[67,2,67,4],[58,2,58,4],[59,2,59,4],[60,2,60,4],[61,2,61,4],[62,2,62,4],[63,2,63,4]]}
["MANDREA THIERRY",null,null,null,null,null,"Feuille Attachement"]
[]
["2017-01-01",null," fournir avant  Mercredi 04/01  demande de congés pour Février 2017 en fonction des disponibilités",null,null,null,"HS","HS","HS","Total","Nuit","Insalubrité"]
["Jours","Date","Prestations","Confirmations","Prestations  HS","Horaires",0,0,0,{"$f":"SUM(G4:I4)","v":0},0,0]
["Mercredi","2016-12-21","Nice Ouest",null,"Nice Ouest","14H-14H30",null,null,null,0]
["Jeudi","2016-12-22","Nice Ouest",null,"Nice Ouest","14H-14H30",null,null,null,0]
["Vendredi","2016-12-23","Nice Ouest",null,"Nice Ouest","14H-14H30",null,null,null,0]
["Samedi","2016-12-24","Congés",null,null,null,null,null,null,0]
["Dimanche","2016-12-25","Congés",null,null,null,null,null,null,0]
["Lundi","2016-12-26","Congés",null,null,null,null,null,null,0]
["Mardi","2016-12-27","Congés",null,null,null,null,null,null,0]
["Mercredi","2016-12-28","Congés",null,null,null,null,null,null,0]
["Jeudi","2016-12-29","Congés",null,null,null,null,null,null,0]
["Vendredi","2016-12-30","Congés",null,null,null,null,null,null,0]
["Samedi","2016-12-31","Congés",null,null,null,null,null,null,0]
["Dimanche","2017-01-01","Congés",null,null,null,null,null,null,0]
["Lundi","2017-01-02","Nice Ouest",null,"Nice Ouest","14H-14H30",null,null,null,0]
["Mardi","2017-01-03","Nice Ouest",null,"Nice Ouest","14H-14H30",null,null,null,0]
["Mercredi","2017-01-04","Repos",null,null,null,null,null,null,0]
["Jeudi","2017-01-05","Nice Ouest",null,"Nice Ouest","14H-14H30",null,null,null,0]
["Vendredi","2017-01-06","Nice Ouest",null,"Nice Ouest","14H-14H30",null,null,null,0]
["Samedi","2017-01-07","Nice Ouest",null,"Nice Ouest","14H-14H30",null,null,null,0]
["Dimanche","2017-01-08","Repos",null,null,null,null,null,null,0]
["Lundi","2017-01-09","Nice Ouest",null,"Nice Ouest","14H-14H30",null,null,null,0]
["Mardi","2017-01-10","Nice Ouest",null,"Nice Ouest","14H-14H30",null,null,null,0]
["Mercredi","2017-01-11","Nice Ouest",null,"Nice Ouest","14H-14H30",null,null,null,0]
["Jeudi","2017-01-12","Nice Ouest",null,"Nice Ouest","14H-14H30",null,null,null,0]
["Vendredi","2017-01-13","Nice Ouest",null,"Nice Ouest","14H-14H30",null,null,null,0]
["Samedi","2017-01-14","Repos",null,null,null,null,null,null,0]
["Dimanche","2017-01-15","Repos",null,"Nice Ouest","8H-12H",null,null,null,0]
["Lundi","2017-01-16","Nice Ouest",null,"Nice Ouest","14H-14H30",null,null,null,0]
["Mardi","2017-01-17","Nice Ouest",null,"Nice Ouest","14H-14H30",null,null,null,0]
["Mercredi","2017-01-18","Nice Ouest",null,"Nice Ouest","14H-14H30",null,null,null,0]
["Jeudi","2017-01-19","Nice Ouest",null,"Nice Ouest","14H-14H30",null,null,null,0]
["Vendredi","2017-01-20","Nice Ouest",null,"Nice Ouest","14H-14H30",null,null,null,0]
[null,null,null,null,null,null,{"$f":"SUM(G5:G35)","v":0},0,0,0,0,0]
[]
[]
[]
[]
[null,null,"Congés du 23/12 au 01/01/17"]
[]
[]
[]
[]
[]
["REMARQUES"]
["Date","heures","Remarques",null,null,"Responsables"]

{"sheet":"MARCELLI","index":29,"n_rows":49,"n_cols":12,"rows_kept":49,"cut":false,"hidden":false,"merged":[[40,2,45,5],[0,0,1,2],[0,3,1,5],[0,6,1,11],[2,0,2,1],[2,2,2,5],[57,2,57,4],[46,0,46,5],[47,2,47,4],[48,2,48,4],[49,2,49,4],[50,2,50,4],[51,2,51,4],[52,2,52,4],[53,2,53,4],[54,2,54,4],[55,2,55,4],[56,2,56,4],[64,2,64,4],[65,2,65,4],[66,2,66,4],[67,2,67,4],[58,2,58,4],[59,2,59,4],[60,2,60,4],[61,2,61,4],[62,2,62,4],[63,2,63,4]]}
["MARCELLI ALAIN",null,null,null,null,null,"Feuille Attachement"]
[]
["2017-01-01",null," fournir avant  Mercredi 04/01  demande de congés pour Février 2017 en fonction des disponibilités",null,null,null,"HS","HS","HS","Total","Nuit","Insalubrité"]
["Jours","Date","Prestations","Confirmations","Prestations  HS","Horaires",0,0,0,{"$f":"SUM(G4:I4)","v":0},0,0]
["Mercredi","2016-12-21","Nice Est",null,null,null,null,null,null,0]
["Jeudi","2016-12-22","Nice Est",null,null,null,null,null,null,0]
["Vendredi","2016-12-23","Nice Est",null,null,null,null,null,null,0]
["Samedi","2016-12-24","Repos",null,null,null,null,null,null,0]
["Dimanche","2016-12-25","Repos",null,null,null,null,null,null,0]
["Lundi","2016-12-26","Nice Est",null,null,null,null,null,null,0]
["Mardi","2016-12-27","Nice Est",null,null,null,null,null,null,0]
["Mercredi","2016-12-28","Nice Est",null,null,null,null,null,null,0]
["Jeudi","2016-12-29","Nice Est",null,null,null,null,null,null,0]
["Vendredi","2016-12-30","Nice Est",null,null,null,null,null,null,0]
["Samedi","2016-12-31","Repos",null,null,null,null,null,null,0]
["Dimanche","2017-01-01","Repos",null,null,null,null,null,null,0]
["Lundi","2017-01-02","Congés",null,null,null,null,null,null,0]
["Mardi","2017-01-03","Congés",null,null,null,null,null,null,0]
["Mercredi","2017-01-04","Congés",null,null,null,null,null,null,0]
["Jeudi","2017-01-05","Congés",null,null,null,null,null,null,0]
["Vendredi","2017-01-06","Congés",null,null,null,null,null,null,0]
["Samedi","2017-01-07","Congés",null,null,null,null,null,null,0]
["Dimanche","2017-01-08","Congés",null,null,null,null,null,null,0]
["Lundi","2017-01-09","Nice Est",null,null,null,null,null,null,0]
["Mardi","2017-01-10","Repos",null,null,null,null,null,null,0]
["Mercredi","2017-01-11","Nice Est",null,null,null,null,null,null,0]
["Jeudi","2017-01-12","Nice Est",null,null,null,null,null,null,0]
["Vendredi","2017-01-13","Nice Est",null,null,null,null,null,null,0]
["Samedi","2017-01-14","Nice Est",null,null,null,null,null,null,0]
["Dimanche","2017-01-15","Repos",null,null,null,null,null,null,0]
["Lundi","2017-01-16","Nice Est",null,null,null,null,null,null,0]
["Mardi","2017-01-17","Nice Est",null,null,null,null,null,null,0]
["Mercredi","2017-01-18","Nice Est",null,null,null,null,null,null,0]
["Jeudi","2017-01-19","Nice Est",null,null,null,null,null,null,0]
["Vendredi","2017-01-20","Nice Est",null,null,null,null,null,null,0]
[null,null,null,null,null,null,{"$f":"SUM(G5:G35)","v":0},0,0,0,0,0]
[]
[]
[]
[]
[]
[]
[]
[]
[]
[]
["REMARQUES"]
["Date","heures","Remarques",null,null,"Responsables"]
["2016-04-07","17H","Discute avec Astier et le tri n'est pas fait par les usagers"]

{"sheet":"MARINO","index":30,"n_rows":51,"n_cols":12,"rows_kept":51,"cut":false,"hidden":false,"merged":[[40,2,45,5],[0,0,1,2],[0,3,1,5],[0,6,1,11],[2,0,2,1],[2,2,2,5],[57,2,57,4],[46,0,46,5],[47,2,47,4],[48,2,48,4],[49,2,49,4],[50,2,50,4],[51,2,51,4],[52,2,52,4],[53,2,53,4],[54,2,54,4],[55,2,55,4],[56,2,56,4],[64,2,64,4],[65,2,65,4],[66,2,66,4],[67,2,67,4],[58,2,58,4],[59,2,59,4],[60,2,60,4],[61,2,61,4],[62,2,62,4],[63,2,63,4]]}
["MARINO ALAIN",null,null,null,null,null,"Feuille Attachement"]
[]
["2017-01-01",null," fournir avant  Mercredi 04/01  demande de congés pour Février 2017 en fonction des disponibilités",null,null,null,"HS","HS","HS","Total","Nuit","Insalubrité"]
["Jours","Date","Prestations","Confirmations","Prestations  HS","Horaires",0,0,0,{"$f":"SUM(G4:I4)","v":0},0,0]
["Mercredi","2016-12-21","Nice Nord",null,null,null,null,null,null,0]
["Jeudi","2016-12-22","Encombrants 5H-12H",null,null,null,null,null,null,0]
["Vendredi","2016-12-23","Cartons 7H-14H",null,null,null,null,null,null,0]
["Samedi","2016-12-24","Repos",null,null,null,null,null,null,0]
["Dimanche","2016-12-25","Repos",null,null,null,null,null,null,0]
["Lundi","2016-12-26","Encombrants 5H-12H",null,null,null,null,null,null,0]
["Mardi","2016-12-27","Repos",null,null,null,null,null,null,0]
["Mercredi","2016-12-28","Encombrants 5H-12H",null,null,null,null,null,null,0]
["Jeudi","2016-12-29","Encombrants 5H-12H",null,null,null,null,null,null,0]
["Vendredi","2016-12-30","Encombrants 5H-12H",null,null,null,null,null,null,0]
["Samedi","2016-12-31","Nice Nord",null,null,null,null,null,null,0]
["Dimanche","2017-01-01","Repos",null,null,null,null,null,null,0]
["Lundi","2017-01-02","Encombrants 5H-12H",null,null,null,null,null,null,0]
["Mardi","2017-01-03","Encombrants 5H-12H",null,null,null,null,null,null,0]
["Mercredi","2017-01-04","Encombrants 5H-12H",null,null,null,null,null,null,0]
["Jeudi","2017-01-05","Encombrants 5H-12H",null,null,null,null,null,null,0]
["Vendredi","2017-01-06","Encombrants 5H-12H",null,null,null,null,null,null,0]
["Samedi","2017-01-07","Repos",null,null,null,null,null,null,0]
["Dimanche","2017-01-08","Repos",null,"Nice Est","8H-12H",null,null,null,0]
["Lundi","2017-01-09","Encombrants 5H-12H",null,null,null,null,null,null,0]
["Mardi","2017-01-10","Encombrants 5H-12H",null,null,null,null,null,null,0]
["Mercredi","2017-01-11","Cartons 7H-14H",null,null,null,null,null,null,0]
["Jeudi","2017-01-12","Encombrants 5H-12H",null,null,null,null,null,null,0]
["Vendredi","2017-01-13","Encombrants 5H-12H",null,null,null,null,null,null,0]
["Samedi","2017-01-14","Repos",null,null,null,null,null,null,0]
["Dimanche","2017-01-15","Repos",null,null,null,null,null,null,0]
["Lundi","2017-01-16","Encombrants 5H-12H",null,null,null,null,null,null,0]
["Mardi","2017-01-17","Encombrants 5H-12H",null,null,null,null,null,null,0]
["Mercredi","2017-01-18","Encombrants 5H-12H",null,null,null,null,null,null,0]
["Jeudi","2017-01-19","Encombrants 5H-12H",null,null,null,null,null,null,0]
["Vendredi","2017-01-20","Encombrants 5H-12H",null,null,null,null,null,null,0]
[null,null,null,null,null,null,{"$f":"SUM(G5:G35)","v":0},0,0,0,0,0]
[]
[]
[]
[]
[null,null,"Ne peut pas travailler le 25 et le 01/01/17"]
[]
[]
[]
[]
[]
["REMARQUES"]
["Date","heures","Remarques",null,null,"Responsables"]
["2016-03-16","12H30","Circule sur la voie du tram République",null,null,"Novelli"]
["2016-03-16","15H30","25 scaliéro signale RAS mais n'y passe pas",null,null,"Arnaud"]
["2016-10-26","8H30-9H30","Doit collecter la clinique du Parc Impérial entre 8H et 9H , n'y passe pas , se met en pause 45 mn et note RAS sur sa feuille de route",null,null,"Novelli"]

{"sheet":"MARTINELLI","index":31,"n_rows":48,"n_cols":12,"rows_kept":48,"cut":false,"hidden":false,"merged":[[40,2,45,5],[0,0,1,2],[0,3,1,5],[0,6,1,11],[2,0,2,1],[2,2,2,5],[57,2,57,4],[46,0,46,5],[47,2,47,4],[48,2,48,4],[49,2,49,4],[50,2,50,4],[51,2,51,4],[52,2,52,4],[53,2,53,4],[54,2,54,4],[55,2,55,4],[56,2,56,4],[64,2,64,4],[65,2,65,4],[66,2,66,4],[67,2,67,4],[58,2,58,4],[59,2,59,4],[60,2,60,4],[61,2,61,4],[62,2,62,4],[63,2,63,4]]}
["MARTINELLI JULIEN",null,null,null,null,null,"Feuille Attachement"]
[]
["2017-01-01",null," fournir avant  Mercredi 04/01  demande de congés pour Février 2017 en fonction des disponibilités",null,null,null,"HS","HS","HS","Total","Nuit","Insalubrité"]
["Jours","Date","Prestations","Confirmations","Prestations  HS","Horaires",0,0,0,{"$f":"SUM(G4:I4)","v":0},0,0]
["Mercredi","2016-12-21","Cartons 7H-14H",null,null,null,null,null,null,0]
["Jeudi","2016-12-22","Cartons 7H-14H",null,null,null,null,null,null,0]
["Vendredi","2016-12-23","Cartons 7H-14H",null,null,null,null,null,null,0]
["Samedi","2016-12-24","Congés",null,null,null,null,null,null,0]
["Dimanche","2016-12-25","Congés",null,null,null,null,null,null,0]
["Lundi","2016-12-26","Congés",null,null,null,null,null,null,0]
["Mardi","2016-12-27","Congés",null,null,null,null,null,null,0]
["Mercredi","2016-12-28","Congés",null,null,null,null,null,null,0]
["Jeudi","2016-12-29","Congés",null,null,null,null,null,null,0]
["Vendredi","2016-12-30","Congés",null,null,null,null,null,null,0]
["Samedi","2016-12-31","Congés",null,null,null,null,null,null,0]
["Dimanche","2017-01-01","Congés",null,null,null,null,null,null,0]
["Lundi","2017-01-02","Cartons 7H-14H",null,null,null,null,null,null,0]
["Mardi","2017-01-03","Cartons 7H-14H",null,null,null,null,null,null,0]
["Mercredi","2017-01-04","Cartons 7H-14H",null,null,null,null,null,null,0]
["Jeudi","2017-01-05","Cartons 7H-14H",null,null,null,null,null,null,0]
["Vendredi","2017-01-06","Cartons 7H-14H",null,null,null,null,null,null,0]
["Samedi","2017-01-07","Repos",null,null,null,null,null,null,0]
["Dimanche","2017-01-08","Repos",null,"Nice Nord","8H-12H",null,null,null,0]
["Lundi","2017-01-09","Cartons 7H-14H",null,null,null,null,null,null,0]
["Mardi","2017-01-10","Cartons 7H-14H",null,null,null,null,null,null,0]
["Mercredi","2017-01-11","Repos",null,null,null,null,null,null,0]
["Jeudi","2017-01-12","Cartons 7H-14H",null,null,null,null,null,null,0]
["Vendredi","2017-01-13","Cartons 7H-14H",null,null,null,null,null,null,0]
["Samedi","2017-01-14","Nice Ouest",null,"Nice Ouest","14H-14H30",null,null,null,0]
["Dimanche","2017-01-15","Repos",null,null,null,null,null,null,0]
["Lundi","2017-01-16","Cartons 7H-14H",null,null,null,null,null,null,0]
["Mardi","2017-01-17","Cartons 7H-14H",null,null,null,null,null,null,0]
["Mercredi","2017-01-18","Cartons 7H-14H",null,null,null,null,null,null,0]
["Jeudi","2017-01-19","Cartons 7H-14H",null,null,null,null,null,null,0]
["Vendredi","2017-01-20","Cartons 7H-14H",null,null,null,null,null,null,0]
[null,null,null,null,null,null,{"$f":"SUM(G5:G35)","v":0},0,0,0,0,0]
[]
[]
[]
[]
[]
[]
[]
[]
[]
[]
["REMARQUES"]
["Date","heures","Remarques",null,null,"Responsables"]

{"sheet":"MARZARRO","index":32,"n_rows":48,"n_cols":12,"rows_kept":48,"cut":false,"hidden":false,"merged":[[40,2,45,5],[0,0,1,2],[0,3,1,5],[0,6,1,11],[2,0,2,1],[2,2,2,5],[57,2,57,4],[46,0,46,5],[47,2,47,4],[48,2,48,4],[49,2,49,4],[50,2,50,4],[51,2,51,4],[52,2,52,4],[53,2,53,4],[54,2,54,4],[55,2,55,4],[56,2,56,4],[64,2,64,4],[65,2,65,4],[66,2,66,4],[67,2,67,4],[58,2,58,4],[59,2,59,4],[60,2,60,4],[61,2,61,4],[62,2,62,4],[63,2,63,4]]}
["MARZARO CHRISTOPHER",null,null,null,null,null,"Feuille Attachement"]
[]
["2017-01-01",null," fournir avant  Mercredi 04/01  demande de congés pour Février 2017 en fonction des disponibilités",null,null,null,"HS","HS","HS","Total","Nuit","Insalubrité"]
["Jours","Date","Prestations","Confirmations","Prestations  HS","Horaires",0,0,0,{"$f":"SUM(G4:I4)","v":0},0,0]
["Mercredi","2016-12-21","Cartons 12H30-19H30",null,null,null,null,null,null,0]
["Jeudi","2016-12-22","Cartons 12H30-19H30",null,null,null,null,null,null,0]
["Vendredi","2016-12-23","Cartons 12H30-19H30",null,null,null,null,null,null,0]
["Samedi","2016-12-24","Cartons 12H30-19H30",null,null,null,null,null,null,0]
["Dimanche","2016-12-25","Repos",null,null,null,null,null,null,0]
["Lundi","2016-12-26","Cartons 12H30-19H30",null,null,null,null,null,null,0]
["Mardi","2016-12-27","Cartons 12H30-19H30",null,null,null,null,null,null,0]
["Mercredi","2016-12-28","Cartons 12H30-19H30",null,null,null,null,null,null,0]
["Jeudi","2016-12-29","Cartons 12H30-19H30",null,null,null,null,null,null,0]
["Vendredi","2016-12-30","Cartons 12H30-19H30",null,null,null,null,null,null,0]
["Samedi","2016-12-31","Repos",null,null,null,null,null,null,0]
["Dimanche","2017-01-01","Repos",null,null,null,null,null,null,0]
["Lundi","2017-01-02","Cartons 12H30-19H30",null,null,null,null,null,null,0]
["Mardi","2017-01-03","Cartons 12H30-19H30",null,null,null,null,null,null,0]
["Mercredi","2017-01-04","Cartons 12H30-19H30",null,null,null,null,null,null,0]
["Jeudi","2017-01-05","Cartons 12H30-19H30",null,null,null,null,null,null,0]
["Vendredi","2017-01-06","Cartons 12H30-19H30",null,null,null,null,null,null,0]
["Samedi","2017-01-07","Repos",null,null,null,null,null,null,0]
["Dimanche","2017-01-08","Repos",null,null,null,null,null,null,0]
["Lundi","2017-01-09","Cartons 12H30-19H30",null,null,null,null,null,null,0]
["Mardi","2017-01-10","Cartons 12H30-19H30",null,null,null,null,null,null,0]
["Mercredi","2017-01-11","Cartons 12H30-19H30",null,null,null,null,null,null,0]
["Jeudi","2017-01-12","Cartons 12H30-19H30",null,null,null,null,null,null,0]
["Vendredi","2017-01-13","Cartons 12H30-19H30",null,null,null,null,null,null,0]
["Samedi","2017-01-14","Repos",null,null,null,null,null,null,0]
["Dimanche","2017-01-15","Repos",null,null,null,null,null,null,0]
["Lundi","2017-01-16","Repos",null,null,null,null,null,null,0]
["Mardi","2017-01-17","Cartons 12H30-19H30",null,null,null,null,null,null,0]
["Mercredi","2017-01-18","Cartons 12H30-19H30",null,null,null,null,null,null,0]
["Jeudi","2017-01-19","Cartons 12H30-19H30",null,null,null,null,null,null,0]
["Vendredi","2017-01-20","Cartons 12H30-19H30",null,null,null,null,null,null,0]
[null,null,null,null,null,null,{"$f":"SUM(G5:G35)","v":0},0,0,0,0,0]
[]
[]
[]
[]
[null,null,"Travaille le samedi 21/01/16"]
[]
[]
[]
[]
[]
["REMARQUES"]
["Date","heures","Remarques",null,null,"Responsables"]

{"sheet":"MATTEI","index":33,"n_rows":48,"n_cols":12,"rows_kept":48,"cut":false,"hidden":false,"merged":[[40,2,45,5],[0,0,1,2],[0,3,1,5],[0,6,1,11],[2,0,2,1],[2,2,2,5],[57,2,57,4],[46,0,46,5],[47,2,47,4],[48,2,48,4],[49,2,49,4],[50,2,50,4],[51,2,51,4],[52,2,52,4],[53,2,53,4],[54,2,54,4],[55,2,55,4],[56,2,56,4],[64,2,64,4],[65,2,65,4],[66,2,66,4],[67,2,67,4],[58,2,58,4],[59,2,59,4],[60,2,60,4],[61,2,61,4],[62,2,62,4],[63,2,63,4]]}
["MATTEI PATRICK",null,null,null,null,null,"Feuille Attachement"]
[]
["2017-01-01",null," fournir avant  Mercredi 04/01  demande de congés pour Février 2017 en fonction des disponibilités",null,null,null,"HS","HS","HS","Total","Nuit","Insalubrité"]
["Jours","Date","Prestations","Confirmations","Prestations  HS","Horaires",0,0,0,{"$f":"SUM(G4:I4)","v":0},0,0]
["Mercredi","2016-12-21","Encombrants 5H-12H",null,null,null,null,null,null,0]
["Jeudi","2016-12-22","Encombrants 5H-12H",null,null,null,null,null,null,0]
["Vendredi","2016-12-23","Encombrants 5H-12H",null,null,null,null,null,null,0]
["Samedi","2016-12-24","Repos",null,null,null,null,null,null,0]
["Dimanche","2016-12-25","Repos",null,null,null,null,null,null,0]
["Lundi","2016-12-26","Cartons 7H-14H",null,null,null,null,null,null,0]
["Mardi","2016-12-27","Cartons 7H-14H",null,null,null,null,null,null,0]
["Mercredi","2016-12-28","Cartons 7H-14H",null,null,null,null,null,null,0]
["Jeudi","2016-12-29","Cartons 7H-14H",null,null,null,null,null,null,0]
["Vendredi","2016-12-30","Cartons 7H-14H",null,null,null,null,null,null,0]
["Samedi","2016-12-31","Repos",null,null,null,null,null,null,0]
["Dimanche","2017-01-01","Repos",null,null,null,null,null,null,0]
["Lundi","2017-01-02","Encombrants 5H-12H",null,null,null,null,null,null,0]
["Mardi","2017-01-03","Encombrants 5H-12H",null,null,null,null,null,null,0]
["Mercredi","2017-01-04","Encombrants 5H-12H",null,null,null,null,null,null,0]
["Jeudi","2017-01-05","Encombrants 5H-12H",null,null,null,null,null,null,0]
["Vendredi","2017-01-06","Repos",null,null,null,null,null,null,0]
["Samedi","2017-01-07","Nice Nord",null,null,null,null,null,null,0]
["Dimanche","2017-01-08","Repos",null,null,null,null,null,null,0]
["Lundi","2017-01-09","Encombrants 5H-12H",null,null,null,null,null,null,0]
["Mardi","2017-01-10","Encombrants 5H-12H",null,null,null,null,null,null,0]
["Mercredi","2017-01-11","Encombrants 5H-12H",null,null,null,null,null,null,0]
["Jeudi","2017-01-12","Encombrants 5H-12H",null,null,null,null,null,null,0]
["Vendredi","2017-01-13","Encombrants 5H-12H",null,null,null,null,null,null,0]
["Samedi","2017-01-14","Repos",null,null,null,null,null,null,0]
["Dimanche","2017-01-15","Repos",null,null,null,null,null,null,0]
["Lundi","2017-01-16","Encombrants 5H-12H",null,null,null,null,null,null,0]
["Mardi","2017-01-17","Repos Attention travail le Sd 21/01/17",null,null,null,null,null,null,0]
["Mercredi","2017-01-18","Encombrants 5H-12H",null,null,null,null,null,null,0]
["Jeudi","2017-01-19","Encombrants 5H-12H",null,null,null,null,null,null,0]
["Vendredi","2017-01-20","Encombrants 5H-12H",null,null,null,null,null,null,0]
[null,null,null,null,null,null,{"$f":"SUM(G5:G35)","v":0},0,0,0,0,0]
[]
[]
[]
[]
[null,null,"Travaille le samedi 21/01/16"]
[]
[]
[]
[]
[]
["REMARQUES"]
["Date","heures","Remarques",null,null,"Responsables"]

{"sheet":"MOLINER","index":34,"n_rows":48,"n_cols":12,"rows_kept":48,"cut":false,"hidden":false,"merged":[[40,2,45,5],[0,0,1,2],[0,3,1,5],[0,6,1,11],[2,0,2,1],[2,2,2,5],[57,2,57,4],[46,0,46,5],[47,2,47,4],[48,2,48,4],[49,2,49,4],[50,2,50,4],[51,2,51,4],[52,2,52,4],[53,2,53,4],[54,2,54,4],[55,2,55,4],[56,2,56,4],[64,2,64,4],[65,2,65,4],[66,2,66,4],[67,2,67,4],[58,2,58,4],[59,2,59,4],[60,2,60,4],[61,2,61,4],[62,2,62,4],[63,2,63,4]]}
["MOLINER DAVID",null,null,null,null,null,"Feuille Attachement"]
[]
["2017-01-01",null," fournir avant  Mercredi 04/01  demande de congés pour Février 2017 en fonction des disponibilités",null,null,null,"HS","HS","HS","Total","Nuit","Insalubrité"]
["Jours","Date","Prestations","Confirmations","Prestations  HS","Horaires",0,0,0,{"$f":"SUM(G4:I4)","v":0},0,0]
["Mercredi","2016-12-21","Polybenne 5H-12H",null,"Cité du Parc","04H-05H",null,null,null,0]
["Jeudi","2016-12-22","Repos",null,null,null,null,null,null,0]
["Vendredi","2016-12-23","Polybenne 5H-12H",null,"Cité du Parc","04H-05H",null,null,null,0]
["Samedi","2016-12-24","Polybenne 7H-14H",null,"Cité du parc","4H-7H",null,null,null,0]
["Dimanche","2016-12-25","Repos",null,null,null,null,null,null,0]
["Lundi","2016-12-26","Polybenne 5H-12H",null,"Cité du Parc","04H-05H",null,null,null,0]
["Mardi","2016-12-27","Polybenne 5H-12H",null,"Cité du Parc","04H-05H",null,null,null,0]
["Mercredi","2016-12-28","Polybenne 5H-12H",null,"Cité du Parc","04H-05H",null,null,null,0]
["Jeudi","2016-12-29","Polybenne 5H-12H",null,"Cité du Parc","04H-05H",null,null,null,0]
["Vendredi","2016-12-30","Polybenne 5H-12H",null,"Cité du Parc","04H-05H",null,null,null,0]
["Samedi","2016-12-31","Congés",null,null,null,null,null,null,0]
["Dimanche","2017-01-01","Congés",null,null,null,null,null,null,0]
["Lundi","2017-01-02","Congés",null,null,null,null,null,null,0]
["Mardi","2017-01-03","Congés",null,null,null,null,null,null,0]
["Mercredi","2017-01-04","Congés",null,null,null,null,null,null,0]
["Jeudi","2017-01-05","Congés",null,null,null,null,null,null,0]
["Vendredi","2017-01-06","Congés",null,null,null,null,null,null,0]
["Samedi","2017-01-07","Congés",null,null,null,null,null,null,0]
["Dimanche","2017-01-08","Congés",null,null,null,null,null,null,0]
["Lundi","2017-01-09","Polybenne 5H-12H",null,"Cité du Parc","04H-05H",null,null,null,0]
["Mardi","2017-01-10","Polybenne 5H-12H",null,"Cité du Parc","04H-05H",null,null,null,0]
["Mercredi","2017-01-11","Polybenne 5H-12H",null,"Cité du Parc","04H-05H",null,null,null,0]
["Jeudi","2017-01-12","Polybenne 5H-12H",null,"Cité du Parc","04H-05H",null,null,null,0]
["Vendredi","2017-01-13","Polybenne 5H-12H",null,"Cité du Parc","04H-05H",null,null,null,0]
["Samedi","2017-01-14","Repos",null,"Cité du parc","4H-7H",null,null,null,0]
["Dimanche","2017-01-15","Repos",null,null,null,null,null,null,0]
["Lundi","2017-01-16","Polybenne 5H-12H",null,null,null,null,null,null,0]
["Mardi","2017-01-17","Polybenne 5H-12H",null,null,null,null,null,null,0]
["Mercredi","2017-01-18","Polybenne 5H-12H",null,null,null,null,null,null,0]
["Jeudi","2017-01-19","Polybenne 5H-12H",null,null,null,null,null,null,0]
["Vendredi","2017-01-20","Polybenne 5H-12H",null,null,null,null,null,null,0]
[null,null,null,null,null,null,{"$f":"SUM(G5:G35)","v":0},0,0,0,0,0]
[]
[]
[]
[]
[]
[]
[]
[]
[]
[]
["REMARQUES"]
["Date","heures","Remarques",null,null,"Responsables"]

{"sheet":"MONGRANDI","index":35,"n_rows":49,"n_cols":12,"rows_kept":49,"cut":false,"hidden":false,"merged":[[40,2,45,5],[0,0,1,2],[0,3,1,5],[0,6,1,11],[2,0,2,1],[2,2,2,5],[57,2,57,4],[46,0,46,5],[47,2,47,4],[48,2,48,4],[49,2,49,4],[50,2,50,4],[51,2,51,4],[52,2,52,4],[53,2,53,4],[54,2,54,4],[55,2,55,4],[56,2,56,4],[64,2,64,4],[65,2,65,4],[66,2,66,4],[67,2,67,4],[58,2,58,4],[59,2,59,4],[60,2,60,4],[61,2,61,4],[62,2,62,4],[63,2,63,4]]}
["MONGRANDI FREDERIC",null,null,null,null,null,"Feuille Attachement"]
[]
["2017-01-01",null," fournir avant  Mercredi 04/01  demande de congés pour Février 2017 en fonction des disponibilités",null,null,null,"HS","HS","HS","Total","Nuit","Insalubrité"]
["Jours","Date","Prestations","Confirmations","Prestations  HS","Horaires",0,0,0,{"$f":"SUM(G4:I4)","v":0},0,0]
["Mercredi","2016-12-21","Congés",null,null,null,null,null,null,0]
["Jeudi","2016-12-22","Congés",null,null,null,null,null,null,0]
["Vendredi","2016-12-23","Congés",null,null,null,null,null,null,0]
["Samedi","2016-12-24","Congés",null,null,null,null,null,null,0]
["Dimanche","2016-12-25","Congés",null,null,null,null,null,null,0]
["Lundi","2016-12-26","Nice Est",null,null,null,null,null,null,0]
["Mardi","2016-12-27","Nice Est",null,null,null,null,null,null,0]
["Mercredi","2016-12-28","Repos",null,null,null,null,null,null,0]
["Jeudi","2016-12-29","Nice Est",null,null,null,null,null,null,0]
["Vendredi","2016-12-30","Nice Est",null,null,null,null,null,null,0]
["Samedi","2016-12-31","Nice Est",null,null,null,null,null,null,0]
["Dimanche","2017-01-01","Repos",null,null,null,null,null,null,0]
["Lundi","2017-01-02","Nice Est",null,null,null,null,null,null,0]
["Mardi","2017-01-03","Nice Est",null,null,null,null,null,null,0]
["Mercredi","2017-01-04","Nice Est",null,null,null,null,null,null,0]
["Jeudi","2017-01-05","Nice Est",null,null,null,null,null,null,0]
["Vendredi","2017-01-06","Nice Est",null,null,null,null,null,null,0]
["Samedi","2017-01-07","Repos",null,"Nice Est","8H30-12H / 14H30-18H",null,null,null,0]
["Dimanche","2017-01-08","Repos",null,null,null,null,null,null,0]
["Lundi","2017-01-09","Nice Est",null,null,null,null,null,null,0]
["Mardi","2017-01-10","Nice Est",null,null,null,null,null,null,0]
["Mercredi","2017-01-11","Nice Est",null,null,null,null,null,null,0]
["Jeudi","2017-01-12","Nice Est",null,null,null,null,null,null,0]
["Vendredi","2017-01-13","Nice Est",null,null,null,null,null,null,0]
["Samedi","2017-01-14","Repos",null,null,null,null,null,null,0]
["Dimanche","2017-01-15","Repos",null,null,null,null,null,null,0]
["Lundi","2017-01-16","Nice Est",null,null,null,null,null,null,0]
["Mardi","2017-01-17","Nice Est",null,null,null,null,null,null,0]
["Mercredi","2017-01-18","Nice Est",null,null,null,null,null,null,0]
["Jeudi","2017-01-19","Nice Est",null,null,null,null,null,null,0]
["Vendredi","2017-01-20","Nice Est",null,null,null,null,null,null,0]
[null,null,null,null,null,null,{"$f":"SUM(G5:G35)","v":0},0,0,0,0,0]
[]
[]
[]
[]
[]
[]
[]
[]
[]
[]
["REMARQUES"]
["Date","heures","Remarques",null,null,"Responsables"]
["2016-11-07","17H","Départ à 17H de la déchetterie pour aller chercher sa fille",null,null,"Arnaud"]

{"sheet":"MORALDO","index":36,"n_rows":74,"n_cols":14,"rows_kept":74,"cut":false,"hidden":false,"merged":[[51,2,51,4],[0,0,1,2],[0,3,1,5],[0,6,1,11],[2,0,2,1],[2,2,2,5],[40,2,45,5],[46,0,46,5],[47,2,47,4],[48,2,48,4],[49,2,49,4],[50,2,50,4],[63,2,63,4],[52,2,52,4],[53,2,53,4],[54,2,54,4],[55,2,55,4],[56,2,56,4],[57,2,57,4],[58,2,58,4],[59,2,59,4],[60,2,60,4],[61,2,61,4],[62,2,62,4],[64,2,64,4],[65,2,65,4],[66,2,66,4],[67,2,67,4],[73,13,73,15]]}
["MORALDO ADRIEN",null,null,null,null,null,"Feuille Attachement"]
[]
["2017-01-01",null," fournir avant  Mercredi 04/01  demande de congés pour Février 2017 en fonction des disponibilités",null,null,null,"HS","HS","HS","Total","Nuit","Insalubrité"]
["Jours","Date","Prestations","Confirmations","Prestations  HS","Horaires",0,0,0,{"$f":"SUM(G4:I4)","v":0},0,0]
["Mercredi","2016-12-21","Encombrants 12H30-19H30",null,null,null,null,null,null,0]
["Jeudi","2016-12-22","Repos",null,null,null,null,null,null,0]
["Vendredi","2016-12-23","Encombrants 12H30-19H30",null,null,null,null,null,null,0]
["Samedi","2016-12-24","Nice Ouest",null,null,null,null,null,null,0]
["Dimanche","2016-12-25","Congés",null,null,null,null,null,null,0]
["Lundi","2016-12-26","Congés",null,null,null,null,null,null,0]
["Mardi","2016-12-27","Congés",null,null,null,null,null,null,0]
["Mercredi","2016-12-28","Congés",null,null,null,null,null,null,0]
["Jeudi","2016-12-29","Congés",null,null,null,null,null,null,0]
["Vendredi","2016-12-30","Congés",null,null,null,null,null,null,0]
["Samedi","2016-12-31","Congés",null,null,null,null,null,null,0]
["Dimanche","2017-01-01","Congés",null,null,null,null,null,null,0]
["Lundi","2017-01-02","Cartons 12H30-19H30",null,null,null,null,null,null,0]
["Mardi","2017-01-03","Cartons 12H30-19H30",null,null,null,null,null,null,0]
["Mercredi","2017-01-04","Cartons 12H30-19H30",null,null,null,null,null,null,0]
["Jeudi","2017-01-05","Cartons 12H30-19H30",null,null,null,null,null,null,0]
["Vendredi","2017-01-06","Cartons 12H30-19H30",null,null,null,null,null,null,0]
["Samedi","2017-01-07","Repos",null,null,null,null,null,null,0]
["Dimanche","2017-01-08","Repos",null,null,null,null,null,null,0]
["Lundi","2017-01-09","Cartons 12H30-19H30",null,null,null,null,null,null,0]
["Mardi","2017-01-10","Cartons 12H30-19H30",null,null,null,null,null,null,0]
["Mercredi","2017-01-11","Cartons 12H30-19H30",null,null,null,null,null,null,0]
["Jeudi","2017-01-12","Cartons 12H30-19H30",null,null,null,null,null,null,0]
["Vendredi","2017-01-13","Cartons 12H30-19H30",null,null,null,null,null,null,0]
["Samedi","2017-01-14","Repos",null,null,null,null,null,null,0]
["Dimanche","2017-01-15","Repos",null,null,null,null,null,null,0]
["Lundi","2017-01-16","Encombrants 12H30-19H30",null,null,null,null,null,null,0]
["Mardi","2017-01-17","Encombrants 12H30-19H30",null,null,null,null,null,null,0]
["Mercredi","2017-01-18","Encombrants 12H30-19H30",null,null,null,null,null,null,0]
["Jeudi","2017-01-19","Encombrants 12H30-19H30",null,null,null,null,null,null,0]
["Vendredi","2017-01-20","Encombrants 12H30-19H30",null,null,null,null,null,null,0]
[null,null,null,null,null,null,{"$f":"SUM(G5:G35)","v":0},0,0,0,0,0]
[]
[]
[]
[]
[null,null,"Formation intégration\n- les 23/03/17, 24/03/17, 29/03/17, 30/03/17, 31/03/17,"]
[]
[]
[]
[]
[]
["REMARQUES"]
["Date","heures","Remarques",null,null,"Responsables"]
["2016-01-09","8H30-12H / 14H-18H","Aucun tri sur les DEEE",null,null,"Peters"]
[]
[]
[]
[]
[]
[]
[]
[]
[]
[]
[]
[]
[]
[]
[]
[]
[]
[]
[]
[]
[]
[]
[]
[]
[null,null,null,null,null,null,null,null,null,null,null,"2016-01-09","8H30-12H / 14H-18H","Aucun tri sur les DEEE"]

{"sheet":"NAPOLITANO","index":37,"n_rows":50,"n_cols":12,"rows_kept":50,"cut":false,"hidden":false,"merged":[[40,2,45,5],[0,0,1,2],[0,3,1,5],[0,6,1,11],[2,0,2,1],[2,2,2,5],[57,2,57,4],[46,0,46,5],[47,2,47,4],[48,2,48,4],[49,2,49,4],[50,2,50,4],[51,2,51,4],[52,2,52,4],[53,2,53,4],[54,2,54,4],[55,2,55,4],[56,2,56,4],[64,2,64,4],[65,2,65,4],[66,2,66,4],[67,2,67,4],[58,2,58,4],[59,2,59,4],[60,2,60,4],[61,2,61,4],[62,2,62,4],[63,2,63,4]]}
["NAPOLITANO VALTER",null,null,null,null,null,"Feuille Attachement"]
[]
["2017-01-01",null," fournir avant  Mercredi 04/01  demande de congés pour Février 2017 en fonction des disponibilités",null,null,null,"HS","HS","HS","Total","Nuit","Insalubrité"]
["Jours","Date","Prestations","Confirmations","Prestations  HS","Horaires",0,0,0,{"$f":"SUM(G4:I4)","v":0},0,0]
["Mercredi","2016-12-21","Encombrants 5H-12H",null,null,null,null,null,null,0]
["Jeudi","2016-12-22","Encombrants 5H-12H",null,null,null,null,null,null,0]
["Vendredi","2016-12-23","Encombrants 5H-12H",null,null,null,null,null,null,0]
["Samedi","2016-12-24","Repos",null,null,null,null,null,null,0]
["Dimanche","2016-12-25","Repos",null,null,null,null,null,null,0]
["Lundi","2016-12-26","Encombrants 20H30-03H30",null,null,null,null,null,null,0]
["Mardi","2016-12-27","Encombrants 20H30-03H30",null,null,null,null,null,null,0]
["Mercredi","2016-12-28","Encombrants 20H30-03H30",null,null,null,null,null,null,0]
["Jeudi","2016-12-29","Encombrants 20H30-03H30",null,null,null,null,null,null,0]
["Vendredi","2016-12-30","Encombrants 20H30-03H30",null,null,null,null,null,null,0]
["Samedi","2016-12-31","Repos",null,null,null,null,null,null,0]
["Dimanche","2017-01-01","Repos",null,null,null,null,null,null,0]
["Lundi","2017-01-02","Encombrants 20H30-03H30",null,null,null,null,null,null,0]
["Mardi","2017-01-03","Encombrants 20H30-03H30",null,null,null,null,null,null,0]
["Mercredi","2017-01-04","Encombrants 20H30-03H30",null,null,null,null,null,null,0]
["Jeudi","2017-01-05","Encombrants 20H30-03H30",null,null,null,null,null,null,0]
["Vendredi","2017-01-06","Encombrants 20H30-03H30",null,null,null,null,null,null,0]
["Samedi","2017-01-07","Repos",null,null,null,null,null,null,0]
["Dimanche","2017-01-08","Repos",null,null,null,null,null,null,0]
["Lundi","2017-01-09","Encombrants 5H-12H",null,null,null,null,null,null,0]
["Mardi","2017-01-10","Encombrants 5H-12H",null,null,null,null,null,null,0]
["Mercredi","2017-01-11","Encombrants 5H-12H",null,null,null,null,null,null,0]
["Jeudi","2017-01-12","Encombrants 5H-12H",null,null,null,null,null,null,0]
["Vendredi","2017-01-13","Repos",null,null,null,null,null,null,0]
["Samedi","2017-01-14","Nice Ouest",null,"Nice Ouest","14H-14H30",null,null,null,0]
["Dimanche","2017-01-15","Repos",null,null,null,null,null,null,0]
["Lundi","2017-01-16","Encombrants 5H-12H",null,null,null,null,null,null,0]
["Mardi","2017-01-17","Encombrants 5H-12H",null,null,null,null,null,null,0]
["Mercredi","2017-01-18","Encombrants 5H-12H",null,null,null,null,null,null,0]
["Jeudi","2017-01-19","Repos Attention travail le Sd 21/01/17",null,null,null,null,null,null,0]
["Vendredi","2017-01-20","Encombrants 5H-12H",null,null,null,null,null,null,0]
[null,null,null,null,null,null,{"$f":"SUM(G5:G35)","v":0},0,0,0,0,0]
[]
[]
[]
[]
[null,null,"Travaille le samedi 21/01/16"]
[]
[]
[]
[]
[]
["REMARQUES"]
["Date","heures","Remarques",null,null,"Responsables"]
["2016-08-27","14H40","Arrivée déchetterie 14H40",null,null,"Tripodi"]
["2016-09-20","5H25","Arrivée à 5H25 au lieu de 5H",null,null,"Cambra"]

{"sheet":"OROFINO","index":38,"n_rows":50,"n_cols":12,"rows_kept":50,"cut":false,"hidden":false,"merged":[[40,2,45,5],[0,0,1,2],[0,3,1,5],[0,6,1,11],[2,0,2,1],[2,2,2,5],[57,2,57,4],[46,0,46,5],[47,2,47,4],[48,2,48,4],[49,2,49,4],[50,2,50,4],[51,2,51,4],[52,2,52,4],[53,2,53,4],[54,2,54,4],[55,2,55,4],[56,2,56,4],[64,2,64,4],[65,2,65,4],[66,2,66,4],[67,2,67,4],[58,2,58,4],[59,2,59,4],[60,2,60,4],[61,2,61,4],[62,2,62,4],[63,2,63,4]]}
["OROFINO CARMELO",null,null,null,null,null,"Feuille Attachement"]
[]
["2017-01-01",null," fournir avant  Mercredi 04/01  demande de congés pour Février 2017 en fonction des disponibilités",null,null,null,"HS","HS","HS","Total","Nuit","Insalubrité"]
["Jours","Date","Prestations","Confirmations","Prestations  HS","Horaires",0,0,0,{"$f":"SUM(G4:I4)","v":0},0,0]
["Mercredi","2016-12-21","Nice Est",null,null,null,null,null,null,0]
["Jeudi","2016-12-22","Nice Est",null,null,null,null,null,null,0]
["Vendredi","2016-12-23","Nice Est",null,null,null,null,null,null,0]
["Samedi","2016-12-24","Repos",null,null,null,null,null,null,0]
["Dimanche","2016-12-25","Repos",null,null,null,null,null,null,0]
["Lundi","2016-12-26","benne cartons 8H45-15H45",null,null,null,null,null,null,0]
["Mardi","2016-12-27","benne cartons 8H45-15H45",null,null,null,null,null,null,0]
["Mercredi","2016-12-28","benne cartons 8H45-15H45",null,null,null,null,null,null,0]
["Jeudi","2016-12-29","benne cartons 8H45-15H45",null,null,null,null,null,null,0]
["Vendredi","2016-12-30","benne cartons 8H45-15H45",null,null,null,null,null,null,0]
["Samedi","2016-12-31","Repos",null,null,null,null,null,null,0]
["Dimanche","2017-01-01","Repos",null,null,null,null,null,null,0]
["Lundi","2017-01-02","Nice Est",null,null,null,null,null,null,0]
["Mardi","2017-01-03","benne cartons 8H45-15H45",null,null,null,null,null,null,0]
["Mercredi","2017-01-04","Nice Est",null,null,null,null,null,null,0]
["Jeudi","2017-01-05","Repos",null,null,null,null,null,null,0]
["Vendredi","2017-01-06","Nice Est",null,null,null,null,null,null,0]
["Samedi","2017-01-07","Nice Est",null,null,null,null,null,null,0]
["Dimanche","2017-01-08","Repos",null,null,null,null,null,null,0]
["Lundi","2017-01-09","Nice Est",null,null,null,null,null,null,0]
["Mardi","2017-01-10","benne cartons 8H45-15H45",null,null,null,null,null,null,0]
["Mercredi","2017-01-11","Nice Est",null,null,null,null,null,null,0]
["Jeudi","2017-01-12","Encombrants 12H30-19H30",null,null,null,null,null,null,0]
["Vendredi","2017-01-13","Encombrants 12H30-19H30",null,null,null,null,null,null,0]
["Samedi","2017-01-14","Repos",null,null,null,null,null,null,0]
["Dimanche","2017-01-15","Repos",null,null,null,null,null,null,0]
["Lundi","2017-01-16","Encombrants 12H30-19H30",null,null,null,null,null,null,0]
["Mardi","2017-01-17","Encombrants 12H30-19H30",null,null,null,null,null,null,0]
["Mercredi","2017-01-18","Encombrants 12H30-19H30",null,null,null,null,null,null,0]
["Jeudi","2017-01-19","Encombrants 12H30-19H30",null,null,null,null,null,null,0]
["Vendredi","2017-01-20","Encombrants 12H30-19H30",null,null,null,null,null,null,0]
[null,null,null,null,null,null,{"$f":"SUM(G5:G35)","v":0},0,0,0,0,0]
[]
[]
[]
[]
[]
[]
[]
[]
[]
[]
["REMARQUES"]
["Date","heures","Remarques",null,null,"Responsables"]
["2016-06-13","5H30","Arrivé à 5H30 aux encombrants du matin",null,null,"Cambra"]
["2016-06-15","5H20","Arrivé à 5H20 aux encombrants du matin",null,null,"Cambra"]

{"sheet":"OUTILI","index":39,"n_rows":48,"n_cols":12,"rows_kept":48,"cut":false,"hidden":false,"merged":[[40,2,45,5],[0,0,1,2],[0,3,1,5],[0,6,1,11],[2,0,2,1],[2,2,2,5],[57,2,57,4],[46,0,46,5],[47,2,47,4],[48,2,48,4],[49,2,49,4],[50,2,50,4],[51,2,51,4],[52,2,52,4],[53,2,53,4],[54,2,54,4],[55,2,55,4],[56,2,56,4],[64,2,64,4],[65,2,65,4],[66,2,66,4],[67,2,67,4],[58,2,58,4],[59,2,59,4],[60,2,60,4],[61,2,61,4],[62,2,62,4],[63,2,63,4]]}
["OUTILI YASSIN",null,null,null,null,null,"Feuille Attachement"]
[]
["2017-01-01",null," fournir avant  Mercredi 04/01  demande de congés pour Février 2017 en fonction des disponibilités",null,null,null,"HS","HS","HS","Total","Nuit","Insalubrité"]
["Jours","Date","Prestations","Confirmations","Prestations  HS","Horaires",0,0,0,{"$f":"SUM(G4:I4)","v":0},0,0]
["Mercredi","2016-12-21","Encombrants 20H30-03H30",null,null,null,null,null,null,0]
["Jeudi","2016-12-22","Encombrants 20H30-03H30",null,null,null,null,null,null,0]
["Vendredi","2016-12-23","Encombrants 20H30-03H30",null,null,null,null,null,null,0]
["Samedi","2016-12-24","Repos",null,null,null,null,null,null,0]
["Dimanche","2016-12-25","Repos",null,null,null,null,null,null,0]
["Lundi","2016-12-26","Encombrants 5H-12H",null,null,null,null,null,null,0]
["Mardi","2016-12-27","Encombrants 5H-12H",null,null,null,null,null,null,0]
["Mercredi","2016-12-28","Encombrants 5H-12H",null,null,null,null,null,null,0]
["Jeudi","2016-12-29","Repos",null,null,null,null,null,null,0]
["Vendredi","2016-12-30","Encombrants 5H-12H",null,null,null,null,null,null,0]
["Samedi","2016-12-31","Nice Ouest",null,null,null,null,null,null,0]
["Dimanche","2017-01-01","Repos",null,null,null,null,null,null,0]
["Lundi","2017-01-02","Encombrants 5H-12H",null,null,null,null,null,null,0]
["Mardi","2017-01-03","Encombrants 5H-12H",null,null,null,null,null,null,0]
["Mercredi","2017-01-04","Encombrants 5H-12H",null,null,null,null,null,null,0]
["Jeudi","2017-01-05","Encombrants 5H-12H",null,null,null,null,null,null,0]
["Vendredi","2017-01-06","Encombrants 5H-12H",null,null,null,null,null,null,0]
["Samedi","2017-01-07","Repos",null,null,null,null,null,null,0]
["Dimanche","2017-01-08","Repos",null,"Vieux Nice","13H-19H",null,null,null,0]
["Lundi","2017-01-09","Encombrants 20H30-03H30",null,null,null,null,null,null,0]
["Mardi","2017-01-10","Encombrants 20H30-03H30",null,null,null,null,null,null,0]
["Mercredi","2017-01-11","Encombrants 20H30-03H30",null,null,null,null,null,null,0]
["Jeudi","2017-01-12","Encombrants 20H30-03H30",null,null,null,null,null,null,0]
["Vendredi","2017-01-13","Encombrants 20H30-03H30",null,null,null,null,null,null,0]
["Samedi","2017-01-14","Repos",null,null,null,null,null,null,0]
["Dimanche","2017-01-15","Repos",null,null,null,null,null,null,0]
["Lundi","2017-01-16","Encombrants 20H30-03H30",null,null,null,null,null,null,0]
["Mardi","2017-01-17","Encombrants 20H30-03H30",null,null,null,null,null,null,0]
["Mercredi","2017-01-18","Encombrants 20H30-03H30",null,null,null,null,null,null,0]
["Jeudi","2017-01-19","Encombrants 20H30-03H30",null,null,null,null,null,null,0]
["Vendredi","2017-01-20","Encombrants 20H30-03H30",null,null,null,null,null,null,0]
[null,null,null,null,null,null,{"$f":"SUM(G5:G35)","v":0},0,0,0,0,0]
[]
[]
[]
[]
[]
[]
[]
[]
[]
[]
["REMARQUES"]
["Date","heures","Remarques",null,null,"Responsables"]

{"sheet":"PEREZ","index":40,"n_rows":51,"n_cols":12,"rows_kept":51,"cut":false,"hidden":false,"merged":[[40,2,45,5],[0,0,1,2],[0,3,1,5],[0,6,1,11],[2,0,2,1],[2,2,2,5],[57,2,57,4],[46,0,46,5],[47,2,47,4],[48,2,48,4],[49,2,49,4],[50,2,50,4],[51,2,51,4],[52,2,52,4],[53,2,53,4],[54,2,54,4],[55,2,55,4],[56,2,56,4],[64,2,64,4],[65,2,65,4],[66,2,66,4],[67,2,67,4],[58,2,58,4],[59,2,59,4],[60,2,60,4],[61,2,61,4],[62,2,62,4],[63,2,63,4]]}
["PEREZ YANN",null,null,null,null,null,"Feuille Attachement"]
[]
["2017-01-01",null," fournir avant  Mercredi 04/01  demande de congés pour Février 2017 en fonction des disponibilités",null,null,null,"HS","HS","HS","Total","Nuit","Insalubrité"]
["Jours","Date","Prestations","Confirmations","Prestations  HS","Horaires",0,0,0,{"$f":"SUM(G4:I4)","v":0},0,0]
["Mercredi","2016-12-21","Cartons 12H30-19H30",null,null,null,null,null,null,0]
["Jeudi","2016-12-22","Cartons 12H30-19H30",null,null,null,null,null,null,0]
["Vendredi","2016-12-23","Cartons 12H30-19H30",null,null,null,null,null,null,0]
["Samedi","2016-12-24","Repos",null,null,null,null,null,null,0]
["Dimanche","2016-12-25","Repos",null,null,null,null,null,null,0]
["Lundi","2016-12-26","Cartons 12H30-19H30",null,null,null,null,null,null,0]
["Mardi","2016-12-27","Cartons 12H30-19H30",null,null,null,null,null,null,0]
["Mercredi","2016-12-28","Cartons 12H30-19H30",null,null,null,null,null,null,0]
["Jeudi","2016-12-29","Cartons 12H30-19H30",null,null,null,null,null,null,0]
["Vendredi","2016-12-30","Cartons 12H30-19H30",null,null,null,null,null,null,0]
["Samedi","2016-12-31","Congés",null,null,null,null,null,null,0]
["Dimanche","2017-01-01","Congés",null,null,null,null,null,null,0]
["Lundi","2017-01-02","Congés",null,null,null,null,null,null,0]
["Mardi","2017-01-03","Congés",null,null,null,null,null,null,0]
["Mercredi","2017-01-04","Congés",null,null,null,null,null,null,0]
["Jeudi","2017-01-05","Congés",null,null,null,null,null,null,0]
["Vendredi","2017-01-06","Congés",null,null,null,null,null,null,0]
["Samedi","2017-01-07","Congés",null,null,null,null,null,null,0]
["Dimanche","2017-01-08","Congés",null,null,null,null,null,null,0]
["Lundi","2017-01-09","Repos",null,null,null,null,null,null,0]
["Mardi","2017-01-10","Cartons 12H30-19H30",null,null,null,null,null,null,0]
["Mercredi","2017-01-11","Cartons 12H30-19H30",null,null,null,null,null,null,0]
["Jeudi","2017-01-12","Cartons 12H30-19H30",null,null,null,null,null,null,0]
["Vendredi","2017-01-13","Cartons 12H30-19H30",null,null,null,null,null,null,0]
["Samedi","2017-01-14","Cartons 12H30-19H30",null,null,null,null,null,null,0]
["Dimanche","2017-01-15","Repos",null,null,null,null,null,null,0]
["Lundi","2017-01-16","Cartons 12H30-19H30",null,null,null,null,null,null,0]
["Mardi","2017-01-17","Cartons 12H30-19H30",null,null,null,null,null,null,0]
["Mercredi","2017-01-18","Cartons 12H30-19H30",null,null,null,null,null,null,0]
["Jeudi","2017-01-19","Cartons 12H30-19H30",null,null,null,null,null,null,0]
["Vendredi","2017-01-20","Cartons 12H30-19H30",null,null,null,null,null,null,0]
[null,null,null,null,null,null,{"$f":"SUM(G5:G35)","v":0},0,0,0,0,0]
[]
[]
[]
[]
[]
[]
[]
[]
[]
[]
["REMARQUES"]
["Date","heures","Remarques",null,null,"Responsables"]
["2016-03-16","15H30","Boucherie Aviv, 33 lépante n'y passe pas",null,null,"Arnaud"]
["2016-04-10","8H15","Arrivé 8H15 déchetterie Nice Ouest",null,null,"Cirimele"]
["2016-10-01","8H40","Arrivée à 8H40 aux cartons",null,null,"Cirimele"]

{"sheet":"PERRONE","index":41,"n_rows":48,"n_cols":12,"rows_kept":48,"cut":false,"hidden":false,"merged":[[40,2,45,5],[0,0,1,2],[0,3,1,5],[0,6,1,11],[2,0,2,1],[2,2,2,5],[57,2,57,4],[46,0,46,5],[47,2,47,4],[48,2,48,4],[49,2,49,4],[50,2,50,4],[51,2,51,4],[52,2,52,4],[53,2,53,4],[54,2,54,4],[55,2,55,4],[56,2,56,4],[64,2,64,4],[65,2,65,4],[66,2,66,4],[67,2,67,4],[58,2,58,4],[59,2,59,4],[60,2,60,4],[61,2,61,4],[62,2,62,4],[63,2,63,4]]}
["PERRONE  LUCAS",null,null,null,null,null,"Feuille Attachement"]
[]
["2017-01-01",null," fournir avant  Mercredi 04/01  demande de congés pour Février 2017 en fonction des disponibilités",null,null,null,"HS","HS","HS","Total","Nuit","Insalubrité"]
["Jours","Date","Prestations","Confirmations","Prestations  HS","Horaires",0,0,0,{"$f":"SUM(G4:I4)","v":0},0,0]
["Mercredi","2016-12-21","Congés",null,null,null,null,null,null,0]
["Jeudi","2016-12-22","Congés",null,null,null,null,null,null,0]
["Vendredi","2016-12-23","Congés",null,null,null,null,null,null,0]
["Samedi","2016-12-24","Congés",null,null,null,null,null,null,0]
["Dimanche","2016-12-25","Congés",null,null,null,null,null,null,0]
["Lundi","2016-12-26","Encombrants 20H30-03H30",null,null,null,null,null,null,0]
["Mardi","2016-12-27","Encombrants 20H30-03H30",null,null,null,null,null,null,0]
["Mercredi","2016-12-28","Encombrants 20H30-03H30",null,null,null,null,null,null,0]
["Jeudi","2016-12-29","Encombrants 20H30-03H30",null,null,null,null,null,null,0]
["Vendredi","2016-12-30","Encombrants 20H30-03H30",null,null,null,null,null,null,0]
["Samedi","2016-12-31","Repos",null,null,null,null,null,null,0]
["Dimanche","2017-01-01","Repos",null,"Vieux Nice","14H-19H",null,null,null,0]
["Lundi","2017-01-02","Encombrants 12H30-19H30",null,null,null,null,null,null,0]
["Mardi","2017-01-03","Encombrants 12H30-19H30",null,null,null,null,null,null,0]
["Mercredi","2017-01-04","Encombrants 12H30-19H30",null,null,null,null,null,null,0]
["Jeudi","2017-01-05","Encombrants 12H30-19H30",null,null,null,null,null,null,0]
["Vendredi","2017-01-06","Encombrants 12H30-19H30",null,null,null,null,null,null,0]
["Samedi","2017-01-07","Repos",null,null,null,null,null,null,0]
["Dimanche","2017-01-08","Repos",null,"Vieux Nice","13H-19H",null,null,null,0]
["Lundi","2017-01-09","Encombrants 12H30-19H30",null,null,null,null,null,null,0]
["Mardi","2017-01-10","Encombrants 12H30-19H30",null,null,null,null,null,null,0]
["Mercredi","2017-01-11","Encombrants 12H30-19H30",null,null,null,null,null,null,0]
["Jeudi","2017-01-12","Encombrants 12H30-19H30",null,null,null,null,null,null,0]
["Vendredi","2017-01-13","Repos",null,null,null,null,null,null,0]
["Samedi","2017-01-14","Nice Nord",null,null,null,null,null,null,0]
["Dimanche","2017-01-15","Repos",null,null,null,null,null,null,0]
["Lundi","2017-01-16","Encombrants 20H30-03H30",null,null,null,null,null,null,0]
["Mardi","2017-01-17","Encombrants 20H30-03H30",null,null,null,null,null,null,0]
["Mercredi","2017-01-18","Encombrants 20H30-03H30",null,null,null,null,null,null,0]
["Jeudi","2017-01-19","Encombrants 20H30-03H30",null,null,null,null,null,null,0]
["Vendredi","2017-01-20","Encombrants 20H30-03H30",null,null,null,null,null,null,0]
[null,null,null,null,null,null,{"$f":"SUM(G5:G35)","v":0},0,0,0,0,0]
[]
[]
[]
[]
[null,null,"En congés jusqu'au 25/12"]
[]
[]
[]
[]
[]
["REMARQUES"]
["Date","heures","Remarques",null,null,"Responsables"]

{"sheet":"PETERS","index":42,"n_rows":48,"n_cols":12,"rows_kept":48,"cut":false,"hidden":false,"merged":[[40,2,45,5],[0,0,1,2],[0,3,1,5],[0,6,1,11],[2,0,2,1],[2,2,2,5],[57,2,57,4],[46,0,46,5],[47,2,47,4],[48,2,48,4],[49,2,49,4],[50,2,50,4],[51,2,51,4],[52,2,52,4],[53,2,53,4],[54,2,54,4],[55,2,55,4],[56,2,56,4],[64,2,64,4],[65,2,65,4],[66,2,66,4],[67,2,67,4],[58,2,58,4],[59,2,59,4],[60,2,60,4],[61,2,61,4],[62,2,62,4],[63,2,63,4]]}
["PETERS ROBERT",null,null,null,null,null,"Feuille Attachement"]
[]
["2017-01-01",null," fournir avant  Mercredi 04/01  demande de congés pour Février 2017 en fonction des disponibilités",null,null,null,"HS","HS","HS","Total","Nuit","Insalubrité"]
["Jours","Date","Prestations","Confirmations","Prestations  HS","Horaires",0,0,0,{"$f":"SUM(G4:I4)","v":0},0,0]
["Mercredi","2016-12-21","Congés","Congés","Congés",null,null,null,null,0]
["Jeudi","2016-12-22","Congés","Congés","Congés",null,null,null,null,0]
["Vendredi","2016-12-23","Congés","Congés","Congés",null,null,null,null,0]
["Samedi","2016-12-24","Congés","Congés","Congés",null,null,null,null,0]
["Dimanche","2016-12-25","Congés","Congés","Congés",null,null,null,null,0]
["Lundi","2016-12-26","Contröle  7H-12H / 14H30-17H",null,null,null,null,null,null,0]
["Mardi","2016-12-27","Contröle  7H-12H / 14H30-17H",null,null,null,null,null,null,0]
["Mercredi","2016-12-28","Contröle  7H-12H / 14H30-17H",null,null,null,null,null,null,0]
["Jeudi","2016-12-29","Contröle  7H-12H / 14H30-17H",null,null,null,null,null,null,0]
["Vendredi","2016-12-30","Contröle  7H-12H / 14H30-17H",null,null,null,null,null,null,0]
["Samedi","2016-12-31","Repos",null,null,null,null,null,null,0]
["Dimanche","2017-01-01","Repos",null,null,null,null,null,null,0]
["Lundi","2017-01-02","Contröle  7H-12H / 14H30-17H",null,null,null,null,null,null,0]
["Mardi","2017-01-03","Contröle  7H-12H / 14H30-17H",null,null,null,null,null,null,0]
["Mercredi","2017-01-04","Contröle  7H-12H / 14H30-17H",null,null,null,null,null,null,0]
["Jeudi","2017-01-05","Contröle  7H-12H / 14H30-17H",null,null,null,null,null,null,0]
["Vendredi","2017-01-06","Contröle  7H-12H / 14H30-17H",null,null,null,null,null,null,0]
["Samedi","2017-01-07","Repos",null,null,null,null,null,null,0]
["Dimanche","2017-01-08","Repos",null,"Contrôle déchetteries","6H-12H",null,null,null,0]
["Lundi","2017-01-09","Contröle  7H-12H / 14H30-17H",null,null,null,null,null,null,0]
["Mardi","2017-01-10","Contröle  7H-12H / 14H30-17H",null,null,null,null,null,null,0]
["Mercredi","2017-01-11","Contröle  7H-12H / 14H30-17H",null,null,null,null,null,null,0]
["Jeudi","2017-01-12","Contröle  7H-12H / 14H30-17H",null,null,null,null,null,null,0]
["Vendredi","2017-01-13","Contröle  7H-12H / 14H30-17H",null,null,null,null,null,null,0]
["Samedi","2017-01-14","Repos",null,null,null,null,null,null,0]
["Dimanche","2017-01-15","Repos",null,"Contrôle déchetteries","6H-12H",null,null,null,0]
["Lundi","2017-01-16","Contröle  7H-12H / 14H30-17H",null,null,null,null,null,null,0]
["Mardi","2017-01-17","Contröle  7H-12H / 14H30-17H",null,null,null,null,null,null,0]
["Mercredi","2017-01-18","Contröle  7H-12H / 14H30-17H",null,null,null,null,null,null,0]
["Jeudi","2017-01-19","Contröle  7H-12H / 14H30-17H",null,null,null,null,null,null,0]
["Vendredi","2017-01-20","Contröle  7H-12H / 14H30-17H",null,null,null,null,null,null,0]
[null,null,null,null,null,null,{"$f":"SUM(G5:G35)","v":0},0,0,0,0,0]
[]
[]
[]
[]
[]
[]
[]
[]
[]
[]
["REMARQUES"]
["Date","heures","Remarques",null,null,"Responsables"]

{"sheet":"PIOMBINO","index":43,"n_rows":48,"n_cols":12,"rows_kept":48,"cut":false,"hidden":false,"merged":[[40,2,45,5],[0,0,1,2],[0,3,1,5],[0,6,1,11],[2,0,2,1],[2,2,2,5],[57,2,57,4],[46,0,46,5],[47,2,47,4],[48,2,48,4],[49,2,49,4],[50,2,50,4],[51,2,51,4],[52,2,52,4],[53,2,53,4],[54,2,54,4],[55,2,55,4],[56,2,56,4],[64,2,64,4],[65,2,65,4],[66,2,66,4],[67,2,67,4],[58,2,58,4],[59,2,59,4],[60,2,60,4],[61,2,61,4],[62,2,62,4],[63,2,63,4]]}
["PIOMBINO JEAN MARC",null,null,null,null,null,"Feuille Attachement"]
[]
["2017-01-01",null," fournir avant  Mercredi 04/01  demande de congés pour Février 2017 en fonction des disponibilités",null,null,null,"HS","HS","HS","Total","Nuit","Insalubrité"]
["Jours","Date","Prestations","Confirmations","Prestations  HS","Horaires",0,0,0,{"$f":"SUM(G4:I4)","v":0},0,0]
["Mercredi","2016-12-21","Polybenne 5H-12H",null,null,null,null,null,null,0]
["Jeudi","2016-12-22","Polybenne 5H-12H",null,"Cité du Parc","04H-05H",null,null,null,0]
["Vendredi","2016-12-23","Polybenne 5H-12H",null,null,null,null,null,null,0]
["Samedi","2016-12-24","Repos",null,null,null,null,null,null,0]
["Dimanche","2016-12-25","Repos",null,null,null,null,null,null,0]
["Lundi","2016-12-26","Polybenne 5H-12H",null,null,null,null,null,null,0]
["Mardi","2016-12-27","Repos",null,null,null,null,null,null,0]
["Mercredi","2016-12-28","Polybenne 5H-12H",null,null,null,null,null,null,0]
["Jeudi","2016-12-29","Polybenne 5H-12H",null,null,null,null,null,null,0]
["Vendredi","2016-12-30","Polybenne 5H-12H",null,null,null,null,null,null,0]
["Samedi","2016-12-31","Polybenne 7H-14H",null,"Cité du parc","4H-7H",null,null,null,0]
["Dimanche","2017-01-01","Repos",null,null,null,null,null,null,0]
["Lundi","2017-01-02","Polybenne 5H-12H",null,"Cité du Parc","04H-05H",null,null,null,0]
["Mardi","2017-01-03","Polybenne 5H-12H",null,"Cité du Parc","04H-05H",null,null,null,0]
["Mercredi","2017-01-04","Polybenne 5H-12H",null,"Cité du Parc","04H-05H",null,null,null,0]
["Jeudi","2017-01-05","Polybenne 5H-12H",null,"Cité du Parc","04H-05H",null,null,null,0]
["Vendredi","2017-01-06","Polybenne 5H-12H",null,"Cité du Parc","04H-05H",null,null,null,0]
["Samedi","2017-01-07","Repos",null,"Cité du parc","4H-7H",null,null,null,0]
["Dimanche","2017-01-08","Repos",null,null,null,null,null,null,0]
["Lundi","2017-01-09","Polybenne 5H-12H",null,null,null,null,null,null,0]
["Mardi","2017-01-10","Polybenne 5H-12H",null,null,null,null,null,null,0]
["Mercredi","2017-01-11","Polybenne 5H-12H",null,null,null,null,null,null,0]
["Jeudi","2017-01-12","Polybenne 5H-12H",null,null,null,null,null,null,0]
["Vendredi","2017-01-13","Polybenne 5H-12H",null,null,null,null,null,null,0]
["Samedi","2017-01-14","Repos",null,null,null,null,null,null,0]
["Dimanche","2017-01-15","Repos",null,null,null,null,null,null,0]
["Lundi","2017-01-16","Polybenne 5H-12H",null,"Cité du Parc","04H-05H",null,null,null,0]
["Mardi","2017-01-17","Polybenne 5H-12H",null,"Cité du Parc","04H-05H",null,null,null,0]
["Mercredi","2017-01-18","Polybenne 5H-12H",null,"Cité du Parc","04H-05H",null,null,null,0]
["Jeudi","2017-01-19","Polybenne 5H-12H",null,"Cité du Parc","04H-05H",null,null,null,0]
["Vendredi","2017-01-20","Polybenne 5H-12H",null,"Cité du Parc","04H-05H",null,null,null,0]
[null,null,null,null,null,null,{"$f":"SUM(G5:G35)","v":0},0,0,0,0,0]
[]
[]
[]
[]
[null,null,"Astreinte jusqu'au lundi 21/11/2016"]
[]
[]
[]
[]
[]
["REMARQUES"]
["Date","heures","Remarques",null,null,"Responsables"]

{"sheet":"RATEAU","index":44,"n_rows":49,"n_cols":12,"rows_kept":49,"cut":false,"hidden":false,"merged":[[40,2,45,5],[0,0,1,2],[0,3,1,5],[0,6,1,11],[2,0,2,1],[2,2,2,5],[57,2,57,4],[46,0,46,5],[47,2,47,4],[48,2,48,4],[49,2,49,4],[50,2,50,4],[51,2,51,4],[52,2,52,4],[53,2,53,4],[54,2,54,4],[55,2,55,4],[56,2,56,4],[64,2,64,4],[65,2,65,4],[66,2,66,4],[67,2,67,4],[58,2,58,4],[59,2,59,4],[60,2,60,4],[61,2,61,4],[62,2,62,4],[63,2,63,4]]}
["RATEAU LAURENT",null,null,null,null,null,"Feuille Attachement"]
[]
["2017-01-01",null," fournir avant  Mercredi 04/01  demande de congés pour Février 2017 en fonction des disponibilités",null,null,null,"HS","HS","HS","Total","Nuit","Insalubrité"]
["Jours","Date","Prestations","Confirmations","Prestations  HS","Horaires",0,0,0,{"$f":"SUM(G4:I4)","v":0},0,0]
["Mercredi","2016-12-21",null,null,null,null,null,null,null,0]
["Jeudi","2016-12-22",null,null,null,null,null,null,null,0]
["Vendredi","2016-12-23",null,null,null,null,null,null,null,0]
["Samedi","2016-12-24",null,null,null,null,null,null,null,0]
["Dimanche","2016-12-25",null,null,null,null,null,null,null,0]
["Lundi","2016-12-26",null,null,null,null,null,null,null,0]
["Mardi","2016-12-27",null,null,null,null,null,null,null,0]
["Mercredi","2016-12-28",null,null,null,null,null,null,null,0]
["Jeudi","2016-12-29",null,null,null,null,null,null,null,0]
["Vendredi","2016-12-30",null,null,null,null,null,null,null,0]
["Samedi","2016-12-31",null,null,null,null,null,null,null,0]
["Dimanche","2017-01-01",null,null,null,null,null,null,null,0]
["Lundi","2017-01-02",null,null,null,null,null,null,null,0]
["Mardi","2017-01-03",null,null,null,null,null,null,null,0]
["Mercredi","2017-01-04",null,null,null,null,null,null,null,0]
["Jeudi","2017-01-05",null,null,null,null,null,null,null,0]
["Vendredi","2017-01-06",null,null,null,null,null,null,null,0]
["Samedi","2017-01-07",null,null,null,null,null,null,null,0]
["Dimanche","2017-01-08",null,null,null,null,null,null,null,0]
["Lundi","2017-01-09",null,null,null,null,null,null,null,0]
["Mardi","2017-01-10",null,null,null,null,null,null,null,0]
["Mercredi","2017-01-11",null,null,null,null,null,null,null,0]
["Jeudi","2017-01-12",null,null,null,null,null,null,null,0]
["Vendredi","2017-01-13",null,null,null,null,null,null,null,0]
["Samedi","2017-01-14",null,null,null,null,null,null,null,0]
["Dimanche","2017-01-15",null,null,null,null,null,null,null,0]
["Lundi","2017-01-16",null,null,null,null,null,null,null,0]
["Mardi","2017-01-17",null,null,null,null,null,null,null,0]
["Mercredi","2017-01-18",null,null,null,null,null,null,null,0]
["Jeudi","2017-01-19",null,null,null,null,null,null,null,0]
["Vendredi","2017-01-20",null,null,null,null,null,null,null,0]
[null,null,null,null,null,null,{"$f":"SUM(G5:G35)","v":0},0,0,0,0,0]
[]
[]
[]
[]
[]
[]
[]
[]
[]
[]
["REMARQUES"]
["Date","heures","Remarques",null,null,"Responsables"]
["2016-02-01","12H00","cessation de tout vidage après 12H",null,null,"Novelli"]

{"sheet":"RINI","index":45,"n_rows":49,"n_cols":12,"rows_kept":49,"cut":false,"hidden":false,"merged":[[40,2,45,5],[0,0,1,2],[0,3,1,5],[0,6,1,11],[2,0,2,1],[2,2,2,5],[57,2,57,4],[46,0,46,5],[47,2,47,4],[48,2,48,4],[49,2,49,4],[50,2,50,4],[51,2,51,4],[52,2,52,4],[53,2,53,4],[54,2,54,4],[55,2,55,4],[56,2,56,4],[64,2,64,4],[65,2,65,4],[66,2,66,4],[67,2,67,4],[58,2,58,4],[59,2,59,4],[60,2,60,4],[61,2,61,4],[62,2,62,4],[63,2,63,4]]}
["RINI ROMAIN",null,null,null,null,null,"Feuille Attachement"]
[]
["2017-01-01",null," fournir avant  Mercredi 04/01  demande de congés pour Février 2017 en fonction des disponibilités",null,null,null,"HS","HS","HS","Total","Nuit","Insalubrité"]
["Jours","Date","Prestations","Confirmations","Prestations  HS","Horaires",0,0,0,{"$f":"SUM(G4:I4)","v":0},0,0]
["Mercredi","2016-12-21","Congés",null,null,null,null,null,null,0]
["Jeudi","2016-12-22","Congés",null,null,null,null,null,null,0]
["Vendredi","2016-12-23","Congés",null,null,null,null,null,null,0]
["Samedi","2016-12-24","Congés",null,null,null,null,null,null,0]
["Dimanche","2016-12-25","Congés",null,null,null,null,null,null,0]
["Lundi","2016-12-26","Congés",null,null,null,null,null,null,0]
["Mardi","2016-12-27","Congés",null,null,null,null,null,null,0]
["Mercredi","2016-12-28","Congés",null,null,null,null,null,null,0]
["Jeudi","2016-12-29","Congés",null,null,null,null,null,null,0]
["Vendredi","2016-12-30","Congés",null,null,null,null,null,null,0]
["Samedi","2016-12-31","Congés",null,null,null,null,null,null,0]
["Dimanche","2017-01-01","Congés",null,null,null,null,null,null,0]
["Lundi","2017-01-02","Nice Est",null,null,null,null,null,null,0]
["Mardi","2017-01-03","Nice Est",null,null,null,null,null,null,0]
["Mercredi","2017-01-04","Nice Est",null,null,null,null,null,null,0]
["Jeudi","2017-01-05","Nice Est",null,null,null,null,null,null,0]
["Vendredi","2017-01-06","Nice Est",null,null,null,null,null,null,0]
["Samedi","2017-01-07","Repos",null,null,null,null,null,null,0]
["Dimanche","2017-01-08","Repos",null,null,null,null,null,null,0]
["Lundi","2017-01-09","Nice Est",null,null,null,null,null,null,0]
["Mardi","2017-01-10","Nice Est",null,null,null,null,null,null,0]
["Mercredi","2017-01-11","Repos",null,null,null,null,null,null,0]
["Jeudi","2017-01-12","Nice Est",null,null,null,null,null,null,0]
["Vendredi","2017-01-13","Nice Est",null,null,null,null,null,null,0]
["Samedi","2017-01-14","Nice Est",null,null,null,null,null,null,0]
["Dimanche","2017-01-15","Repos",null,null,null,null,null,null,0]
["Lundi","2017-01-16","Nice Est",null,null,null,null,null,null,0]
["Mardi","2017-01-17","Nice Est",null,null,null,null,null,null,0]
["Mercredi","2017-01-18","Nice Est",null,null,null,null,null,null,0]
["Jeudi","2017-01-19","Nice Est",null,null,null,null,null,null,0]
["Vendredi","2017-01-20","Nice Est",null,null,null,null,null,null,0]
[null,null,null,null,null,null,{"$f":"SUM(G5:G35)","v":0},0,0,0,0,0]
[]
[]
[]
[]
[null,null,"En congés jusqu'au 01/01/2017"]
[]
[]
[]
[]
[]
["REMARQUES"]
["Date","heures","Remarques",null,null,"Responsables"]
["2016-04-07","17H","Est au téléphoneet le tri n'est pas fait par les usagers",null,null,"Arnaud"]

{"sheet":"RODRIGUEZ","index":46,"n_rows":49,"n_cols":12,"rows_kept":49,"cut":false,"hidden":false,"merged":[[40,2,45,5],[0,0,1,2],[0,3,1,5],[0,6,1,11],[2,0,2,1],[2,2,2,5],[57,2,57,4],[46,0,46,5],[47,2,47,4],[48,2,48,4],[49,2,49,4],[50,2,50,4],[51,2,51,4],[52,2,52,4],[53,2,53,4],[54,2,54,4],[55,2,55,4],[56,2,56,4],[64,2,64,4],[65,2,65,4],[66,2,66,4],[67,2,67,4],[58,2,58,4],[59,2,59,4],[60,2,60,4],[61,2,61,4],[62,2,62,4],[63,2,63,4]]}
["RODRIGUEZ FRANCK",null,null,null,null,null,"Feuille Attachement"]
[]
["2017-01-01",null," fournir avant  Mercredi 04/01  demande de congés pour Février 2017 en fonction des disponibilités",null,null,null,"HS","HS","HS","Total","Nuit","Insalubrité"]
["Jours","Date","Prestations","Confirmations","Prestations  HS","Horaires",0,0,0,{"$f":"SUM(G4:I4)","v":0},0,0]
["Mercredi","2016-12-21","Congés",null,null,null,null,null,null,0]
["Jeudi","2016-12-22","Congés",null,null,null,null,null,null,0]
["Vendredi","2016-12-23","Congés",null,null,null,null,null,null,0]
["Samedi","2016-12-24","Congés",null,null,null,null,null,null,0]
["Dimanche","2016-12-25","Congés",null,null,null,null,null,null,0]
["Lundi","2016-12-26","Encombrants 12H30-19H30",null,null,null,null,null,null,0]
["Mardi","2016-12-27","Encombrants 12H30-19H30",null,null,null,null,null,null,0]
["Mercredi","2016-12-28","Encombrants 12H30-19H30",null,null,null,null,null,null,0]
["Jeudi","2016-12-29","Encombrants 12H30-19H30",null,null,null,null,null,null,0]
["Vendredi","2016-12-30","Encombrants 12H30-19H30",null,null,null,null,null,null,0]
["Samedi","2016-12-31","Repos",null,null,null,null,null,null,0]
["Dimanche","2017-01-01","Repos",null,"Vieux Nice","14H-19H",null,null,null,0]
["Lundi","2017-01-02","Encombrants 12H30-19H30",null,null,null,null,null,null,0]
["Mardi","2017-01-03","Encombrants 12H30-19H30",null,null,null,null,null,null,0]
["Mercredi","2017-01-04","Encombrants 12H30-19H30",null,null,null,null,null,null,0]
["Jeudi","2017-01-05","Encombrants 12H30-19H30",null,null,null,null,null,null,0]
["Vendredi","2017-01-06","Encombrants 12H30-19H30",null,null,null,null,null,null,0]
["Samedi","2017-01-07","Repos",null,null,null,null,null,null,0]
["Dimanche","2017-01-08","Repos",null,null,null,null,null,null,0]
["Lundi","2017-01-09","Encombrants 12H30-19H30",null,null,null,null,null,null,0]
["Mardi","2017-01-10","Encombrants 12H30-19H30",null,null,null,null,null,null,0]
["Mercredi","2017-01-11","Encombrants 12H30-19H30",null,null,null,null,null,null,0]
["Jeudi","2017-01-12","Repos",null,null,null,null,null,null,0]
["Vendredi","2017-01-13","Encombrants 12H30-19H30",null,null,null,null,null,null,0]
["Samedi","2017-01-14","Nice Ouest",null,"Nice Ouest","14H-14H30",null,null,null,0]
["Dimanche","2017-01-15","Repos",null,null,null,null,null,null,0]
["Lundi","2017-01-16","Encombrants 12H30-19H30",null,null,null,null,null,null,0]
["Mardi","2017-01-17","Encombrants 12H30-19H30",null,null,null,null,null,null,0]
["Mercredi","2017-01-18","Encombrants 12H30-19H30",null,null,null,null,null,null,0]
["Jeudi","2017-01-19","Encombrants 12H30-19H30",null,null,null,null,null,null,0]
["Vendredi","2017-01-20","Encombrants 12H30-19H30",null,null,null,null,null,null,0]
[null,null,null,null,null,null,{"$f":"SUM(G5:G35)","v":0},0,0,0,0,0]
[]
[]
[]
[]
[null,null,"En congés jusqu'au 25/12/2016"]
[]
[]
[]
[]
[]
["REMARQUES"]
["Date","heures","Remarques",null,null,"Responsables"]
["2016-01-30","15H","Fouille dans les bacs alors qu'il y a de nombreux usagers",null,null,"Corvisier"]

{"sheet":"ROSSO","index":47,"n_rows":50,"n_cols":12,"rows_kept":50,"cut":false,"hidden":false,"merged":[[40,2,45,5],[0,0,1,2],[0,3,1,5],[0,6,1,11],[2,0,2,1],[2,2,2,5],[57,2,57,4],[46,0,46,5],[47,2,47,4],[48,2,48,4],[49,2,49,4],[50,2,50,4],[51,2,51,4],[52,2,52,4],[53,2,53,4],[54,2,54,4],[55,2,55,4],[56,2,56,4],[64,2,64,4],[65,2,65,4],[66,2,66,4],[67,2,67,4],[58,2,58,4],[59,2,59,4],[60,2,60,4],[61,2,61,4],[62,2,62,4],[63,2,63,4]]}
["ROSSO DOMINIQUE",null,null,null,null,null,"Feuille Attachement"]
[]
["2017-01-01",null," fournir avant  Mercredi 04/01  demande de congés pour Février 2017 en fonction des disponibilités",null,null,null,"HS","HS","HS","Total","Nuit","Insalubrité"]
["Jours","Date","Prestations","Confirmations","Prestations  HS","Horaires",0,0,0,{"$f":"SUM(G4:I4)","v":0},0,0]
["Mercredi","2016-12-21","Polybenne 12H-19H",null,null,null,null,null,null,0]
["Jeudi","2016-12-22","Polybenne 12H-19H",null,null,null,null,null,null,0]
["Vendredi","2016-12-23","Polybenne 12H-19H",null,null,null,null,null,null,0]
["Samedi","2016-12-24","Repos",null,null,null,null,null,null,0]
["Dimanche","2016-12-25","Repos",null,null,null,null,null,null,0]
["Lundi","2016-12-26","Polybenne 12H-19H",null,null,null,null,null,null,0]
["Mardi","2016-12-27","Polybenne 12H-19H",null,null,null,null,null,null,0]
["Mercredi","2016-12-28","Polybenne 12H-19H",null,null,null,null,null,null,0]
["Jeudi","2016-12-29","Congés",null,null,null,null,null,null,0]
["Vendredi","2016-12-30","Congés",null,null,null,null,null,null,0]
["Samedi","2016-12-31","Congés",null,null,null,null,null,null,0]
["Dimanche","2017-01-01","Congés",null,null,null,null,null,null,0]
["Lundi","2017-01-02","Polybenne 12H-19H",null,null,null,null,null,null,0]
["Mardi","2017-01-03","Polybenne 12H-19H",null,null,null,null,null,null,0]
["Mercredi","2017-01-04","Polybenne 12H-19H",null,null,null,null,null,null,0]
["Jeudi","2017-01-05","Polybenne 12H-19H",null,null,null,null,null,null,0]
["Vendredi","2017-01-06","Polybenne 12H-19H",null,null,null,null,null,null,0]
["Samedi","2017-01-07","Repos",null,null,null,null,null,null,0]
["Dimanche","2017-01-08","Repos",null,null,null,null,null,null,0]
["Lundi","2017-01-09","Polybenne 12H-19H",null,null,null,null,null,null,0]
["Mardi","2017-01-10","Polybenne 12H-19H",null,null,null,null,null,null,0]
["Mercredi","2017-01-11","Polybenne 12H-19H",null,null,null,null,null,null,0]
["Jeudi","2017-01-12","Polybenne 12H-19H",null,null,null,null,null,null,0]
["Vendredi","2017-01-13","Polybenne 12H-19H",null,null,null,null,null,null,0]
["Samedi","2017-01-14","Repos",null,null,null,null,null,null,0]
["Dimanche","2017-01-15","Repos",null,null,null,null,null,null,0]
["Lundi","2017-01-16","Polybenne 12H-19H",null,null,null,null,null,null,0]
["Mardi","2017-01-17","Polybenne 12H-19H",null,null,null,null,null,null,0]
["Mercredi","2017-01-18","Polybenne 12H-19H",null,null,null,null,null,null,0]
["Jeudi","2017-01-19","Polybenne 12H-19H",null,null,null,null,null,null,0]
["Vendredi","2017-01-20","Repos Attention travail le Sd 21/01/17",null,null,null,null,null,null,0]
[null,null,null,null,null,null,{"$f":"SUM(G5:G35)","v":0},0,0,0,0,0]
[]
[]
[]
[]
[null,null,"Travaillera le samedi 21/01/17"]
[]
[]
[]
[]
[]
["REMARQUES"]
["Date","heures","Remarques",null,null,"Responsables"]
["2016-01-25","19H00","Non remise de la feuille de route",null,null,"Corvisier"]
["2016-02-01","19H00","Non remise de la feuille de route",null,null,"Novelli"]

{"sheet":"SARTORI","index":48,"n_rows":48,"n_cols":12,"rows_kept":48,"cut":false,"hidden":false,"merged":[[40,2,45,5],[0,0,1,2],[0,3,1,5],[0,6,1,11],[2,0,2,1],[2,2,2,5],[57,2,57,4],[46,0,46,5],[47,2,47,4],[48,2,48,4],[49,2,49,4],[50,2,50,4],[51,2,51,4],[52,2,52,4],[53,2,53,4],[54,2,54,4],[55,2,55,4],[56,2,56,4],[64,2,64,4],[65,2,65,4],[66,2,66,4],[67,2,67,4],[58,2,58,4],[59,2,59,4],[60,2,60,4],[61,2,61,4],[62,2,62,4],[63,2,63,4]]}
["SARTORI PIERRE",null,null,null,null,null,"Feuille Attachement"]
[]
["2017-01-01",null," fournir avant  Mercredi 04/01  demande de congés pour Février 2017 en fonction des disponibilités",null,null,null,"HS","HS","HS","Total","Nuit","Insalubrité"]
["Jours","Date","Prestations","Confirmations","Prestations  HS","Horaires",0,0,0,{"$f":"SUM(G4:I4)","v":0},0,0]
["Mercredi","2016-12-21","Contröle Privé 19H00-02H00",null,null,null,null,null,null,0]
["Jeudi","2016-12-22","Contröle Privé 12H-19H",null,null,null,null,null,null,0]
["Vendredi","2016-12-23","Contröle Privé 06H-13H30",null,null,null,null,null,null,0]
["Samedi","2016-12-24","Repos",null,null,null,null,null,null,0]
["Dimanche","2016-12-25","Repos",null,null,null,null,null,null,0]
["Lundi","2016-12-26","Contröle Privé 06H-14H",null,null,null,null,null,null,0]
["Mardi","2016-12-27","Contröle Privé 06H-14H",null,null,null,null,null,null,0]
["Mercredi","2016-12-28","Contröle Privé 19H00-02H",null,null,null,null,null,null,0]
["Jeudi","2016-12-29","Contröle Privé 12H-19H",null,null,null,null,null,null,0]
["Vendredi","2016-12-30","Contröle Privé 06H-13H30",null,null,null,null,null,null,0]
["Samedi","2016-12-31","Repos",null,null,null,null,null,null,0]
["Dimanche","2017-01-01","Repos",null,null,null,null,null,null,0]
["Lundi","2017-01-02","Contröle Privé 06H-14H",null,null,null,null,null,null,0]
["Mardi","2017-01-03","Contröle Privé 06H-14H",null,null,null,null,null,null,0]
["Mercredi","2017-01-04","Contröle Privé 19H00-02H",null,null,null,null,null,null,0]
["Jeudi","2017-01-05","Contröle Privé 12H-19H",null,null,null,null,null,null,0]
["Vendredi","2017-01-06","Contröle Privé 06H-13H30",null,null,null,null,null,null,0]
["Samedi","2017-01-07","Repos",null,null,null,null,null,null,0]
["Dimanche","2017-01-08","Repos",null,null,null,null,null,null,0]
["Lundi","2017-01-09","Contröle Privé 06H-14H",null,null,null,null,null,null,0]
["Mardi","2017-01-10","Contröle Privé 06H-14H",null,null,null,null,null,null,0]
["Mercredi","2017-01-11","Contröle Privé 19H00-02H",null,null,null,null,null,null,0]
["Jeudi","2017-01-12","Contröle Privé 12H-19H",null,null,null,null,null,null,0]
["Vendredi","2017-01-13","Contröle Privé 06H-13H30",null,null,null,null,null,null,0]
["Samedi","2017-01-14","Repos",null,null,null,null,null,null,0]
["Dimanche","2017-01-15","Repos",null,null,null,null,null,null,0]
["Lundi","2017-01-16","Contröle Privé 06H-14H",null,null,null,null,null,null,0]
["Mardi","2017-01-17","Contröle Privé 06H-14H",null,null,null,null,null,null,0]
["Mercredi","2017-01-18","Contröle Privé 19H00-02H",null,null,null,null,null,null,0]
["Jeudi","2017-01-19","Contröle Privé 12H-19H",null,null,null,null,null,null,0]
["Vendredi","2017-01-20","Contröle Privé 06H-13H30",null,null,null,null,null,null,0]
[null,null,null,null,null,null,{"$f":"SUM(G5:G35)","v":0},0,0,0,0,0]
[]
[]
[]
[]
[]
[]
[]
[]
[]
[]
["REMARQUES"]
["Date","heures","Remarques",null,null,"Responsables"]

{"sheet":"TORDO","index":49,"n_rows":48,"n_cols":12,"rows_kept":48,"cut":false,"hidden":false,"merged":[[40,2,45,5],[0,0,1,2],[0,3,1,5],[0,6,1,11],[2,0,2,1],[2,2,2,5],[57,2,57,4],[46,0,46,5],[47,2,47,4],[48,2,48,4],[49,2,49,4],[50,2,50,4],[51,2,51,4],[52,2,52,4],[53,2,53,4],[54,2,54,4],[55,2,55,4],[56,2,56,4],[64,2,64,4],[65,2,65,4],[66,2,66,4],[67,2,67,4],[58,2,58,4],[59,2,59,4],[60,2,60,4],[61,2,61,4],[62,2,62,4],[63,2,63,4]]}
["TORDO FABIEN",null,null,null,null,null,"Feuille Attachement"]
[]
["2017-01-01",null," fournir avant  Mercredi 04/01  demande de congés pour Février 2017 en fonction des disponibilités",null,null,null,"HS","HS","HS","Total","Nuit","Insalubrité"]
["Jours","Date","Prestations","Confirmations","Prestations  HS","Horaires",0,0,0,{"$f":"SUM(G4:I4)","v":0},0,0]
["Mercredi","2016-12-21","Nice Ouest",null,"Nice Ouest","14H-14H30",null,null,null,0]
["Jeudi","2016-12-22","Nice Ouest",null,"Nice Ouest","14H-14H30",null,null,null,0]
["Vendredi","2016-12-23","Nice Ouest",null,"Nice Ouest","14H-14H30",null,null,null,0]
["Samedi","2016-12-24","Repos",null,null,null,null,null,null,0]
["Dimanche","2016-12-25","Repos",null,null,null,null,null,null,0]
["Lundi","2016-12-26","Encombrants 20H30-03H30",null,null,null,null,null,null,0]
["Mardi","2016-12-27","Encombrants 20H30-03H30",null,null,null,null,null,null,0]
["Mercredi","2016-12-28","Encombrants 20H30-03H30",null,null,null,null,null,null,0]
["Jeudi","2016-12-29","Encombrants 20H30-03H30",null,null,null,null,null,null,0]
["Vendredi","2016-12-30","Encombrants 20H30-03H30",null,null,null,null,null,null,0]
["Samedi","2016-12-31","Repos",null,null,null,null,null,null,0]
["Dimanche","2017-01-01","Repos",null,null,null,null,null,null,0]
["Lundi","2017-01-02","Encombrants 20H30-03H30",null,null,null,null,null,null,0]
["Mardi","2017-01-03","Encombrants 20H30-03H30",null,null,null,null,null,null,0]
["Mercredi","2017-01-04","Encombrants 20H30-03H30",null,null,null,null,null,null,0]
["Jeudi","2017-01-05","Encombrants 20H30-03H30",null,null,null,null,null,null,0]
["Vendredi","2017-01-06","Encombrants 20H30-03H30",null,null,null,null,null,null,0]
["Samedi","2017-01-07","Repos",null,null,null,null,null,null,0]
["Dimanche","2017-01-08","Repos",null,null,null,null,null,null,0]
["Lundi","2017-01-09","Encombrants 20H30-03H30",null,null,null,null,null,null,0]
["Mardi","2017-01-10","Encombrants 20H30-03H30",null,null,null,null,null,null,0]
["Mercredi","2017-01-11","Encombrants 20H30-03H30",null,null,null,null,null,null,0]
["Jeudi","2017-01-12","Encombrants 20H30-03H30",null,null,null,null,null,null,0]
["Vendredi","2017-01-13","Repos",null,null,null,null,null,null,0]
["Samedi","2017-01-14","Nice Est",null,null,null,null,null,null,0]
["Dimanche","2017-01-15","Repos",null,null,null,null,null,null,0]
["Lundi","2017-01-16","Encombrants 5H-12H",null,null,null,null,null,null,0]
["Mardi","2017-01-17","Encombrants 5H-12H",null,null,null,null,null,null,0]
["Mercredi","2017-01-18","Encombrants 5H-12H",null,null,null,null,null,null,0]
["Jeudi","2017-01-19","Encombrants 5H-12H",null,null,null,null,null,null,0]
["Vendredi","2017-01-20","Repos Attention travail le Sd 21/01/17",null,null,null,null,null,null,0]
[null,null,null,null,null,null,{"$f":"SUM(G5:G35)","v":0},0,0,0,0,0]
[]
[]
[]
[]
[null,null,"Travaille le samedi 21/01"]
[]
[]
[]
[]
[]
["REMARQUES"]
["Date","heures","Remarques",null,null,"Responsables"]

{"sheet":"TORRE","index":50,"n_rows":48,"n_cols":12,"rows_kept":48,"cut":false,"hidden":false,"merged":[[40,2,45,5],[0,0,1,2],[0,3,1,5],[0,6,1,11],[2,0,2,1],[2,2,2,5],[57,2,57,4],[46,0,46,5],[47,2,47,4],[48,2,48,4],[49,2,49,4],[50,2,50,4],[51,2,51,4],[52,2,52,4],[53,2,53,4],[54,2,54,4],[55,2,55,4],[56,2,56,4],[64,2,64,4],[65,2,65,4],[66,2,66,4],[67,2,67,4],[58,2,58,4],[59,2,59,4],[60,2,60,4],[61,2,61,4],[62,2,62,4],[63,2,63,4]]}
["TORRE JEAN MARIE",null,null,null,null,null,"Feuille Attachement"]
[]
["2017-01-01",null," fournir avant  Mercredi 04/01  demande de congés pour Février 2017 en fonction des disponibilités",null,null,null,"HS","HS","HS","Total","Nuit","Insalubrité"]
["Jours","Date","Prestations","Confirmations","Prestations  HS","Horaires",0,0,0,{"$f":"SUM(G4:I4)","v":0},0,0]
["Mercredi","2016-12-21","benne cartons 8H45-15H45",null,null,null,null,null,null,0]
["Jeudi","2016-12-22","benne cartons 8H45-15H45",null,null,null,null,null,null,0]
["Vendredi","2016-12-23","benne cartons 8H45-15H45",null,null,null,null,null,null,0]
["Samedi","2016-12-24","Repos",null,null,null,null,null,null,0]
["Dimanche","2016-12-25","Repos",null,null,null,null,null,null,0]
["Lundi","2016-12-26","benne cartons 8H45-15H45",null,null,null,null,null,null,0]
["Mardi","2016-12-27","benne cartons 8H45-15H45",null,null,null,null,null,null,0]
["Mercredi","2016-12-28","benne cartons 8H45-15H45",null,null,null,null,null,null,0]
["Jeudi","2016-12-29","benne cartons 8H45-15H45",null,null,null,null,null,null,0]
["Vendredi","2016-12-30","benne cartons 8H45-15H45",null,null,null,null,null,null,0]
["Samedi","2016-12-31","Repos",null,null,null,null,null,null,0]
["Dimanche","2017-01-01","Repos",null,null,null,null,null,null,0]
["Lundi","2017-01-02","benne cartons 8H45-15H45",null,null,null,null,null,null,0]
["Mardi","2017-01-03","benne cartons 8H45-15H45",null,null,null,null,null,null,0]
["Mercredi","2017-01-04","benne cartons 8H45-15H45",null,null,null,null,null,null,0]
["Jeudi","2017-01-05","benne cartons 8H45-15H45",null,null,null,null,null,null,0]
["Vendredi","2017-01-06","benne cartons 8H45-15H45",null,null,null,null,null,null,0]
["Samedi","2017-01-07","Repos",null,null,null,null,null,null,0]
["Dimanche","2017-01-08","Repos",null,null,null,null,null,null,0]
["Lundi","2017-01-09","benne cartons 8H45-15H45",null,null,null,null,null,null,0]
["Mardi","2017-01-10","Repos",null,null,null,null,null,null,0]
["Mercredi","2017-01-11","benne cartons 8H45-15H45",null,null,null,null,null,null,0]
["Jeudi","2017-01-12","benne cartons 8H45-15H45",null,null,null,null,null,null,0]
["Vendredi","2017-01-13","benne cartons 8H45-15H45",null,null,null,null,null,null,0]
["Samedi","2017-01-14","Nice Est",null,null,null,null,null,null,0]
["Dimanche","2017-01-15","Repos",null,null,null,null,null,null,0]
["Lundi","2017-01-16","benne cartons 8H45-15H45",null,null,null,null,null,null,0]
["Mardi","2017-01-17","benne cartons 8H45-15H45",null,null,null,null,null,null,0]
["Mercredi","2017-01-18","benne cartons 8H45-15H45",null,null,null,null,null,null,0]
["Jeudi","2017-01-19","benne cartons 8H45-15H45",null,null,null,null,null,null,0]
["Vendredi","2017-01-20","benne cartons 8H45-15H45",null,null,null,null,null,null,0]
[null,null,null,null,null,null,{"$f":"SUM(G5:G35)","v":0},0,0,0,0,0]
[]
[]
[]
[]
[]
[]
[]
[]
[]
[]
["REMARQUES"]
["Date","heures","Remarques",null,null,"Responsables"]

{"sheet":"TRIPODIN","index":51,"n_rows":48,"n_cols":12,"rows_kept":48,"cut":false,"hidden":false,"merged":[[40,2,45,5],[0,0,1,2],[0,3,1,5],[0,6,1,11],[2,0,2,1],[2,2,2,5],[57,2,57,4],[46,0,46,5],[47,2,47,4],[48,2,48,4],[49,2,49,4],[50,2,50,4],[51,2,51,4],[52,2,52,4],[53,2,53,4],[54,2,54,4],[55,2,55,4],[56,2,56,4],[64,2,64,4],[65,2,65,4],[66,2,66,4],[67,2,67,4],[58,2,58,4],[59,2,59,4],[60,2,60,4],[61,2,61,4],[62,2,62,4],[63,2,63,4]]}
["TRIPODI NADEGE",null,null,null,null,null,"Feuille Attachement"]
[]
["2017-01-01",null," fournir avant  Mercredi 04/01  demande de congés pour Février 2017 en fonction des disponibilités",null,null,null,"HS","HS","HS","Total","Nuit","Insalubrité"]
["Jours","Date","Prestations","Confirmations","Prestations  HS","Horaires",0,0,0,{"$f":"SUM(G4:I4)","v":0},0,0]
["Mercredi","2016-12-21","Repos",null,null,null,null,null,null,0]
["Jeudi","2016-12-22","Secrétariat 8H30-12H/12H45-17H15",null,null,null,null,null,null,0]
["Vendredi","2016-12-23","Secrétariat 8H30-12H/12H45-16H15",null,null,null,null,null,null,0]
["Samedi","2016-12-24","Repos",null,null,null,null,null,null,0]
["Dimanche","2016-12-25","Repos",null,null,null,null,null,null,0]
["Lundi","2016-12-26","Secrétariat 8H30-12H/12H45-17H15",null,null,null,null,null,null,0]
["Mardi","2016-12-27","Congés",null,null,null,null,null,null,0]
["Mercredi","2016-12-28","Congés",null,null,null,null,null,null,0]
["Jeudi","2016-12-29","Congés",null,null,null,null,null,null,0]
["Vendredi","2016-12-30","Congés",null,null,null,null,null,null,0]
["Samedi","2016-12-31","Congés",null,null,null,null,null,null,0]
["Dimanche","2017-01-01","Congés",null,null,null,null,null,null,0]
["Lundi","2017-01-02","Congés",null,null,null,null,null,null,0]
["Mardi","2017-01-03","Secrétariat 8H30-12H/12H45-16H15",null,null,null,null,null,null,0]
["Mercredi","2017-01-04","Repos",null,null,null,null,null,null,0]
["Jeudi","2017-01-05","Secrétariat 8H30-12H/12H45-17H15",null,null,null,null,null,null,0]
["Vendredi","2017-01-06","Secrétariat 8H30-12H/12H45-16H15",null,null,null,null,null,null,0]
["Samedi","2017-01-07","Repos",null,null,null,null,null,null,0]
["Dimanche","2017-01-08","Repos",null,null,null,null,null,null,0]
["Lundi","2017-01-09","Secrétariat 8H30-12H/12H45-17H15",null,null,null,null,null,null,0]
["Mardi","2017-01-10","Secrétariat 8H30-12H/12H45-16H15",null,null,null,null,null,null,0]
["Mercredi","2017-01-11","Repos",null,null,null,null,null,null,0]
["Jeudi","2017-01-12","Secrétariat 8H30-12H/12H45-17H15",null,null,null,null,null,null,0]
["Vendredi","2017-01-13","Secrétariat 8H30-12H/12H45-16H15",null,null,null,null,null,null,0]
["Samedi","2017-01-14","Repos",null,null,null,null,null,null,0]
["Dimanche","2017-01-15","Repos",null,null,null,null,null,null,0]
["Lundi","2017-01-16","Secrétariat 8H30-12H/12H45-17H15",null,null,null,null,null,null,0]
["Mardi","2017-01-17","Secrétariat 8H30-12H/12H45-16H15",null,null,null,null,null,null,0]
["Mercredi","2017-01-18","Repos",null,null,null,null,null,null,0]
["Jeudi","2017-01-19","Secrétariat 8H30-12H/12H45-17H15",null,null,null,null,null,null,0]
["Vendredi","2017-01-20","Secrétariat 8H30-12H/12H45-16H15",null,null,null,null,null,null,0]
[null,null,null,null,null,null,{"$f":"SUM(G5:G35)","v":0},0,0,0,0,0]
[]
[]
[]
[]
[]
[]
[]
[]
[]
[]
["REMARQUES"]
["Date","heures","Remarques",null,null,"Responsables"]

{"sheet":"TRIPODIP","index":52,"n_rows":48,"n_cols":12,"rows_kept":48,"cut":false,"hidden":false,"merged":[[40,2,45,5],[0,0,1,2],[0,3,1,5],[0,6,1,11],[2,0,2,1],[2,2,2,5],[57,2,57,4],[46,0,46,5],[47,2,47,4],[48,2,48,4],[49,2,49,4],[50,2,50,4],[51,2,51,4],[52,2,52,4],[53,2,53,4],[54,2,54,4],[55,2,55,4],[56,2,56,4],[64,2,64,4],[65,2,65,4],[66,2,66,4],[67,2,67,4],[58,2,58,4],[59,2,59,4],[60,2,60,4],[61,2,61,4],[62,2,62,4],[63,2,63,4]]}
["TRIPODI PATRICK",null,null,null,null,null,"Feuille Attachement"]
[]
["2017-01-01",null," fournir avant  Mercredi 04/01  demande de congés pour Février 2017 en fonction des disponibilités",null,null,null,"HS","HS","HS","Total","Nuit","Insalubrité"]
["Jours","Date","Prestations","Confirmations","Prestations  HS","Horaires",0,0,0,{"$f":"SUM(G4:I4)","v":0},0,0]
["Mercredi","2016-12-21","Contröle 12H00-19H30",null,null,null,null,null,null,0]
["Jeudi","2016-12-22","Contröle 12H00-19H30",null,null,null,null,null,null,0]
["Vendredi","2016-12-23","Contröle 12H00-19H30",null,null,null,null,null,null,0]
["Samedi","2016-12-24","Repos",null,null,null,null,null,null,0]
["Dimanche","2016-12-25","Repos",null,"Contrôle Encombrants","13H-19H",null,null,null,0]
["Lundi","2016-12-26","Contröle 12H00-19H30",null,null,null,null,null,null,0]
["Mardi","2016-12-27","Contröle 12H00-19H30",null,"Contröle PM  ","22H-02H00",null,null,null,0]
["Mercredi","2016-12-28","Contröle 12H00-19H30",null,null,null,null,null,null,0]
["Jeudi","2016-12-29","Contröle 12H00-19H30",null,null,null,null,null,null,0]
["Vendredi","2016-12-30","Contröle 12H00-19H30",null,null,null,null,null,null,0]
["Samedi","2016-12-31","Repos",null,null,null,null,null,null,0]
["Dimanche","2017-01-01","Repos",null,null,null,null,null,null,0]
["Lundi","2017-01-02","Contröle 12H00-19H30",null,null,null,null,null,null,0]
["Mardi","2017-01-03","Contröle 12H00-19H30",null,"Contröle PM  récup","22H-02H00",null,null,null,0]
["Mercredi","2017-01-04","Contröle 12H00-19H30",null,null,null,null,null,null,0]
["Jeudi","2017-01-05","Contröle 12H00-19H30",null,null,null,null,null,null,0]
["Vendredi","2017-01-06","Contröle 12H00-19H30",null,null,null,null,null,null,0]
["Samedi","2017-01-07","Repos",null,null,null,null,null,null,0]
["Dimanche","2017-01-08","Repos",null,null,null,null,null,null,0]
["Lundi","2017-01-09","Contröle 12H00-19H30",null,null,null,null,null,null,0]
["Mardi","2017-01-10","Contröle 12H00-19H30",null,"Contröle PM  ","22H-02H00",null,null,null,0]
["Mercredi","2017-01-11","Contröle 12H00-19H30",null,null,null,null,null,null,0]
["Jeudi","2017-01-12","Contröle 12H00-19H30",null,null,null,null,null,null,0]
["Vendredi","2017-01-13","Contröle 12H00-19H30",null,null,null,null,null,null,0]
["Samedi","2017-01-14","Repos",null,null,null,null,null,null,0]
["Dimanche","2017-01-15","Repos",null,null,null,null,null,null,0]
["Lundi","2017-01-16","Contröle 12H00-19H30",null,null,null,null,null,null,0]
["Mardi","2017-01-17","Contröle 12H00-19H30",null,"Contröle PM  récup","22H-02H00",null,null,null,0]
["Mercredi","2017-01-18","Contröle 12H00-19H30",null,null,null,null,null,null,0]
["Jeudi","2017-01-19","Contröle 12H00-19H30",null,null,null,null,null,null,0]
["Vendredi","2017-01-20","Contröle 12H00-19H30",null,null,null,null,null,null,0]
[null,null,null,null,null,null,{"$f":"SUM(G5:G35)","v":0},0,0,0,0,0]
[]
[]
[]
[]
[]
[]
[]
[]
[]
[]
["REMARQUES"]
["Date","heures","Remarques",null,null,"Responsables"]

{"sheet":"VANINI","index":53,"n_rows":49,"n_cols":12,"rows_kept":49,"cut":false,"hidden":false,"merged":[[40,2,45,5],[0,0,1,2],[0,3,1,5],[0,6,1,11],[2,0,2,1],[2,2,2,5],[57,2,57,4],[46,0,46,5],[47,2,47,4],[48,2,48,4],[49,2,49,4],[50,2,50,4],[51,2,51,4],[52,2,52,4],[53,2,53,4],[54,2,54,4],[55,2,55,4],[56,2,56,4],[64,2,64,4],[65,2,65,4],[66,2,66,4],[67,2,67,4],[58,2,58,4],[59,2,59,4],[60,2,60,4],[61,2,61,4],[62,2,62,4],[63,2,63,4]]}
["VANINI KEVIN",null,null,null,null,null,"Feuille Attachement"]
[]
["2017-01-01",null," fournir avant  Mercredi 04/01  demande de congés pour Février 2017 en fonction des disponibilités",null,null,null,"HS","HS","HS","Total","Nuit","Insalubrité"]
["Jours","Date","Prestations","Confirmations","Prestations  HS","Horaires",0,0,0,{"$f":"SUM(G4:I4)","v":0},0,0]
["Mercredi","2016-12-21","Cartons 12H30-19H30",null,null,null,null,null,null,0]
["Jeudi","2016-12-22","Cartons 12H30-19H30",null,null,null,null,null,null,0]
["Vendredi","2016-12-23","Cartons 12H30-19H30",null,null,null,null,null,null,0]
["Samedi","2016-12-24","Repos",null,null,null,null,null,null,0]
["Dimanche","2016-12-25","Repos",null,null,null,null,null,null,0]
["Lundi","2016-12-26","Repos",null,null,null,null,null,null,0]
["Mardi","2016-12-27","Cartons 12H30-19H30",null,null,null,null,null,null,0]
["Mercredi","2016-12-28","Cartons 12H30-19H30",null,null,null,null,null,null,0]
["Jeudi","2016-12-29","Cartons 12H30-19H30",null,null,null,null,null,null,0]
["Vendredi","2016-12-30","Cartons 12H30-19H30",null,null,null,null,null,null,0]
["Samedi","2016-12-31","Cartons 12H30-19H30",null,null,null,null,null,null,0]
["Dimanche","2017-01-01","Repos",null,null,null,null,null,null,0]
["Lundi","2017-01-02","Cartons 12H30-19H30",null,null,null,null,null,null,0]
["Mardi","2017-01-03","Cartons 12H30-19H30",null,null,null,null,null,null,0]
["Mercredi","2017-01-04","Cartons 12H30-19H30",null,null,null,null,null,null,0]
["Jeudi","2017-01-05","Cartons 12H30-19H30",null,null,null,null,null,null,0]
["Vendredi","2017-01-06","Cartons 12H30-19H30",null,null,null,null,null,null,0]
["Samedi","2017-01-07","Repos",null,null,null,null,null,null,0]
["Dimanche","2017-01-08","Repos",null,null,null,null,null,null,0]
["Lundi","2017-01-09","Congés",null,null,null,null,null,null,0]
["Mardi","2017-01-10","Congés",null,null,null,null,null,null,0]
["Mercredi","2017-01-11","Congés",null,null,null,null,null,null,0]
["Jeudi","2017-01-12","Congés",null,null,null,null,null,null,0]
["Vendredi","2017-01-13","Congés",null,null,null,null,null,null,0]
["Samedi","2017-01-14","Congés",null,null,null,null,null,null,0]
["Dimanche","2017-01-15","Congés",null,null,null,null,null,null,0]
["Lundi","2017-01-16","Cartons 12H30-19H30",null,null,null,null,null,null,0]
["Mardi","2017-01-17","Cartons 12H30-19H30",null,null,null,null,null,null,0]
["Mercredi","2017-01-18","Cartons 12H30-19H30",null,null,null,null,null,null,0]
["Jeudi","2017-01-19","Cartons 12H30-19H30",null,null,null,null,null,null,0]
["Vendredi","2017-01-20","Cartons 12H30-19H30",null,null,null,null,null,null,0]
[null,null,null,null,null,null,{"$f":"SUM(G5:G35)","v":0},0,0,0,0,0]
[]
[]
[]
[]
[]
[]
[]
[]
[]
[]
["REMARQUES"]
["Date","heures","Remarques",null,null,"Responsables"]
["2016-05-25","5H20","Arrivé à 5H20",null,null,"cambra"]

{"sheet":"VELLA","index":54,"n_rows":48,"n_cols":12,"rows_kept":48,"cut":false,"hidden":false,"merged":[[40,2,45,5],[0,0,1,2],[0,3,1,5],[0,6,1,11],[2,0,2,1],[2,2,2,5],[57,2,57,4],[46,0,46,5],[47,2,47,4],[48,2,48,4],[49,2,49,4],[50,2,50,4],[51,2,51,4],[52,2,52,4],[53,2,53,4],[54,2,54,4],[55,2,55,4],[56,2,56,4],[64,2,64,4],[65,2,65,4],[66,2,66,4],[67,2,67,4],[58,2,58,4],[59,2,59,4],[60,2,60,4],[61,2,61,4],[62,2,62,4],[63,2,63,4]]}
["VELLA FERDINAND",null,null,null,null,null,"Feuille Attachement"]
[]
["2017-01-01",null," fournir avant  Mercredi 04/01  demande de congés pour Février 2017 en fonction des disponibilités",null,null,null,"HS","HS","HS","Total","Nuit","Insalubrité"]
["Jours","Date","Prestations","Confirmations","Prestations  HS","Horaires",0,0,0,{"$f":"SUM(G4:I4)","v":0},0,0]
["Mercredi","2016-12-21","Contröle Privé 19H00- 02H30",null,null,null,null,null,null,0]
["Jeudi","2016-12-22","Contröle Privé 19H00- 02H30",null,null,null,null,null,null,0]
["Vendredi","2016-12-23","Contröle Privé 19H00- 02H30",null,null,null,null,null,null,0]
["Samedi","2016-12-24","Congés",null,null,null,null,null,null,0]
["Dimanche","2016-12-25","Congés",null,null,null,null,null,null,0]
["Lundi","2016-12-26","Congés",null,null,null,null,null,null,0]
["Mardi","2016-12-27","Congés",null,null,null,null,null,null,0]
["Mercredi","2016-12-28","Congés",null,null,null,null,null,null,0]
["Jeudi","2016-12-29","Congés",null,null,null,null,null,null,0]
["Vendredi","2016-12-30","Congés",null,null,null,null,null,null,0]
["Samedi","2016-12-31","Congés",null,null,null,null,null,null,0]
["Dimanche","2017-01-01","Congés",null,null,null,null,null,null,0]
["Lundi","2017-01-02","Contrôle 13H-20H",null,"Contrôle PM","22H-02H",null,null,4,4]
["Mardi","2017-01-03","Contröle Privé 19H00- 02H30",null,null,null,null,null,null,0]
["Mercredi","2017-01-04","Contröle Privé 19H00- 02H30",null,null,null,null,null,null,0]
["Jeudi","2017-01-05","Contröle Privé 19H00- 02H30",null,null,null,null,null,null,0]
["Vendredi","2017-01-06","Repos",null,null,null,null,null,null,0]
["Samedi","2017-01-07","Contrôle encombrants 13H-20H",null,null,null,null,null,null,0]
["Dimanche","2017-01-08","Repos",null,null,null,null,null,null,0]
["Lundi","2017-01-09","Contrôle 13H-20H",null,"Contrôle PM","22H-02H",null,null,4,4]
["Mardi","2017-01-10","Contröle Privé 19H00- 02H30",null,null,null,null,null,null,0]
["Mercredi","2017-01-11","Contröle Privé 19H00- 02H30",null,null,null,null,null,null,0]
["Jeudi","2017-01-12","Contröle Privé 19H00- 02H30",null,null,null,null,null,null,0]
["Vendredi","2017-01-13","Contröle Privé 19H00- 02H30",null,null,null,null,null,null,0]
["Samedi","2017-01-14","Repos",null,null,null,null,null,null,0]
["Dimanche","2017-01-15","Repos",null,"Contröle OM","20H-02H",null,null,4,4]
["Lundi","2017-01-16","Contrôle 13H-20H",null,"Contrôle PM","22H-02H",null,null,4,4]
["Mardi","2017-01-17","Contröle Privé 19H00- 02H30",null,null,null,null,null,null,0]
["Mercredi","2017-01-18","Contröle Privé 19H00- 02H30",null,null,null,null,null,null,0]
["Jeudi","2017-01-19","Contrôle Vieux Nice 13H-20H",null,null,null,null,null,null,0]
["Vendredi","2017-01-20","Contrôle Vieux Nice 13H-20H",null,null,null,null,null,null,0]
[null,null,null,null,null,null,{"$f":"SUM(G5:G35)","v":0},0,16,16,0,0]
[]
[]
[]
[]
[null,null,"Congés du 26 Déc au 01 Janv 2017"]
[]
[]
[]
[]
[]
["REMARQUES"]
["Date","heures","Remarques",null,null,"Responsables"]

{"sheet":"VIALE","index":55,"n_rows":48,"n_cols":12,"rows_kept":48,"cut":false,"hidden":false,"merged":[[40,2,45,5],[0,0,1,2],[0,3,1,5],[0,6,1,11],[2,0,2,1],[2,2,2,5],[57,2,57,4],[46,0,46,5],[47,2,47,4],[48,2,48,4],[49,2,49,4],[50,2,50,4],[51,2,51,4],[52,2,52,4],[53,2,53,4],[54,2,54,4],[55,2,55,4],[56,2,56,4],[64,2,64,4],[65,2,65,4],[66,2,66,4],[67,2,67,4],[58,2,58,4],[59,2,59,4],[60,2,60,4],[61,2,61,4],[62,2,62,4],[63,2,63,4]]}
["VIALE JONATHAN",null,null,null,null,null,"Feuille Attachement"]
[]
["2017-01-01",null," fournir avant  Mercredi 04/01  demande de congés pour Février 2017 en fonction des disponibilités",null,null,null,"HS","HS","HS","Total","Nuit","Insalubrité"]
["Jours","Date","Prestations","Confirmations","Prestations  HS","Horaires",0,0,0,{"$f":"SUM(G4:I4)","v":0},0,0]
["Mercredi","2016-12-21","Encombrants 20H30-03H30",null,null,null,null,null,null,0]
["Jeudi","2016-12-22","Encombrants 20H30-03H30",null,null,null,null,null,null,0]
["Vendredi","2016-12-23","Encombrants 20H30-03H30",null,null,null,null,null,null,0]
["Samedi","2016-12-24","Repos",null,null,null,null,null,null,0]
["Dimanche","2016-12-25","Repos",null,null,null,null,null,null,0]
["Lundi","2016-12-26","Encombrants 5H-12H",null,null,null,null,null,null,0]
["Mardi","2016-12-27","Encombrants 5H-12H",null,null,null,null,null,null,0]
["Mercredi","2016-12-28","Encombrants 5H-12H",null,null,null,null,null,null,0]
["Jeudi","2016-12-29","Encombrants 5H-12H",null,null,null,null,null,null,0]
["Vendredi","2016-12-30","Repos",null,null,null,null,null,null,0]
["Samedi","2016-12-31","Nice Est",null,null,null,null,null,null,0]
["Dimanche","2017-01-01","Repos",null,null,null,null,null,null,0]
["Lundi","2017-01-02","Encombrants 5H-12H",null,null,null,null,null,null,0]
["Mardi","2017-01-03","Encombrants 5H-12H",null,null,null,null,null,null,0]
["Mercredi","2017-01-04","Encombrants 5H-12H",null,null,null,null,null,null,0]
["Jeudi","2017-01-05","Encombrants 5H-12H",null,null,null,null,null,null,0]
["Vendredi","2017-01-06","Encombrants 5H-12H",null,null,null,null,null,null,0]
["Samedi","2017-01-07","Repos",null,null,null,null,null,null,0]
["Dimanche","2017-01-08","Repos",null,null,null,null,null,null,0]
["Lundi","2017-01-09","Encombrants 20H30-03H30",null,null,null,null,null,null,0]
["Mardi","2017-01-10","Encombrants 20H30-03H30",null,null,null,null,null,null,0]
["Mercredi","2017-01-11","Encombrants 20H30-03H30",null,null,null,null,null,null,0]
["Jeudi","2017-01-12","Encombrants 20H30-03H30",null,null,null,null,null,null,0]
["Vendredi","2017-01-13","Encombrants 20H30-03H30",null,null,null,null,null,null,0]
["Samedi","2017-01-14","Repos",null,null,null,null,null,null,0]
["Dimanche","2017-01-15","Repos",null,"Nice Nord","8H-12H",null,null,null,0]
["Lundi","2017-01-16","Encombrants 20H30-03H30",null,null,null,null,null,null,0]
["Mardi","2017-01-17","Encombrants 20H30-03H30",null,null,null,null,null,null,0]
["Mercredi","2017-01-18","Encombrants 20H30-03H30",null,null,null,null,null,null,0]
["Jeudi","2017-01-19","Encombrants 20H30-03H30",null,null,null,null,null,null,0]
["Vendredi","2017-01-20","Encombrants 20H30-03H30",null,null,null,null,null,null,0]
[null,null,null,null,null,null,{"$f":"SUM(G5:G35)","v":0},0,0,0,0,0]
[]
[]
[]
[]
[]
[]
[]
[]
[]
[]
["REMARQUES"]
["Date","heures","Remarques",null,null,"Responsables"]